Workbook

Sheet MTK2_UAH (hidden)
A2: Державний та гарантований державою борг України за поточний рік
E4: =VALUAH -> млрд. грн
B5: 2017-12-31 | C5: 2018-01-31 | D5: 2018-02-28 | E5: 2018-03-31
A6: Загальна сума державного та гарантованого державою боргу | B6: =B$59+B$7 -> 2141.690622 | C6: 2134.934323 | D6: 2068.839756 | E6: 2053.601257
A7: Внутрішній борг | B7: =B$8+B$46 -> 766.678941 | C7: 758.666714 | D7: 758.5995162 | E7: 764.4780929
A8: Державний борг | B8: =B$9+B$44 -> 753.3993865 | C8: 745.3749861 | D8: 744.9584249 | E8: 750.779831
A9: 1. Заборгованість за випущеними цінними паперами на внутрішньому ринку | B9: =SUM(B$10:B$43) -> 751.0188411 | C9: 742.9944407 | D9: 742.5778795 | E9: 748.3992856
A10: ОВДП (10 - річні) | B10: 62.650439 | C10: 62.650439 | D10: 62.650439 | E10: 62.650439
A11: ОВДП (11 - річні) | B11: 19.033 | C11: 19.033 | D11: 19.033 | E11: 19.033
A12: ОВДП (12 - місячні) | B12: 6.90279 | C12: 5.71344 | D12: 4.254576609 | E12: 9.171410155
A13: ОВДП (12 - річні) | B13: 36.5 | C13: 36.5 | D13: 36.5 | E13: 36.5
A14: ОВДП (13 - річні) | B14: 28.700001 | C14: 28.700001 | D14: 28.700001 | E14: 28.700001
A15: ОВДП (14 - річні) | B15: 46.9 | C15: 46.9 | D15: 46.9 | E15: 46.9
A16: ОВДП (15 - річні) | B16: 93.438657 | C16: 93.438657 | D16: 93.438657 | E16: 93.438657
A17: ОВДП (16 - річні) | B17: 12.097744 | C17: 12.097744 | D17: 12.097744 | E17: 12.097744
A18: ОВДП (17 - річні) | B18: 12.097744 | C18: 12.097744 | D18: 12.097744 | E18: 12.097744
A19: ОВДП (18 - місячні) | B19: 30.28291246 | C19: 30.40210182 | D19: 29.20766522 | E19: 28.77613418
A20: ОВДП (18 - річні) | B20: 12.097744 | C20: 12.097744 | D20: 12.097744 | E20: 12.097744
A21: ОВДП (19 - річні) | B21: 12.097744 | C21: 12.097744 | D21: 12.097744 | E21: 12.097744
A22: ОВДП (2 - річні) | B22: 71.60522481 | C22: 58.639344 | D22: 56.82580322 | E22: 53.88783618
A23: ОВДП (20 - річні) | B23: 12.097744 | C23: 12.097744 | D23: 12.097744 | E23: 12.097744
A24: ОВДП (21-річні) | B24: 12.097744 | C24: 12.097744 | D24: 12.097744 | E24: 12.097744
A25: ОВДП (22-річні) | B25: 12.097744 | C25: 12.097744 | D25: 12.097744 | E25: 12.097744
A26: ОВДП (23-річні) | B26: 12.097744 | C26: 12.097744 | D26: 12.097744 | E26: 12.097744
A27: ОВДП (24-річні) | B27: 12.097744 | C27: 12.097744 | D27: 12.097744 | E27: 12.097744
A28: ОВДП (25-річні) | B28: 12.097744 | C28: 12.097744 | D28: 12.097744 | E28: 12.097744
A29: ОВДП (26-річні) | B29: 12.097744 | C29: 12.097744 | D29: 12.097744 | E29: 12.097744
A30: ОВДП (27-річні) | B30: 12.097744 | C30: 12.097744 | D30: 12.097744 | E30: 12.097744
A31: ОВДП (28-річні) | B31: 12.097744 | C31: 12.097744 | D31: 12.097744 | E31: 12.097744
A32: ОВДП (29-річні) | B32: 12.097744 | C32: 12.097744 | D32: 12.097744 | E32: 12.097744
A33: ОВДП (3 - місячні) | B33: 0.545 | C33: 2.747216 | D33: 6.346596 | E33: 7.986049
A34: ОВДП (3 - річні) | B34: 46.63242848 | C34: 47.51178794 | D34: 47.94808129 | E34: 50.49309401
A35: ОВДП (30-річні) | B35: 12.097751 | C35: 12.097751 | D35: 12.097751 | E35: 12.097751
A36: ОВДП (4 - річні) | B36: 0.03 | C36: 0.03 | D36: 0.03 | E36: 0.03
A37: ОВДП (5 - річні) | B37: 49.6280334 | C37: 52.5974406 | D37: 51.4687307 | E37: 48.6501377
A38: ОВДП (6 - місячні) | B38: 10.8756279 | C38: 12.83628638 | D38: 15.92700246 | E38: 16.50702639
A39: ОВДП (6 - річні) | B39: 7.8001 | C39: 5.8001 | D39: 5.8001 | E39: 5.8001
A40: ОВДП (7 - річні) | B40: 19.72846 | C40: 19.72846 | D40: 17.75346 | E40: 17.755965
A41: ОВДП (8 - річні) | B41: 18.9 | C41: 18.9 | D41: 18.9 | E41: 17.5
A42: ОВДП (9 - місячні) | B42: 0 | C42: 0 | D42: 0.0276 | E42: 3.753269
A43: ОВДП (9 - річні) | B43: 19.4 | C43: 19.4 | D43: 19.4 | E43: 19.4
A44: 2. Заборгованість перед банківськими та іншими фінансовими установами | B44: =SUM(B$45:B$45) -> 2.380545405 | C44: 2.380545405 | D44: 2.380545405 | E44: 2.380545405
A45: Національний банк України | B45: 2.380545405 | C45: 2.380545405 | D45: 2.380545405 | E45: 2.380545405
A46: Гарантований державою борг | B46: =B$47+B$53+B$57 -> 13.27955451 | C46: 13.29172784 | D46: 13.64109125 | E46: 13.6982619
A47: 1. Заборгованість за випущеними цінними паперами на внутрішньому ринку | B47: =SUM(B$48:B$52) -> 8.9500116 | C47: 8.9500116 | D47: 8.9500116 | E47: 8.9500116
A48: Державні цінні папери | B48: 1.16e-05 | C48: 1.16e-05 | D48: 1.16e-05 | E48: 1.16e-05
A49: Облігації ДІУ (10 - річні) | B49: 1 | C49: 1 | D49: 1 | E49: 1
A50: Облігації ДІУ (5 - річні) | B50: 2 | C50: 2 | D50: 2 | E50: 2
A51: Облігації ДІУ (7 - річні) | B51: 3 | C51: 3 | D51: 3 | E51: 3
A52: Облігації Укравтодору (5 - річні) | B52: 2.95 | C52: 2.95 | D52: 2.95 | E52: 2.95
A53: 2. Заборгованість перед банківськими та іншими фінансовими установами | B53: =SUM(B$54:B$56) -> 4.328588255 | C53: 4.340761591 | D53: 4.690125003 | E53: 4.747295651
A54: ВАТ "Державний експортно-імпортний банк України" | B54: 0.3414693782 | C54: 0.3455083775 | D54: 0.6709273 | E54: 0.7283137977
A55: ВАТ "Державний ощадний банк України" | B55: 3.897676447 | C55: 3.909644049 | D55: 3.933588538 | E55: 3.933372688
A56: ПАТ АБ "Укргазбанк" | B56: 0.08944243001 | C56: 0.08560916483 | D56: 0.08560916483 | E56: 0.08560916483
A57: 3. Заборгованість, не віднесена до інших категорій | B57: =SUM(B$58:B$58) -> 0.00095465 | C57: 0.00095465 | D57: 0.00095465 | E57: 0.00095465
A58: Інші кредитори | B58: 0.00095465 | C58: 0.00095465 | D58: 0.00095465 | E58: 0.00095465
A59: Зовнішній борг | B59: =B$60+B$84 -> 1375.011681 | C59: 1376.267609 | D59: 1310.240239 | E59: 1289.123164
A60: Державний борг | B60: =B$61+B$68+B$74+B$76+B$82 -> 1080.310478 | C60: 1087.555854 | D60: 1036.35462 | E60: 1022.067555
A61: 1. Заборгованість за позиками, одержаними від міжнародних фінансових організацій | B61: =SUM(B$62:B$67) -> 407.4680194 | C61: 413.8546305 | D61: 388.6560152 | E61: 383.9095366
A62: Європейське Співтовариство | B62: 94.12214144 | C62: 97.75911039 | D62: 93.14858322 | E62: 91.89890878
A63: Європейський банк реконструкції та розвитку | B63: 18.00200891 | C63: 18.72080686 | D63: 17.58360641 | E63: 17.59454839
A64: Європейський Інвестиційний Банк | B64: 19.35682669 | C64: 20.10479286 | D64: 18.9010849 | E64: 18.64750935
A65: Міжнародний банк реконструкції та розвитку | B65: 137.8725235 | C65: 136.2541969 | D65: 130.674741 | E65: 128.6367826
A66: Міжнародний Валютний Фонд | B66: 137.9472184 | C66: 140.8487712 | D66: 128.1873694 | E66: 126.9589705
A67: Фонд чистих технологій (МБРР) | B67: 0.1673005701 | C67: 0.1669522739 | D67: 0.1606303093 | E67: 0.1728169789
A68: 2. Заборгованість за позиками, одержаними від органів управління іноземних держав | B68: =SUM(B$69:B$73) -> 49.29623741 | C68: 50.31843628 | D68: 48.29322324 | E68: 47.4941187
A69: Канада | B69: 8.90303 | C69: 9.0929744 | D69: 8.4742028 | E69: 8.2300692
A70: Німеччина | B70: 7.487539054 | C70: 7.776864675 | D70: 7.410091228 | E70: 7.310677997
A71: Росія | B71: 17.00469153 | C71: 16.96929016 | D71: 16.3267158 | E71: 16.08153078
A72: США | B72: 0.1732360397 | C72: 0.1728753867 | D72: 0.1663291323 | E72: 0.1638312992
A73: Японія | B73: 15.72774079 | C73: 16.30643166 | D73: 15.91588428 | E73: 15.70800942
A74: 3. Заборгованість за позиками, одержаними від іноземних комерційних банків, інших іноземних фінансових установ | B74: =SUM(B$75:B$75) -> 0.00171259423 | C74: 0.0017787705 | D74: 0.00169487991 | E74: 0.00167214153
A75: Chase Manhattan Bank Luxembourg S.A. | B75: 0.00171259423 | C75: 0.0017787705 | D75: 0.00169487991 | E75: 0.00167214153
A76: 4. Заборгованість за випущеними цінними паперами на зовнішньому ринку | B76: =SUM(B$77:B$81) -> 574.4595155 | C76: 573.2635718 | D76: 551.5558592 | E76: 543.2729176
A77: ОЗДП 2013 року | B77: 84.201669 | C77: 84.026373 | D77: 80.844555 | E77: 79.630479
A78: ОЗДП 2014 року | B78: 28.067223 | C78: 28.008791 | D78: 26.948185 | E78: 26.543493
A79: ОЗДП 2015 року | B79: 349.9217315 | C79: 349.1932438 | D79: 335.9703792 | E79: 330.9249736
A80: ОЗДП 2016 року | B80: 28.067223 | C80: 28.008791 | D80: 26.948185 | E80: 26.543493
A81: ОЗДП 2017 року | B81: 84.201669 | C81: 84.026373 | D81: 80.844555 | E81: 79.630479
A82: 5. Заборгованість, не віднесена до інших категорій | B82: =SUM(B$83:B$83) -> 49.0849934 | C82: 50.11743686 | D82: 47.84782761 | E82: 47.3893096
A83: Міжнародний Валютний Фонд | B83: 49.0849934 | C83: 50.11743686 | D83: 47.84782761 | E83: 47.3893096
A84: Гарантований державою борг | B84: =B$85+B$91+B$93+B$101+B$102 -> 294.7012026 | C84: 288.7117545 | D84: 273.8856192 | E84: 267.0556094
A85: 1. Заборгованість за позиками, одержаними від міжнародних фінансових організацій | B85: =SUM(B$86:B$90) -> 229.7137248 | C85: 225.7222324 | D85: 212.3242659 | E85: 209.5762676
A86: Європейське співтоватиство з атомної енергії | B86: 1.772586034 | C86: 1.839757001 | D86: 1.75329161 | E86: 1.665946345
A87: Європейський банк реконструкції та розвитку | B87: 11.45411849 | C87: 3.113013317 | D87: 3.448630646 | E87: 3.661963692
A88: Європейський Інвестиційний Банк | B88: 1.17233984 | C88: 1.217640165 | D88: 1.16021367 | E88: 1.602507662
A89: Міжнародний банк реконструкції та розвитку | B89: 12.62098817 | C89: 12.59471305 | D89: 12.11779035 | E89: 11.9358125
A90: Міжнародний Валютний Фонд | B90: 202.6936923 | C90: 206.9571089 | D90: 193.8443396 | E90: 190.7100374
A91: 2. Заборгованість за позиками, одержаними від органів управління іноземних держав | B91: =SUM(B$92:B$92) -> 2.735932646 | C91: 2.047677614 | D91: 1.970138417 | E91: 1.940552037
A92: Канада | B92: 2.735932646 | C92: 2.047677614 | D92: 1.970138417 | E92: 1.940552037
A93: 3. Заборгованість за позиками, одержаними від іноземних комерційних банків, інших іноземних фінансових установ | B93: =SUM(B$94:B$100) -> 58.99613058 | C93: 57.61795619 | D93: 56.41785166 | E93: 52.39583629
A94: CENTRAL STORAGE SAFETY PROJECT TRUST | B94: 0 | C94: 0 | D94: 1.5277086 | E94: 1.504766371
A95: Citibank, N.A., Deutsche Bank AG | B95: 10.58962563 | C95: 11.66992365 | D95: 10.70060614 | E95: 7.542216049
A96: Deutsche Bank AG London | B96: 1.041412313 | C96: 1.112405788 | D96: 1.05994237 | E96: 1.004593491
A97: UniCredit Bank Austria AG | B97: 0.8541333063 | C97: 0.8871378286 | D97: 0.8452985254 | E97: 0.6949650526
A98: Державний банк розвитку КНР | B98: 1.297828392 | C98: 1.295126496 | D98: 1.246084074 | E98: 1.227371116
A99: Експортно-імпортний банк Китаю | B99: 42.46657775 | C99: 39.91252718 | D99: 38.40116363 | E99: 37.82447752
A100: Експортно-імпортний банк Кореї | B100: 2.746553191 | C100: 2.740835254 | D100: 2.637048328 | E100: 2.597446687
A101: 4. Заборгованість за випущеними цінними паперами на зовнішньому ринку
A102: 5. Заборгованість, не віднесена до інших категорій | B102: =SUM(B$103:B$103) -> 3.255414573 | C102: 3.32388828 | D102: 3.173363272 | E102: 3.142953444
A103: Міжнародний Валютний Фонд | B103: 3.255414573 | C103: 3.32388828 | D103: 3.173363272 | E103: 3.142953444

Sheet MTK2_USD (hidden)
A2: Державний та гарантований державою борг України за поточний рік
E4: =VALUSD -> млрд. дол. США
B5: 2017-12-31 | C5: 2018-01-31 | D5: 2018-02-28 | E5: 2018-03-31
A6: Загальна сума державного та гарантованого державою боргу | B6: =B$59+B$7 -> 76.30575429 | C6: 76.22372285 | D6: 76.77102393 | E6: 77.36740816
A7: Внутрішній борг | B7: =B$8+B$46 -> 27.31581037 | C7: 27.08673552 | D7: 28.15030089 | E7: 28.80096048
A8: Державний борг | B8: =B$9+B$44 -> 26.84267647 | C8: 26.61217995 | D8: 27.64410386 | E8: 28.28489193
A9: 1. Заборгованість за випущеними цінними паперами на внутрішньому ринку | B9: =SUM(B$10:B$43) -> 26.75786062 | C9: 26.52718715 | D9: 27.55576598 | E9: 28.19520723
A10: ОВДП (10 - річні) | B10: 2.232156669 | C10: 2.236813399 | D10: 2.324848186 | E10: 2.360293689
A11: ОВДП (11 - річні) | B11: 0.6781219503 | C11: 0.6795366498 | D11: 0.7062813321 | E11: 0.7170495609
A12: ОВДП (12 - місячні) | B12: 0.2459377617 | C12: 0.2039873838 | D12: 0.1578798946 | E12: 0.3455238599
A13: ОВДП (12 - річні) | B13: 1.300449282 | C13: 1.303162282 | D13: 1.354451144 | E13: 1.375101612
A14: ОВДП (13 - річні) | B14: 1.022545088 | C14: 1.024678323 | D14: 1.065006827 | E14: 1.081244319
A15: ОВДП (14 - річні) | B15: 1.670988256 | C15: 1.674474275 | D15: 1.740376949 | E15: 1.766911386
A16: ОВДП (15 - річні) | B16: 3.329102313 | C16: 3.336047493 | D16: 3.467345092 | E16: 3.520209529
A17: ОВДП (16 - річні) | B17: 0.4310274657 | C17: 0.4319266762 | D17: 0.4489261151 | E17: 0.4557706101
A18: ОВДП (17 - річні) | B18: 0.4310274657 | C18: 0.4319266762 | D18: 0.4489261151 | E18: 0.4557706101
A19: ОВДП (18 - місячні) | B19: 1.07894224 | C19: 1.085448559 | D19: 1.083845358 | E19: 1.084112561
A20: ОВДП (18 - річні) | B20: 0.4310274657 | C20: 0.4319266762 | D20: 0.4489261151 | E20: 0.4557706101
A21: ОВДП (19 - річні) | B21: 0.4310274657 | C21: 0.4319266762 | D21: 0.4489261151 | E21: 0.4557706101
A22: ОВДП (2 - річні) | B22: 2.551204471 | C22: 2.093604969 | D22: 2.108706142 | E22: 2.030171243
A23: ОВДП (20 - річні) | B23: 0.4310274657 | C23: 0.4319266762 | D23: 0.4489261151 | E23: 0.4557706101
A24: ОВДП (21-річні) | B24: 0.4310274657 | C24: 0.4319266762 | D24: 0.4489261151 | E24: 0.4557706101
A25: ОВДП (22-річні) | B25: 0.4310274657 | C25: 0.4319266762 | D25: 0.4489261151 | E25: 0.4557706101
A26: ОВДП (23-річні) | B26: 0.4310274657 | C26: 0.4319266762 | D26: 0.4489261151 | E26: 0.4557706101
A27: ОВДП (24-річні) | B27: 0.4310274657 | C27: 0.4319266762 | D27: 0.4489261151 | E27: 0.4557706101
A28: ОВДП (25-річні) | B28: 0.4310274657 | C28: 0.4319266762 | D28: 0.4489261151 | E28: 0.4557706101
A29: ОВДП (26-річні) | B29: 0.4310274657 | C29: 0.4319266762 | D29: 0.4489261151 | E29: 0.4557706101
A30: ОВДП (27-річні) | B30: 0.4310274657 | C30: 0.4319266762 | D30: 0.4489261151 | E30: 0.4557706101
A31: ОВДП (28-річні) | B31: 0.4310274657 | C31: 0.4319266762 | D31: 0.4489261151 | E31: 0.4557706101
A32: ОВДП (29-річні) | B32: 0.4310274657 | C32: 0.4319266762 | D32: 0.4489261151 | E32: 0.4557706101
A33: ОВДП (3 - місячні) | B33: 0.01941766737 | C33: 0.09808406225 | D33: 0.2355110743 | E33: 0.3008665438
A34: ОВДП (3 - річні) | B34: 1.661455018 | C34: 1.696316986 | D34: 1.779269412 | E34: 1.90227767
A35: ОВДП (30-річні) | B35: 0.4310277151 | C35: 0.4319269261 | D35: 0.4489263748 | E35: 0.4557708739
A36: ОВДП (4 - річні) | B36: 0.00106886242 | C36: 0.00107109229 | D36: 0.00111324752 | E36: 0.0011302205
A37: ОВДП (5 - річні) | B37: 1.768184669 | C37: 1.877890431 | D37: 1.909914553 | E37: 1.832846103
A38: ОВДП (6 - місячні) | B38: 0.387485 | C38: 0.4582949111 | D38: 0.5910231975 | E38: 0.6218859886
A39: ОВДП (6 - річні) | B39: 0.277907793 | C39: 0.2070814124 | D39: 0.2152315638 | E39: 0.2185130646
A40: ОВДП (7 - річні) | B40: 0.702900319 | C40: 0.7043667111 | D40: 0.6587998413 | E40: 0.6689385229
A41: ОВДП (8 - річні) | B41: 0.6733833269 | C41: 0.6747881406 | D41: 0.7013459348 | E41: 0.6592952932
A42: ОВДП (9 - місячні) | B42: 0 | C42: 0 | D42: 0.00102418771 | E42: 0.1414007192
A43: ОВДП (9 - річні) | B43: 0.6911977006 | C43: 0.6926396787 | D43: 0.7199000601 | E43: 0.7308759251
A44: 2. Заборгованість перед банківськими та іншими фінансовими установами | B44: =SUM(B$45:B$45) -> 0.08481585104 | C44: 0.08499279405 | D44: 0.08833787526 | E44: 0.08968470748
A45: Національний банк України | B45: 0.08481585104 | C45: 0.08499279405 | D45: 0.08833787526 | E45: 0.08968470748
A46: Гарантований державою борг | B46: =B$47+B$53+B$57 -> 0.4731338938 | C46: 0.4745555722 | D46: 0.5061970316 | E46: 0.5160685483
A47: 1. Заборгованість за випущеними цінними паперами на внутрішньому ринку | B47: =SUM(B$48:B$52) -> 0.318877703 | C47: 0.3195429463 | D47: 0.3321192726 | E47: 0.3371828869
A48: Державні цінні папери | B48: 4.1329e-07 | C48: 4.1416e-07 | D48: 4.3046e-07 | E48: 4.3702e-07
A49: Облігації ДІУ (10 - річні) | B49: 0.03562874745 | C49: 0.03570307622 | D49: 0.03710825052 | E49: 0.03767401675
A50: Облігації ДІУ (5 - річні) | B50: 0.0712574949 | C50: 0.07140615244 | D50: 0.07421650104 | E50: 0.0753480335
A51: Облігації ДІУ (7 - річні) | B51: 0.1068862423 | C51: 0.1071092287 | D51: 0.1113247516 | E51: 0.1130220503
A52: Облігації Укравтодору (5 - річні) | B52: 0.105104805 | C52: 0.1053240749 | D52: 0.109469339 | E52: 0.1111383494
A53: 2. Заборгованість перед банківськими та іншими фінансовими установами | B53: =SUM(B$54:B$56) -> 0.1542221778 | C53: 0.1549785419 | D53: 0.1740423336 | E53: 0.1788496959
A54: ВАТ "Державний експортно-імпортний банк України" | B54: 0.01216612625 | C54: 0.01233571194 | D54: 0.02489693833 | E54: 0.02743850623
A55: ВАТ "Державний ощадний банк України" | B55: 0.1388693298 | C55: 0.1395863195 | D55: 0.1459685889 | E55: 0.1481859486
A56: ПАТ АБ "Укргазбанк" | B56: 0.00318672175 | C56: 0.00305651054 | D56: 0.00317680633 | E56: 0.00322524111
A57: 3. Заборгованість, не віднесена до інших категорій | B57: =SUM(B$58:B$58) -> 3.401298e-05 | C57: 3.408394e-05 | D57: 3.542539e-05 | E57: 3.59655e-05
A58: Інші кредитори | B58: 3.401298e-05 | C58: 3.408394e-05 | D58: 3.542539e-05 | E58: 3.59655e-05
A59: Зовнішній борг | B59: =B$60+B$84 -> 48.98994393 | C59: 49.13698734 | D59: 48.62072304 | E59: 48.56644768
A60: Державний борг | B60: =B$61+B$68+B$74+B$76+B$82 -> 38.4901092 | C60: 38.82908956 | D60: 38.45730687 | E60: 38.50539018
A61: 1. Заборгованість за позиками, одержаними від міжнародних фінансових організацій | B61: =SUM(B$62:B$67) -> 14.51757516 | C61: 14.77588342 | D61: 14.42234478 | E61: 14.46341432
A62: Європейське Співтовариство | B62: 3.353454007 | C62: 3.49030097 | D62: 3.456580962 | E62: 3.462201029
A63: Європейський банк реконструкції та розвитку | B63: 0.6413890292 | C63: 0.6683903942 | D63: 0.6524968716 | E63: 0.6628573107
A64: Європейський Інвестиційний Банк | B64: 0.6896594896 | C64: 0.7178029518 | D64: 0.7013861935 | E64: 0.7025265799
A65: Міжнародний банк реконструкції та розвитку | B65: 4.912225319 | C65: 4.864693978 | D65: 4.849111024 | E65: 4.846264304
A66: Міжнародний Валютний Фонд | B66: 4.914886605 | C66: 5.028734414 | D66: 4.756809016 | E66: 4.783054382
A67: Фонд чистих технологій (МБРР) | B67: 0.00596070976 | C67: 0.00596070976 | D67: 0.00596070976 | E67: 0.00651070976
A68: 2. Заборгованість за позиками, одержаними від органів управління іноземних держав | B68: =SUM(B$69:B$73) -> 1.756363193 | C68: 1.796522966 | D68: 1.792077026 | E68: 1.789294223
A69: Канада | B69: 0.3172038074 | C69: 0.3246471581 | D69: 0.3144628404 | E69: 0.3100597649
A70: Німеччина | B70: 0.266771638 | C70: 0.2776579923 | D70: 0.2749755217 | E70: 0.2754226054
A71: Росія | B71: 0.60585586 | C71: 0.60585586 | D71: 0.60585586 | E71: 0.60585586
A72: США | B72: 0.00617218311 | C72: 0.00617218311 | D72: 0.00617218311 | E72: 0.00617218311
A73: Японія | B73: 0.5603597046 | C73: 0.5821897725 | D73: 0.5906106212 | E73: 0.5917838101
A74: 3. Заборгованість за позиками, одержаними від іноземних комерційних банків, інших іноземних фінансових установ | B74: =SUM(B$75:B$75) -> 6.101759e-05 | C74: 6.350758e-05 | D74: 6.289403e-05 | E74: 6.299629e-05
A75: Chase Manhattan Bank Luxembourg S.A. | B75: 6.101759e-05 | C75: 6.350758e-05 | D75: 6.289403e-05 | E75: 6.299629e-05
A76: 4. Заборгованість за випущеними цінними паперами на зовнішньому ринку | B76: =SUM(B$77:B$81) -> 20.467273 | C76: 20.467273 | D76: 20.467273 | E76: 20.467273
A77: ОЗДП 2013 року | B77: 3 | C77: 3 | D77: 3 | E77: 3
A78: ОЗДП 2014 року | B78: 1 | C78: 1 | D78: 1 | E78: 1
A79: ОЗДП 2015 року | B79: 12.467273 | C79: 12.467273 | D79: 12.467273 | E79: 12.467273
A80: ОЗДП 2016 року | B80: 1 | C80: 1 | D80: 1 | E80: 1
A81: ОЗДП 2017 року | B81: 3 | C81: 3 | D81: 3 | E81: 3
A82: 5. Заборгованість, не віднесена до інших категорій | B82: =SUM(B$83:B$83) -> 1.748836834 | C82: 1.789346668 | D82: 1.775549174 | E82: 1.785345644
A83: Міжнародний Валютний Фонд | B83: 1.748836834 | C83: 1.789346668 | D83: 1.775549174 | E83: 1.785345644
A84: Гарантований державою борг | B84: =B$85+B$91+B$93+B$101+B$102 -> 10.49983472 | C84: 10.30789778 | D84: 10.16341617 | E84: 10.0610575
A85: 1. Заборгованість за позиками, одержаними від міжнародних фінансових організацій | B85: =SUM(B$86:B$90) -> 8.184412287 | C85: 8.058978068 | D85: 7.878982049 | E85: 7.895579817
A86: Європейське співтоватиство з атомної енергії | B86: 0.06315502013 | C86: 0.06568498444 | D86: 0.06506158429 | E86: 0.06276289052
A87: Європейський банк реконструкції та розвитку | B87: 0.4080958951 | C87: 0.1111441518 | D87: 0.1279726499 | E87: 0.1379608815
A88: Європейський Інвестиційний Банк | B88: 0.04176900009 | C88: 0.04347349962 | D88: 0.04305349952 | E88: 0.06037290051
A89: Міжнародний банк реконструкції та розвитку | B89: 0.44967 | C89: 0.44967 | D89: 0.44967 | E89: 0.44967
A90: Міжнародний Валютний Фонд | B90: 7.221722372 | C90: 7.389005433 | D90: 7.193224315 | E90: 7.184813144
A91: 2. Заборгованість за позиками, одержаними від органів управління іноземних держав | B91: =SUM(B$92:B$92) -> 0.09747785328 | C91: 0.07310838994 | D91: 0.07310838994 | E91: 0.07310838994
A92: Канада | B92: 0.09747785328 | C92: 0.07310838994 | D92: 0.07310838994 | E92: 0.07310838994
A93: 3. Заборгованість за позиками, одержаними від іноземних комерційних банків, інших іноземних фінансових установ | B93: =SUM(B$94:B$100) -> 2.101958237 | C93: 2.057138282 | D93: 2.093567773 | E93: 1.973961614
A94: CENTRAL STORAGE SAFETY PROJECT TRUST | B94: 0 | C94: 0 | D94: 0.05669059346 | E94: 0.05669059346
A95: Citibank, N.A., Deutsche Bank AG | B95: 0.3772950971 | C95: 0.4166521736 | D95: 0.3970807732 | E95: 0.2841455738
A96: Deutsche Bank AG London | B96: 0.0371042163 | C96: 0.03971630864 | D96: 0.03933260699 | E96: 0.03784707201
A97: UniCredit Bank Austria AG | B97: 0.03043169986 | C97: 0.03167354951 | D97: 0.03136754944 | E97: 0.02618212504
A98: Державний банк розвитку КНР | B98: 0.04624 | C98: 0.04624 | D98: 0.04624 | E98: 0.04624
A99: Експортно-імпортний банк Китаю | B99: 1.513030974 | C99: 1.425 | D99: 1.425 | E99: 1.425
A100: Експортно-імпортний банк Кореї | B100: 0.09785625 | C100: 0.09785625 | D100: 0.09785625 | E100: 0.09785625
A101: 4. Заборгованість за випущеними цінними паперами на зовнішньому ринку
A102: 5. Заборгованість, не віднесена до інших категорій | B102: =SUM(B$103:B$103) -> 0.1159863437 | C102: 0.1186730366 | D102: 0.1177579593 | E102: 0.1184076807
A103: Міжнародний Валютний Фонд | B103: 0.1159863437 | C103: 0.1186730366 | D103: 0.1177579593 | E103: 0.1184076807

Sheet DKT2
A2: ="Державний та гарантований державою борг України за станом на " & TEXT(DREPORTDATE,"dd.MM.yyyy") -> Державний та гарантований державою борг України за станом на 31.03.2018
A3: (за ознакою умовності)
D5: =VALVAL -> млрд. одиниць
B6: дол.США | C6: грн. | D6: %
A7: Загальна сума державного та гарантованого державою боргу | B7: =B$8+B$71 -> 77.36740816 | C7: 2053.601257 | D7: 1.000003
A8: Державний борг | B8: =B$9+B$47 -> 66.79028211 | C8: 1772.847386 | D8: 0.86329
A9: Внутрішній борг | B9: =B$10+B$45 -> 28.28489193 | C9: 750.779831 | D9: 0.365594
A10: 1. Заборгованість за випущеними цінними паперами на внутрішньому ринку | B10: =SUM(B$11:B$44) -> 28.19520723 | C10: 748.3992856 | D10: 0.364435
A11: ОВДП (10 - річні) | B11: 2.360293689 | C11: 62.650439 | D11: 0.030508
A12: ОВДП (11 - річні) | B12: 0.7170495609 | C12: 19.033 | D12: 0.009268
A13: ОВДП (12 - місячні) | B13: 0.3455238599 | C13: 9.171410155 | D13: 0.004466
A14: ОВДП (12 - річні) | B14: 1.375101612 | C14: 36.5 | D14: 0.017774
A15: ОВДП (13 - річні) | B15: 1.081244319 | C15: 28.700001 | D15: 0.013975
A16: ОВДП (14 - річні) | B16: 1.766911386 | C16: 46.9 | D16: 0.022838
A17: ОВДП (15 - річні) | B17: 3.520209529 | C17: 93.438657 | D17: 0.0455
A18: ОВДП (16 - річні) | B18: 0.4557706101 | C18: 12.097744 | D18: 0.005891
A19: ОВДП (17 - річні) | B19: 0.4557706101 | C19: 12.097744 | D19: 0.005891
A20: ОВДП (18 - місячні) | B20: 1.084112561 | C20: 28.77613418 | D20: 0.014013
A21: ОВДП (18 - річні) | B21: 0.4557706101 | C21: 12.097744 | D21: 0.005891
A22: ОВДП (19 - річні) | B22: 0.4557706101 | C22: 12.097744 | D22: 0.005891
A23: ОВДП (2 - річні) | B23: 2.030171243 | C23: 53.88783618 | D23: 0.026241
A24: ОВДП (20 - річні) | B24: 0.4557706101 | C24: 12.097744 | D24: 0.005891
A25: ОВДП (21-річні) | B25: 0.4557706101 | C25: 12.097744 | D25: 0.005891
A26: ОВДП (22-річні) | B26: 0.4557706101 | C26: 12.097744 | D26: 0.005891
A27: ОВДП (23-річні) | B27: 0.4557706101 | C27: 12.097744 | D27: 0.005891
A28: ОВДП (24-річні) | B28: 0.4557706101 | C28: 12.097744 | D28: 0.005891
A29: ОВДП (25-річні) | B29: 0.4557706101 | C29: 12.097744 | D29: 0.005891
A30: ОВДП (26-річні) | B30: 0.4557706101 | C30: 12.097744 | D30: 0.005891
A31: ОВДП (27-річні) | B31: 0.4557706101 | C31: 12.097744 | D31: 0.005891
A32: ОВДП (28-річні) | B32: 0.4557706101 | C32: 12.097744 | D32: 0.005891
A33: ОВДП (29-річні) | B33: 0.4557706101 | C33: 12.097744 | D33: 0.005891
A34: ОВДП (3 - місячні) | B34: 0.3008665438 | C34: 7.986049 | D34: 0.003889
A35: ОВДП (3 - річні) | B35: 1.90227767 | C35: 50.49309401 | D35: 0.024588
A36: ОВДП (30-річні) | B36: 0.4557708739 | C36: 12.097751 | D36: 0.005891
A37: ОВДП (4 - річні) | B37: 0.0011302205 | C37: 0.03 | D37: 1.5e-05
A38: ОВДП (5 - річні) | B38: 1.832846103 | C38: 48.6501377 | D38: 0.02369
A39: ОВДП (6 - місячні) | B39: 0.6218859886 | C39: 16.50702639 | D39: 0.008038
A40: ОВДП (6 - річні) | B40: 0.2185130646 | C40: 5.8001 | D40: 0.002824
A41: ОВДП (7 - річні) | B41: 0.6689385229 | C41: 17.755965 | D41: 0.008646
A42: ОВДП (8 - річні) | B42: 0.6592952932 | C42: 17.5 | D42: 0.008522
A43: ОВДП (9 - місячні) | B43: 0.1414007192 | C43: 3.753269 | D43: 0.001828
A44: ОВДП (9 - річні) | B44: 0.7308759251 | C44: 19.4 | D44: 0.009447
A45: 2. Заборгованість перед банківськими та іншими фінансовими установами | B45: =SUM(B$46:B$46) -> 0.08968470748 | C45: 2.380545405 | D45: 0.001159
A46: Національний банк України | B46: 0.08968470748 | C46: 2.380545405 | D46: 0.001159
A47: Зовнішній борг | B47: =B$48+B$55+B$61+B$63+B$69 -> 38.50539018 | C47: 1022.067555 | D47: 0.497696
A48: 1. Заборгованість за позиками, одержаними від міжнародних фінансових організацій | B48: =SUM(B$49:B$54) -> 14.46341432 | C48: 383.9095366 | D48: 0.186945
A49: Європейське Співтовариство | B49: 3.462201029 | C49: 91.89890878 | D49: 0.04475
A50: Європейський банк реконструкції та розвитку | B50: 0.6628573107 | C50: 17.59454839 | D50: 0.008568
A51: Європейський Інвестиційний Банк | B51: 0.7025265799 | C51: 18.64750935 | D51: 0.00908
A52: Міжнародний банк реконструкції та розвитку | B52: 4.846264304 | C52: 128.6367826 | D52: 0.06264
A53: Міжнародний Валютний Фонд | B53: 4.783054382 | C53: 126.9589705 | D53: 0.061823
A54: Фонд чистих технологій (МБРР) | B54: 0.00651070976 | C54: 0.1728169789 | D54: 8.4e-05
A55: 2. Заборгованість за позиками, одержаними від органів управління іноземних держав | B55: =SUM(B$56:B$60) -> 1.789294223 | C55: 47.4941187 | D55: 0.023128
A56: Канада | B56: 0.3100597649 | C56: 8.2300692 | D56: 0.004008
A57: Німеччина | B57: 0.2754226054 | C57: 7.310677997 | D57: 0.00356
A58: Росія | B58: 0.60585586 | C58: 16.08153078 | D58: 0.007831
A59: США | B59: 0.00617218311 | C59: 0.1638312992 | D59: 8e-05
A60: Японія | B60: 0.5917838101 | C60: 15.70800942 | D60: 0.007649
A61: 3. Заборгованість за позиками, одержаними від іноземних комерційних банків, інших іноземних фінансових установ | B61: =SUM(B$62:B$62) -> 6.299629e-05 | C61: 0.00167214153 | D61: 1e-06
A62: Chase Manhattan Bank Luxembourg S.A. | B62: 6.299629e-05 | C62: 0.00167214153 | D62: 1e-06
A63: 4. Заборгованість за випущеними цінними паперами на зовнішньому ринку | B63: =SUM(B$64:B$68) -> 20.467273 | C63: 543.2729176 | D63: 0.264546
A64: ОЗДП 2013 року | B64: 3 | C64: 79.630479 | D64: 0.038776
A65: ОЗДП 2014 року | B65: 1 | C65: 26.543493 | D65: 0.012925
A66: ОЗДП 2015 року | B66: 12.467273 | C66: 330.9249736 | D66: 0.161144
A67: ОЗДП 2016 року | B67: 1 | C67: 26.543493 | D67: 0.012925
A68: ОЗДП 2017 року | B68: 3 | C68: 79.630479 | D68: 0.038776
A69: 5. Заборгованість, не віднесена до інших категорій | B69: =SUM(B$70:B$70) -> 1.785345644 | C69: 47.3893096 | D69: 0.023076
A70: Міжнародний Валютний Фонд | B70: 1.785345644 | C70: 47.3893096 | D70: 0.023076
A71: Гарантований державою борг | B71: =B$72+B$85 -> 10.57712605 | C71: 280.7538713 | D71: 0.136713
A72: Внутрішній борг | B72: =B$73+B$79+B$83 -> 0.5160685483 | C72: 13.6982619 | D72: 0.006671
A73: 1. Заборгованість за випущеними цінними паперами на внутрішньому ринку | B73: =SUM(B$74:B$78) -> 0.3371828869 | C73: 8.9500116 | D73: 0.004359
A74: Державні цінні папери | B74: 4.3702e-07 | C74: 1.16e-05 | D74: 0
A75: Облігації ДІУ (10 - річні) | B75: 0.03767401675 | C75: 1 | D75: 0.000487
A76: Облігації ДІУ (5 - річні) | B76: 0.0753480335 | C76: 2 | D76: 0.000974
A77: Облігації ДІУ (7 - річні) | B77: 0.1130220503 | C77: 3 | D77: 0.001461
A78: Облігації Укравтодору (5 - річні) | B78: 0.1111383494 | C78: 2.95 | D78: 0.001437
A79: 2. Заборгованість перед банківськими та іншими фінансовими установами | B79: =SUM(B$80:B$82) -> 0.1788496959 | C79: 4.747295651 | D79: 0.002312
A80: ВАТ "Державний експортно-імпортний банк України" | B80: 0.02743850623 | C80: 0.7283137977 | D80: 0.000355
A81: ВАТ "Державний ощадний банк України" | B81: 0.1481859486 | C81: 3.933372688 | D81: 0.001915
A82: ПАТ АБ "Укргазбанк" | B82: 0.00322524111 | C82: 0.08560916483 | D82: 4.2e-05
A83: 3. Заборгованість, не віднесена до інших категорій | B83: =SUM(B$84:B$84) -> 3.59655e-05 | C83: 0.00095465 | D83: 0
A84: Інші кредитори | B84: 3.59655e-05 | C84: 0.00095465 | D84: 0
A85: Зовнішній борг | B85: =B$86+B$92+B$94+B$102+B$103 -> 10.0610575 | C85: 267.0556094 | D85: 0.130042
A86: 1. Заборгованість за позиками, одержаними від міжнародних фінансових організацій | B86: =SUM(B$87:B$91) -> 7.895579817 | C86: 209.5762676 | D86: 0.102052
A87: Європейське співтоватиство з атомної енергії | B87: 0.06276289052 | C87: 1.665946345 | D87: 0.000811
A88: Європейський банк реконструкції та розвитку | B88: 0.1379608815 | C88: 3.661963692 | D88: 0.001783
A89: Європейський Інвестиційний Банк | B89: 0.06037290051 | C89: 1.602507662 | D89: 0.00078
A90: Міжнародний банк реконструкції та розвитку | B90: 0.44967 | C90: 11.9358125 | D90: 0.005812
A91: Міжнародний Валютний Фонд | B91: 7.184813144 | C91: 190.7100374 | D91: 0.092866
A92: 2. Заборгованість за позиками, одержаними від органів управління іноземних держав | B92: =SUM(B$93:B$93) -> 0.07310838994 | C92: 1.940552037 | D92: 0.000945
A93: Канада | B93: 0.07310838994 | C93: 1.940552037 | D93: 0.000945
A94: 3. Заборгованість за позиками, одержаними від іноземних комерційних банків, інших іноземних фінансових установ | B94: =SUM(B$95:B$101) -> 1.973961614 | C94: 52.39583629 | D94: 0.025515
A95: CENTRAL STORAGE SAFETY PROJECT TRUST | B95: 0.05669059346 | C95: 1.504766371 | D95: 0.000733
A96: Citibank, N.A., Deutsche Bank AG | B96: 0.2841455738 | C96: 7.542216049 | D96: 0.003673
A97: Deutsche Bank AG London | B97: 0.03784707201 | C97: 1.004593491 | D97: 0.000489
A98: UniCredit Bank Austria AG | B98: 0.02618212504 | C98: 0.6949650526 | D98: 0.000338
A99: Державний банк розвитку КНР | B99: 0.04624 | C99: 1.227371116 | D99: 0.000598
A100: Експортно-імпортний банк Китаю | B100: 1.425 | C100: 37.82447752 | D100: 0.018419
A101: Експортно-імпортний банк Кореї | B101: 0.09785625 | C101: 2.597446687 | D101: 0.001265
A102: 4. Заборгованість за випущеними цінними паперами на зовнішньому ринку
A103: 5. Заборгованість, не віднесена до інших категорій | B103: =SUM(B$104:B$104) -> 0.1184076807 | C103: 3.142953444 | D103: 0.00153
A104: Міжнародний Валютний Фонд | B104: 0.1184076807 | C104: 3.142953444 | D104: 0.00153

Sheet MKT2_UAH
A2: Державний та гарантований державою борг України за поточний рік
E4: =VALUAH -> млрд. грн
B5: 2017-12-31 | C5: 2018-01-31 | D5: 2018-02-28 | E5: 2018-03-31
A6: Загальна сума державного та гарантованого державою боргу | B6: =B$7+B$70 -> 2141.690622 | C6: 2134.934323 | D6: 2068.839756 | E6: 2053.601257
A7: Державний борг | B7: =B$8+B$46 -> 1833.709865 | C7: 1832.93084 | D7: 1781.313045 | E7: 1772.847386
A8: Внутрішній борг | B8: =B$9+B$44 -> 753.3993865 | C8: 745.3749861 | D8: 744.9584249 | E8: 750.779831
A9: 1. Заборгованість за випущеними цінними паперами на внутрішньому ринку | B9: =SUM(B$10:B$43) -> 751.0188411 | C9: 742.9944407 | D9: 742.5778795 | E9: 748.3992856
A10: ОВДП (10 - річні) | B10: 62.650439 | C10: 62.650439 | D10: 62.650439 | E10: 62.650439
A11: ОВДП (11 - річні) | B11: 19.033 | C11: 19.033 | D11: 19.033 | E11: 19.033
A12: ОВДП (12 - місячні) | B12: 6.90279 | C12: 5.71344 | D12: 4.254576609 | E12: 9.171410155
A13: ОВДП (12 - річні) | B13: 36.5 | C13: 36.5 | D13: 36.5 | E13: 36.5
A14: ОВДП (13 - річні) | B14: 28.700001 | C14: 28.700001 | D14: 28.700001 | E14: 28.700001
A15: ОВДП (14 - річні) | B15: 46.9 | C15: 46.9 | D15: 46.9 | E15: 46.9
A16: ОВДП (15 - річні) | B16: 93.438657 | C16: 93.438657 | D16: 93.438657 | E16: 93.438657
A17: ОВДП (16 - річні) | B17: 12.097744 | C17: 12.097744 | D17: 12.097744 | E17: 12.097744
A18: ОВДП (17 - річні) | B18: 12.097744 | C18: 12.097744 | D18: 12.097744 | E18: 12.097744
A19: ОВДП (18 - місячні) | B19: 30.28291246 | C19: 30.40210182 | D19: 29.20766522 | E19: 28.77613418
A20: ОВДП (18 - річні) | B20: 12.097744 | C20: 12.097744 | D20: 12.097744 | E20: 12.097744
A21: ОВДП (19 - річні) | B21: 12.097744 | C21: 12.097744 | D21: 12.097744 | E21: 12.097744
A22: ОВДП (2 - річні) | B22: 71.60522481 | C22: 58.639344 | D22: 56.82580322 | E22: 53.88783618
A23: ОВДП (20 - річні) | B23: 12.097744 | C23: 12.097744 | D23: 12.097744 | E23: 12.097744
A24: ОВДП (21-річні) | B24: 12.097744 | C24: 12.097744 | D24: 12.097744 | E24: 12.097744
A25: ОВДП (22-річні) | B25: 12.097744 | C25: 12.097744 | D25: 12.097744 | E25: 12.097744
A26: ОВДП (23-річні) | B26: 12.097744 | C26: 12.097744 | D26: 12.097744 | E26: 12.097744
A27: ОВДП (24-річні) | B27: 12.097744 | C27: 12.097744 | D27: 12.097744 | E27: 12.097744
A28: ОВДП (25-річні) | B28: 12.097744 | C28: 12.097744 | D28: 12.097744 | E28: 12.097744
A29: ОВДП (26-річні) | B29: 12.097744 | C29: 12.097744 | D29: 12.097744 | E29: 12.097744
A30: ОВДП (27-річні) | B30: 12.097744 | C30: 12.097744 | D30: 12.097744 | E30: 12.097744
A31: ОВДП (28-річні) | B31: 12.097744 | C31: 12.097744 | D31: 12.097744 | E31: 12.097744
A32: ОВДП (29-річні) | B32: 12.097744 | C32: 12.097744 | D32: 12.097744 | E32: 12.097744
A33: ОВДП (3 - місячні) | B33: 0.545 | C33: 2.747216 | D33: 6.346596 | E33: 7.986049
A34: ОВДП (3 - річні) | B34: 46.63242848 | C34: 47.51178794 | D34: 47.94808129 | E34: 50.49309401
A35: ОВДП (30-річні) | B35: 12.097751 | C35: 12.097751 | D35: 12.097751 | E35: 12.097751
A36: ОВДП (4 - річні) | B36: 0.03 | C36: 0.03 | D36: 0.03 | E36: 0.03
A37: ОВДП (5 - річні) | B37: 49.6280334 | C37: 52.5974406 | D37: 51.4687307 | E37: 48.6501377
A38: ОВДП (6 - місячні) | B38: 10.8756279 | C38: 12.83628638 | D38: 15.92700246 | E38: 16.50702639
A39: ОВДП (6 - річні) | B39: 7.8001 | C39: 5.8001 | D39: 5.8001 | E39: 5.8001
A40: ОВДП (7 - річні) | B40: 19.72846 | C40: 19.72846 | D40: 17.75346 | E40: 17.755965
A41: ОВДП (8 - річні) | B41: 18.9 | C41: 18.9 | D41: 18.9 | E41: 17.5
A42: ОВДП (9 - місячні) | B42: 0 | C42: 0 | D42: 0.0276 | E42: 3.753269
A43: ОВДП (9 - річні) | B43: 19.4 | C43: 19.4 | D43: 19.4 | E43: 19.4
A44: 2. Заборгованість перед банківськими та іншими фінансовими установами | B44: =SUM(B$45:B$45) -> 2.380545405 | C44: 2.380545405 | D44: 2.380545405 | E44: 2.380545405
A45: Національний банк України | B45: 2.380545405 | C45: 2.380545405 | D45: 2.380545405 | E45: 2.380545405
A46: Зовнішній борг | B46: =B$47+B$54+B$60+B$62+B$68 -> 1080.310478 | C46: 1087.555854 | D46: 1036.35462 | E46: 1022.067555
A47: 1. Заборгованість за позиками, одержаними від міжнародних фінансових організацій | B47: =SUM(B$48:B$53) -> 407.4680194 | C47: 413.8546305 | D47: 388.6560152 | E47: 383.9095366
A48: Європейське Співтовариство | B48: 94.12214144 | C48: 97.75911039 | D48: 93.14858322 | E48: 91.89890878
A49: Європейський банк реконструкції та розвитку | B49: 18.00200891 | C49: 18.72080686 | D49: 17.58360641 | E49: 17.59454839
A50: Європейський Інвестиційний Банк | B50: 19.35682669 | C50: 20.10479286 | D50: 18.9010849 | E50: 18.64750935
A51: Міжнародний банк реконструкції та розвитку | B51: 137.8725235 | C51: 136.2541969 | D51: 130.674741 | E51: 128.6367826
A52: Міжнародний Валютний Фонд | B52: 137.9472184 | C52: 140.8487712 | D52: 128.1873694 | E52: 126.9589705
A53: Фонд чистих технологій (МБРР) | B53: 0.1673005701 | C53: 0.1669522739 | D53: 0.1606303093 | E53: 0.1728169789
A54: 2. Заборгованість за позиками, одержаними від органів управління іноземних держав | B54: =SUM(B$55:B$59) -> 49.29623741 | C54: 50.31843628 | D54: 48.29322324 | E54: 47.4941187
A55: Канада | B55: 8.90303 | C55: 9.0929744 | D55: 8.4742028 | E55: 8.2300692
A56: Німеччина | B56: 7.487539054 | C56: 7.776864675 | D56: 7.410091228 | E56: 7.310677997
A57: Росія | B57: 17.00469153 | C57: 16.96929016 | D57: 16.3267158 | E57: 16.08153078
A58: США | B58: 0.1732360397 | C58: 0.1728753867 | D58: 0.1663291323 | E58: 0.1638312992
A59: Японія | B59: 15.72774079 | C59: 16.30643166 | D59: 15.91588428 | E59: 15.70800942
A60: 3. Заборгованість за позиками, одержаними від іноземних комерційних банків, інших іноземних фінансових установ | B60: =SUM(B$61:B$61) -> 0.00171259423 | C60: 0.0017787705 | D60: 0.00169487991 | E60: 0.00167214153
A61: Chase Manhattan Bank Luxembourg S.A. | B61: 0.00171259423 | C61: 0.0017787705 | D61: 0.00169487991 | E61: 0.00167214153
A62: 4. Заборгованість за випущеними цінними паперами на зовнішньому ринку | B62: =SUM(B$63:B$67) -> 574.4595155 | C62: 573.2635718 | D62: 551.5558592 | E62: 543.2729176
A63: ОЗДП 2013 року | B63: 84.201669 | C63: 84.026373 | D63: 80.844555 | E63: 79.630479
A64: ОЗДП 2014 року | B64: 28.067223 | C64: 28.008791 | D64: 26.948185 | E64: 26.543493
A65: ОЗДП 2015 року | B65: 349.9217315 | C65: 349.1932438 | D65: 335.9703792 | E65: 330.9249736
A66: ОЗДП 2016 року | B66: 28.067223 | C66: 28.008791 | D66: 26.948185 | E66: 26.543493
A67: ОЗДП 2017 року | B67: 84.201669 | C67: 84.026373 | D67: 80.844555 | E67: 79.630479
A68: 5. Заборгованість, не віднесена до інших категорій | B68: =SUM(B$69:B$69) -> 49.0849934 | C68: 50.11743686 | D68: 47.84782761 | E68: 47.3893096
A69: Міжнародний Валютний Фонд | B69: 49.0849934 | C69: 50.11743686 | D69: 47.84782761 | E69: 47.3893096
A70: Гарантований державою борг | B70: =B$71+B$84 -> 307.9807571 | C70: 302.0034823 | D70: 287.5267105 | E70: 280.7538713
A71: Внутрішній борг | B71: =B$72+B$78+B$82 -> 13.27955451 | C71: 13.29172784 | D71: 13.64109125 | E71: 13.6982619
A72: 1. Заборгованість за випущеними цінними паперами на внутрішньому ринку | B72: =SUM(B$73:B$77) -> 8.9500116 | C72: 8.9500116 | D72: 8.9500116 | E72: 8.9500116
A73: Державні цінні папери | B73: 1.16e-05 | C73: 1.16e-05 | D73: 1.16e-05 | E73: 1.16e-05
A74: Облігації ДІУ (10 - річні) | B74: 1 | C74: 1 | D74: 1 | E74: 1
A75: Облігації ДІУ (5 - річні) | B75: 2 | C75: 2 | D75: 2 | E75: 2
A76: Облігації ДІУ (7 - річні) | B76: 3 | C76: 3 | D76: 3 | E76: 3
A77: Облігації Укравтодору (5 - річні) | B77: 2.95 | C77: 2.95 | D77: 2.95 | E77: 2.95
A78: 2. Заборгованість перед банківськими та іншими фінансовими установами | B78: =SUM(B$79:B$81) -> 4.328588255 | C78: 4.340761591 | D78: 4.690125003 | E78: 4.747295651
A79: ВАТ "Державний експортно-імпортний банк України" | B79: 0.3414693782 | C79: 0.3455083775 | D79: 0.6709273 | E79: 0.7283137977
A80: ВАТ "Державний ощадний банк України" | B80: 3.897676447 | C80: 3.909644049 | D80: 3.933588538 | E80: 3.933372688
A81: ПАТ АБ "Укргазбанк" | B81: 0.08944243001 | C81: 0.08560916483 | D81: 0.08560916483 | E81: 0.08560916483
A82: 3. Заборгованість, не віднесена до інших категорій | B82: =SUM(B$83:B$83) -> 0.00095465 | C82: 0.00095465 | D82: 0.00095465 | E82: 0.00095465
A83: Інші кредитори | B83: 0.00095465 | C83: 0.00095465 | D83: 0.00095465 | E83: 0.00095465
A84: Зовнішній борг | B84: =B$85+B$91+B$93+B$101+B$102 -> 294.7012026 | C84: 288.7117545 | D84: 273.8856192 | E84: 267.0556094
A85: 1. Заборгованість за позиками, одержаними від міжнародних фінансових організацій | B85: =SUM(B$86:B$90) -> 229.7137248 | C85: 225.7222324 | D85: 212.3242659 | E85: 209.5762676
A86: Європейське співтоватиство з атомної енергії | B86: 1.772586034 | C86: 1.839757001 | D86: 1.75329161 | E86: 1.665946345
A87: Європейський банк реконструкції та розвитку | B87: 11.45411849 | C87: 3.113013317 | D87: 3.448630646 | E87: 3.661963692
A88: Європейський Інвестиційний Банк | B88: 1.17233984 | C88: 1.217640165 | D88: 1.16021367 | E88: 1.602507662
A89: Міжнародний банк реконструкції та розвитку | B89: 12.62098817 | C89: 12.59471305 | D89: 12.11779035 | E89: 11.9358125
A90: Міжнародний Валютний Фонд | B90: 202.6936923 | C90: 206.9571089 | D90: 193.8443396 | E90: 190.7100374
A91: 2. Заборгованість за позиками, одержаними від органів управління іноземних держав | B91: =SUM(B$92:B$92) -> 2.735932646 | C91: 2.047677614 | D91: 1.970138417 | E91: 1.940552037
A92: Канада | B92: 2.735932646 | C92: 2.047677614 | D92: 1.970138417 | E92: 1.940552037
A93: 3. Заборгованість за позиками, одержаними від іноземних комерційних банків, інших іноземних фінансових установ | B93: =SUM(B$94:B$100) -> 58.99613058 | C93: 57.61795619 | D93: 56.41785166 | E93: 52.39583629
A94: CENTRAL STORAGE SAFETY PROJECT TRUST | B94: 0 | C94: 0 | D94: 1.5277086 | E94: 1.504766371
A95: Citibank, N.A., Deutsche Bank AG | B95: 10.58962563 | C95: 11.66992365 | D95: 10.70060614 | E95: 7.542216049
A96: Deutsche Bank AG London | B96: 1.041412313 | C96: 1.112405788 | D96: 1.05994237 | E96: 1.004593491
A97: UniCredit Bank Austria AG | B97: 0.8541333063 | C97: 0.8871378286 | D97: 0.8452985254 | E97: 0.6949650526
A98: Державний банк розвитку КНР | B98: 1.297828392 | C98: 1.295126496 | D98: 1.246084074 | E98: 1.227371116
A99: Експортно-імпортний банк Китаю | B99: 42.46657775 | C99: 39.91252718 | D99: 38.40116363 | E99: 37.82447752
A100: Експортно-імпортний банк Кореї | B100: 2.746553191 | C100: 2.740835254 | D100: 2.637048328 | E100: 2.597446687
A101: 4. Заборгованість за випущеними цінними паперами на зовнішньому ринку
A102: 5. Заборгованість, не віднесена до інших категорій | B102: =SUM(B$103:B$103) -> 3.255414573 | C102: 3.32388828 | D102: 3.173363272 | E102: 3.142953444
A103: Міжнародний Валютний Фонд | B103: 3.255414573 | C103: 3.32388828 | D103: 3.173363272 | E103: 3.142953444

Sheet MKT2_USD
A2: Державний та гарантований державою борг України за поточний рік
E4: =VALUSD -> млрд. дол. США
B5: 2017-12-31 | C5: 2018-01-31 | D5: 2018-02-28 | E5: 2018-03-31
A6: Загальна сума державного та гарантованого державою боргу | B6: =B$7+B$70 -> 76.30575429 | C6: 76.22372285 | D6: 76.77102393 | E6: 77.36740816
A7: Державний борг | B7: =B$8+B$46 -> 65.33278568 | C7: 65.44126951 | D7: 66.10141073 | E7: 66.79028211
A8: Внутрішній борг | B8: =B$9+B$44 -> 26.84267647 | C8: 26.61217995 | D8: 27.64410386 | E8: 28.28489193
A9: 1. Заборгованість за випущеними цінними паперами на внутрішньому ринку | B9: =SUM(B$10:B$43) -> 26.75786062 | C9: 26.52718715 | D9: 27.55576598 | E9: 28.19520723
A10: ОВДП (10 - річні) | B10: 2.232156669 | C10: 2.236813399 | D10: 2.324848186 | E10: 2.360293689
A11: ОВДП (11 - річні) | B11: 0.6781219503 | C11: 0.6795366498 | D11: 0.7062813321 | E11: 0.7170495609
A12: ОВДП (12 - місячні) | B12: 0.2459377617 | C12: 0.2039873838 | D12: 0.1578798946 | E12: 0.3455238599
A13: ОВДП (12 - річні) | B13: 1.300449282 | C13: 1.303162282 | D13: 1.354451144 | E13: 1.375101612
A14: ОВДП (13 - річні) | B14: 1.022545088 | C14: 1.024678323 | D14: 1.065006827 | E14: 1.081244319
A15: ОВДП (14 - річні) | B15: 1.670988256 | C15: 1.674474275 | D15: 1.740376949 | E15: 1.766911386
A16: ОВДП (15 - річні) | B16: 3.329102313 | C16: 3.336047493 | D16: 3.467345092 | E16: 3.520209529
A17: ОВДП (16 - річні) | B17: 0.4310274657 | C17: 0.4319266762 | D17: 0.4489261151 | E17: 0.4557706101
A18: ОВДП (17 - річні) | B18: 0.4310274657 | C18: 0.4319266762 | D18: 0.4489261151 | E18: 0.4557706101
A19: ОВДП (18 - місячні) | B19: 1.07894224 | C19: 1.085448559 | D19: 1.083845358 | E19: 1.084112561
A20: ОВДП (18 - річні) | B20: 0.4310274657 | C20: 0.4319266762 | D20: 0.4489261151 | E20: 0.4557706101
A21: ОВДП (19 - річні) | B21: 0.4310274657 | C21: 0.4319266762 | D21: 0.4489261151 | E21: 0.4557706101
A22: ОВДП (2 - річні) | B22: 2.551204471 | C22: 2.093604969 | D22: 2.108706142 | E22: 2.030171243
A23: ОВДП (20 - річні) | B23: 0.4310274657 | C23: 0.4319266762 | D23: 0.4489261151 | E23: 0.4557706101
A24: ОВДП (21-річні) | B24: 0.4310274657 | C24: 0.4319266762 | D24: 0.4489261151 | E24: 0.4557706101
A25: ОВДП (22-річні) | B25: 0.4310274657 | C25: 0.4319266762 | D25: 0.4489261151 | E25: 0.4557706101
A26: ОВДП (23-річні) | B26: 0.4310274657 | C26: 0.4319266762 | D26: 0.4489261151 | E26: 0.4557706101
A27: ОВДП (24-річні) | B27: 0.4310274657 | C27: 0.4319266762 | D27: 0.4489261151 | E27: 0.4557706101
A28: ОВДП (25-річні) | B28: 0.4310274657 | C28: 0.4319266762 | D28: 0.4489261151 | E28: 0.4557706101
A29: ОВДП (26-річні) | B29: 0.4310274657 | C29: 0.4319266762 | D29: 0.4489261151 | E29: 0.4557706101
A30: ОВДП (27-річні) | B30: 0.4310274657 | C30: 0.4319266762 | D30: 0.4489261151 | E30: 0.4557706101
A31: ОВДП (28-річні) | B31: 0.4310274657 | C31: 0.4319266762 | D31: 0.4489261151 | E31: 0.4557706101
A32: ОВДП (29-річні) | B32: 0.4310274657 | C32: 0.4319266762 | D32: 0.4489261151 | E32: 0.4557706101
A33: ОВДП (3 - місячні) | B33: 0.01941766737 | C33: 0.09808406225 | D33: 0.2355110743 | E33: 0.3008665438
A34: ОВДП (3 - річні) | B34: 1.661455018 | C34: 1.696316986 | D34: 1.779269412 | E34: 1.90227767
A35: ОВДП (30-річні) | B35: 0.4310277151 | C35: 0.4319269261 | D35: 0.4489263748 | E35: 0.4557708739
A36: ОВДП (4 - річні) | B36: 0.00106886242 | C36: 0.00107109229 | D36: 0.00111324752 | E36: 0.0011302205
A37: ОВДП (5 - річні) | B37: 1.768184669 | C37: 1.877890431 | D37: 1.909914553 | E37: 1.832846103
A38: ОВДП (6 - місячні) | B38: 0.387485 | C38: 0.4582949111 | D38: 0.5910231975 | E38: 0.6218859886
A39: ОВДП (6 - річні) | B39: 0.277907793 | C39: 0.2070814124 | D39: 0.2152315638 | E39: 0.2185130646
A40: ОВДП (7 - річні) | B40: 0.702900319 | C40: 0.7043667111 | D40: 0.6587998413 | E40: 0.6689385229
A41: ОВДП (8 - річні) | B41: 0.6733833269 | C41: 0.6747881406 | D41: 0.7013459348 | E41: 0.6592952932
A42: ОВДП (9 - місячні) | B42: 0 | C42: 0 | D42: 0.00102418771 | E42: 0.1414007192
A43: ОВДП (9 - річні) | B43: 0.6911977006 | C43: 0.6926396787 | D43: 0.7199000601 | E43: 0.7308759251
A44: 2. Заборгованість перед банківськими та іншими фінансовими установами | B44: =SUM(B$45:B$45) -> 0.08481585104 | C44: 0.08499279405 | D44: 0.08833787526 | E44: 0.08968470748
A45: Національний банк України | B45: 0.08481585104 | C45: 0.08499279405 | D45: 0.08833787526 | E45: 0.08968470748
A46: Зовнішній борг | B46: =B$47+B$54+B$60+B$62+B$68 -> 38.4901092 | C46: 38.82908956 | D46: 38.45730687 | E46: 38.50539018
A47: 1. Заборгованість за позиками, одержаними від міжнародних фінансових організацій | B47: =SUM(B$48:B$53) -> 14.51757516 | C47: 14.77588342 | D47: 14.42234478 | E47: 14.46341432
A48: Європейське Співтовариство | B48: 3.353454007 | C48: 3.49030097 | D48: 3.456580962 | E48: 3.462201029
A49: Європейський банк реконструкції та розвитку | B49: 0.6413890292 | C49: 0.6683903942 | D49: 0.6524968716 | E49: 0.6628573107
A50: Європейський Інвестиційний Банк | B50: 0.6896594896 | C50: 0.7178029518 | D50: 0.7013861935 | E50: 0.7025265799
A51: Міжнародний банк реконструкції та розвитку | B51: 4.912225319 | C51: 4.864693978 | D51: 4.849111024 | E51: 4.846264304
A52: Міжнародний Валютний Фонд | B52: 4.914886605 | C52: 5.028734414 | D52: 4.756809016 | E52: 4.783054382
A53: Фонд чистих технологій (МБРР) | B53: 0.00596070976 | C53: 0.00596070976 | D53: 0.00596070976 | E53: 0.00651070976
A54: 2. Заборгованість за позиками, одержаними від органів управління іноземних держав | B54: =SUM(B$55:B$59) -> 1.756363193 | C54: 1.796522966 | D54: 1.792077026 | E54: 1.789294223
A55: Канада | B55: 0.3172038074 | C55: 0.3246471581 | D55: 0.3144628404 | E55: 0.3100597649
A56: Німеччина | B56: 0.266771638 | C56: 0.2776579923 | D56: 0.2749755217 | E56: 0.2754226054
A57: Росія | B57: 0.60585586 | C57: 0.60585586 | D57: 0.60585586 | E57: 0.60585586
A58: США | B58: 0.00617218311 | C58: 0.00617218311 | D58: 0.00617218311 | E58: 0.00617218311
A59: Японія | B59: 0.5603597046 | C59: 0.5821897725 | D59: 0.5906106212 | E59: 0.5917838101
A60: 3. Заборгованість за позиками, одержаними від іноземних комерційних банків, інших іноземних фінансових установ | B60: =SUM(B$61:B$61) -> 6.101759e-05 | C60: 6.350758e-05 | D60: 6.289403e-05 | E60: 6.299629e-05
A61: Chase Manhattan Bank Luxembourg S.A. | B61: 6.101759e-05 | C61: 6.350758e-05 | D61: 6.289403e-05 | E61: 6.299629e-05
A62: 4. Заборгованість за випущеними цінними паперами на зовнішньому ринку | B62: =SUM(B$63:B$67) -> 20.467273 | C62: 20.467273 | D62: 20.467273 | E62: 20.467273
A63: ОЗДП 2013 року | B63: 3 | C63: 3 | D63: 3 | E63: 3
A64: ОЗДП 2014 року | B64: 1 | C64: 1 | D64: 1 | E64: 1
A65: ОЗДП 2015 року | B65: 12.467273 | C65: 12.467273 | D65: 12.467273 | E65: 12.467273
A66: ОЗДП 2016 року | B66: 1 | C66: 1 | D66: 1 | E66: 1
A67: ОЗДП 2017 року | B67: 3 | C67: 3 | D67: 3 | E67: 3
A68: 5. Заборгованість, не віднесена до інших категорій | B68: =SUM(B$69:B$69) -> 1.748836834 | C68: 1.789346668 | D68: 1.775549174 | E68: 1.785345644
A69: Міжнародний Валютний Фонд | B69: 1.748836834 | C69: 1.789346668 | D69: 1.775549174 | E69: 1.785345644
A70: Гарантований державою борг | B70: =B$71+B$84 -> 10.97296861 | C70: 10.78245335 | D70: 10.6696132 | E70: 10.57712605
A71: Внутрішній борг | B71: =B$72+B$78+B$82 -> 0.4731338938 | C71: 0.4745555722 | D71: 0.5061970316 | E71: 0.5160685483
A72: 1. Заборгованість за випущеними цінними паперами на внутрішньому ринку | B72: =SUM(B$73:B$77) -> 0.318877703 | C72: 0.3195429463 | D72: 0.3321192726 | E72: 0.3371828869
A73: Державні цінні папери | B73: 4.1329e-07 | C73: 4.1416e-07 | D73: 4.3046e-07 | E73: 4.3702e-07
A74: Облігації ДІУ (10 - річні) | B74: 0.03562874745 | C74: 0.03570307622 | D74: 0.03710825052 | E74: 0.03767401675
A75: Облігації ДІУ (5 - річні) | B75: 0.0712574949 | C75: 0.07140615244 | D75: 0.07421650104 | E75: 0.0753480335
A76: Облігації ДІУ (7 - річні) | B76: 0.1068862423 | C76: 0.1071092287 | D76: 0.1113247516 | E76: 0.1130220503
A77: Облігації Укравтодору (5 - річні) | B77: 0.105104805 | C77: 0.1053240749 | D77: 0.109469339 | E77: 0.1111383494
A78: 2. Заборгованість перед банківськими та іншими фінансовими установами | B78: =SUM(B$79:B$81) -> 0.1542221778 | C78: 0.1549785419 | D78: 0.1740423336 | E78: 0.1788496959
A79: ВАТ "Державний експортно-імпортний банк України" | B79: 0.01216612625 | C79: 0.01233571194 | D79: 0.02489693833 | E79: 0.02743850623
A80: ВАТ "Державний ощадний банк України" | B80: 0.1388693298 | C80: 0.1395863195 | D80: 0.1459685889 | E80: 0.1481859486
A81: ПАТ АБ "Укргазбанк" | B81: 0.00318672175 | C81: 0.00305651054 | D81: 0.00317680633 | E81: 0.00322524111
A82: 3. Заборгованість, не віднесена до інших категорій | B82: =SUM(B$83:B$83) -> 3.401298e-05 | C82: 3.408394e-05 | D82: 3.542539e-05 | E82: 3.59655e-05
A83: Інші кредитори | B83: 3.401298e-05 | C83: 3.408394e-05 | D83: 3.542539e-05 | E83: 3.59655e-05
A84: Зовнішній борг | B84: =B$85+B$91+B$93+B$101+B$102 -> 10.49983472 | C84: 10.30789778 | D84: 10.16341617 | E84: 10.0610575
A85: 1. Заборгованість за позиками, одержаними від міжнародних фінансових організацій | B85: =SUM(B$86:B$90) -> 8.184412287 | C85: 8.058978068 | D85: 7.878982049 | E85: 7.895579817
A86: Європейське співтоватиство з атомної енергії | B86: 0.06315502013 | C86: 0.06568498444 | D86: 0.06506158429 | E86: 0.06276289052
A87: Європейський банк реконструкції та розвитку | B87: 0.4080958951 | C87: 0.1111441518 | D87: 0.1279726499 | E87: 0.1379608815
A88: Європейський Інвестиційний Банк | B88: 0.04176900009 | C88: 0.04347349962 | D88: 0.04305349952 | E88: 0.06037290051
A89: Міжнародний банк реконструкції та розвитку | B89: 0.44967 | C89: 0.44967 | D89: 0.44967 | E89: 0.44967
A90: Міжнародний Валютний Фонд | B90: 7.221722372 | C90: 7.389005433 | D90: 7.193224315 | E90: 7.184813144
A91: 2. Заборгованість за позиками, одержаними від органів управління іноземних держав | B91: =SUM(B$92:B$92) -> 0.09747785328 | C91: 0.07310838994 | D91: 0.07310838994 | E91: 0.07310838994
A92: Канада | B92: 0.09747785328 | C92: 0.07310838994 | D92: 0.07310838994 | E92: 0.07310838994
A93: 3. Заборгованість за позиками, одержаними від іноземних комерційних банків, інших іноземних фінансових установ | B93: =SUM(B$94:B$100) -> 2.101958237 | C93: 2.057138282 | D93: 2.093567773 | E93: 1.973961614
A94: CENTRAL STORAGE SAFETY PROJECT TRUST | B94: 0 | C94: 0 | D94: 0.05669059346 | E94: 0.05669059346
A95: Citibank, N.A., Deutsche Bank AG | B95: 0.3772950971 | C95: 0.4166521736 | D95: 0.3970807732 | E95: 0.2841455738
A96: Deutsche Bank AG London | B96: 0.0371042163 | C96: 0.03971630864 | D96: 0.03933260699 | E96: 0.03784707201
A97: UniCredit Bank Austria AG | B97: 0.03043169986 | C97: 0.03167354951 | D97: 0.03136754944 | E97: 0.02618212504
A98: Державний банк розвитку КНР | B98: 0.04624 | C98: 0.04624 | D98: 0.04624 | E98: 0.04624
A99: Експортно-імпортний банк Китаю | B99: 1.513030974 | C99: 1.425 | D99: 1.425 | E99: 1.425
A100: Експортно-імпортний банк Кореї | B100: 0.09785625 | C100: 0.09785625 | D100: 0.09785625 | E100: 0.09785625
A101: 4. Заборгованість за випущеними цінними паперами на зовнішньому ринку
A102: 5. Заборгованість, не віднесена до інших категорій | B102: =SUM(B$103:B$103) -> 0.1159863437 | C102: 0.1186730366 | D102: 0.1177579593 | E102: 0.1184076807
A103: Міжнародний Валютний Фонд | B103: 0.1159863437 | C103: 0.1186730366 | D103: 0.1177579593 | E103: 0.1184076807

Sheet MT_ALL (hidden)
A2: Державний та гарантований державою борг України за поточний рік
A4: =$A$2 & " (" &E4 & ")" -> Державний та гарантований державою борг України за поточний рік (млрд. грн) | E4: =VALUAH -> млрд. грн
B5: 2017-12-31 | C5: 2018-01-31 | D5: 2018-02-28 | E5: 2018-03-31
A6: Загальна сума державного та гарантованого державою боргу | B6: =SUM(B7:B8) -> 2141.690622 | C6: 2134.934323 | D6: 2068.839756 | E6: 2053.601257
A7: Внутрішній борг | B7: 766.678941 | C7: 758.666714 | D7: 758.5995162 | E7: 764.4780929
A8: Зовнішній борг | B8: 1375.011681 | C8: 1376.267609 | D8: 1310.240239 | E8: 1289.123164
A10: =$A$2 & " (" &E10 & ")" -> Державний та гарантований державою борг України за поточний рік (млрд. дол. США) | E10: =VALUSD -> млрд. дол. США
B11: 2017-12-31 | C11: 2018-01-31 | D11: 2018-02-28 | E11: 2018-03-31
A12: Загальна сума державного та гарантованого державою боргу | B12: =SUM(B13:B14) -> 76.30575429 | C12: 76.22372285 | D12: 76.77102393 | E12: 77.36740816
A13: Внутрішній борг | B13: 27.31581037 | C13: 27.08673552 | D13: 28.15030089 | E13: 28.80096048
A14: Зовнішній борг | B14: 48.98994393 | C14: 49.13698734 | D14: 48.62072304 | E14: 48.56644768
E16: %%
B17: 2017-12-31 | C17: 2018-01-31 | D17: 2018-02-28 | E17: 2018-03-31
A18: Загальна сума державного та гарантованого державою боргу | B18: =SUM(B19:B20) -> 1 | C18: 1 | D18: 1 | E18: 1
A19: Внутрішній борг | B19: 0.357978 | C19: 0.355358 | D19: 0.366679 | E19: 0.372262
A20: Зовнішній борг | B20: 0.642022 | C20: 0.644642 | D20: 0.633321 | E20: 0.627738

Sheet MTM_ALL (hidden)
A2: Державний та гарантований державою борг України за поточний рік
E4: млрд. грн.
B5: =MT_ALL!B5 -> 2017-12-31 | C5: =MT_ALL!C5 -> 2018-01-31 | D5: =MT_ALL!D5 -> 2018-02-28 | E5: =MT_ALL!E5 -> 2018-03-31
A6: =MT_ALL!A6 -> Загальна сума державного та гарантованого державою боргу | B6: =SUM(B7:B8) -> 2141.690622 | C6: 2134.934323 | D6: 2068.839756 | E6: 2053.601257
A7: =MT_ALL!A7 -> Внутрішній борг | B7: =MT_ALL!B7/DMLMLR -> 766.678941 | C7: =MT_ALL!C7/DMLMLR -> 758.666714 | D7: =MT_ALL!D7/DMLMLR -> 758.5995162 | E7: =MT_ALL!E7/DMLMLR -> 764.4780929
A8: =MT_ALL!A8 -> Зовнішній борг | B8: =MT_ALL!B8/DMLMLR -> 1375.011681 | C8: =MT_ALL!C8/DMLMLR -> 1376.267609 | D8: =MT_ALL!D8/DMLMLR -> 1310.240239 | E8: =MT_ALL!E8/DMLMLR -> 1289.123164
E10: млрд. дол.США
B11: =MT_ALL!B11 -> 2017-12-31 | C11: =MT_ALL!C11 -> 2018-01-31 | D11: =MT_ALL!D11 -> 2018-02-28 | E11: =MT_ALL!E11 -> 2018-03-31
A12: =MT_ALL!A12 -> Загальна сума державного та гарантованого державою боргу | B12: =SUM(B13:B14) -> 76.30575429 | C12: 76.22372285 | D12: 76.77102393 | E12: 77.36740816
A13: =MT_ALL!A13 -> Внутрішній борг | B13: =MT_ALL!B13/DMLMLR -> 27.31581037 | C13: =MT_ALL!C13/DMLMLR -> 27.08673552 | D13: =MT_ALL!D13/DMLMLR -> 28.15030089 | E13: =MT_ALL!E13/DMLMLR -> 28.80096048
A14: =MT_ALL!A14 -> Зовнішній борг | B14: =MT_ALL!B14/DMLMLR -> 48.98994393 | C14: =MT_ALL!C14/DMLMLR -> 49.13698734 | D14: =MT_ALL!D14/DMLMLR -> 48.62072304 | E14: =MT_ALL!E14/DMLMLR -> 48.56644768
E16: %%
B17: =MT_ALL!B17 -> 2017-12-31 | C17: =MT_ALL!C17 -> 2018-01-31 | D17: =MT_ALL!D17 -> 2018-02-28 | E17: =MT_ALL!E17 -> 2018-03-31
A18: =MT_ALL!A18 -> Загальна сума державного та гарантованого державою боргу | B18: =SUM(B19:B20) -> 1 | C18: 1 | D18: 1 | E18: 1
A19: =MT_ALL!A19 -> Внутрішній борг | B19: =MT_ALL!B19 -> 0.357978 | C19: =MT_ALL!C19 -> 0.355358 | D19: =MT_ALL!D19 -> 0.366679 | E19: =MT_ALL!E19 -> 0.372262
A20: =MT_ALL!A20 -> Зовнішній борг | B20: =MT_ALL!B20 -> 0.642022 | C20: =MT_ALL!C20 -> 0.644642 | D20: =MT_ALL!D20 -> 0.633321 | E20: =MT_ALL!E20 -> 0.627738

Sheet MK_ALL (hidden)
A2: Державний та гарантований державою борг України за поточний рік
A4: =$A$2 & " (" &E4 & ")" -> Державний та гарантований державою борг України за поточний рік (млрд. грн) | E4: =VALUAH -> млрд. грн
B5: 2017-12-31 | C5: 2018-01-31 | D5: 2018-02-28 | E5: 2018-03-31
A6: Загальна сума державного та гарантованого державою боргу | B6: =SUM(B7:B8) -> 2141.690622 | C6: 2134.934323 | D6: 2068.839756 | E6: 2053.601257
A7: Державний борг | B7: 1833.709865 | C7: 1832.93084 | D7: 1781.313045 | E7: 1772.847386
A8: Гарантований державою борг | B8: 307.9807571 | C8: 302.0034823 | D8: 287.5267105 | E8: 280.7538713
A10: =$A$2 & " (" &E10 & ")" -> Державний та гарантований державою борг України за поточний рік (млрд. дол. США) | E10: =VALUSD -> млрд. дол. США
B11: 2017-12-31 | C11: 2018-01-31 | D11: 2018-02-28 | E11: 2018-03-31
A12: Загальна сума державного та гарантованого державою боргу | B12: =SUM(B13:B14) -> 76.30575429 | C12: 76.22372285 | D12: 76.77102393 | E12: 77.36740816
A13: Державний борг | B13: 65.33278568 | C13: 65.44126951 | D13: 66.10141073 | E13: 66.79028211
A14: Гарантований державою борг | B14: 10.97296861 | C14: 10.78245335 | D14: 10.6696132 | E14: 10.57712605
E16: %%
B17: 2017-12-31 | C17: 2018-01-31 | D17: 2018-02-28 | E17: 2018-03-31
A18: Загальна сума державного та гарантованого державою боргу | B18: =SUM(B19:B20) -> 1 | C18: 1 | D18: 1 | E18: 1
A19: Державний борг | B19: 0.856197 | C19: 0.858542 | D19: 0.86102 | E19: 0.863287
A20: Гарантований державою борг | B20: 0.143803 | C20: 0.141458 | D20: 0.13898 | E20: 0.136713

Sheet SRATE_M (hidden)
A2: ="Державний та гарантований державою борг України за станом на " & TEXT(DREPORTDATE,"dd.MM.yyyy")&" (за видами відсоткових ставок)" -> Державний та гарантований державою борг України за станом на 31.03.2018 (за видами відсоткових ставок)
D4: =VALVAL -> млрд. одиниць
B5: дол.США | C5: грн. | D5: %
A6: Загальна сума державного та гарантованого державою боргу | B6: =SUM(B$7+ B$8) -> 77.36740816 | C6: 2053.601257 | D6: 1
A7: Борг, по якому сплата відсотків здійснюється за плаваючими процентними ставками | B7: 28.17129504 | C7: 747.7645726 | D7: 0.364124
A8: Борг, по якому сплата відсотків здійснюється за фіксованими процентними ставками | B8: 49.19611313 | C8: 1305.836684 | D8: 0.635876

Sheet SRATE (hidden)
A2: ="Державний та гарантований державою борг України за станом на " & TEXT(DREPORTDATE,"dd.MM.yyyy") -> Державний та гарантований державою борг України за станом на 31.03.2018
A3: (за видами відсоткових ставок)
D5: =VALVAL -> млрд. одиниць
B6: дол.США | C6: грн. | D6: %
A7: Загальна сума державного та гарантованого державою боргу | B7: =SUM(B$8+ B$9) -> 77.36740816 | C7: 2053.601257 | D7: 1
A8: =SRATE_M!A7 -> Борг, по якому сплата відсотків здійснюється за плаваючими процентними ставками | B8: =SRATE_M!B7 -> 28.17129504 | C8: =SRATE_M!C7 -> 747.7645726 | D8: =SRATE_M!D7 -> 0.364124
A9: =SRATE_M!A8 -> Борг, по якому сплата відсотків здійснюється за фіксованими процентними ставками | B9: =SRATE_M!B8 -> 49.19611313 | C9: =SRATE_M!C8 -> 1305.836684 | D9: =SRATE_M!D8 -> 0.635876
A11: В тому числі:
D12: =VALVAL -> млрд. одиниць
B13: дол.США | C13: грн. | D13: %
A14: Загальна сума державного та гарантованого державою боргу | B14: =B$15+B$18 -> 77.36740816 | C14: 2053.601257 | D14: 1
A15: Державний борг | B15: =SUM(B$16:B$17) -> 66.79028211 | C15: 1772.847386 | D15: 1.103654
A16: Борг, по якому сплата відсотків здійснюється за плаваючими процентними ставками | B16: 18.59660422 | C16: 493.6188339 | D16: 0.240367
A17: Борг, по якому сплата відсотків здійснюється за фіксованими процентними ставками | B17: 48.19367789 | C17: 1279.228552 | D17: 0.62292
A18: Гарантований державою борг | B18: =SUM(B$19:B$20) -> 10.57712605 | C18: 280.7538713 | D18: 0.260469
A19: Борг, по якому сплата відсотків здійснюється за плаваючими процентними ставками | B19: 9.574690819 | C19: 254.1457387 | D19: 0.123756
A20: Борг, по якому сплата відсотків здійснюється за фіксованими процентними ставками | B20: 1.002435231 | C20: 26.60813253 | D20: 0.012957

Sheet RATE_M
A2: ="Державний та гарантований державою борг України за станом на " & TEXT(DREPORTDATE,"dd.MM.yyyy") -> Державний та гарантований державою борг України за станом на 31.03.2018
A3: (за видами відсоткових ставок)
D5: =VALVAL -> млрд. одиниць
B6: дол.США | C6: грн. | D6: %
A7: Загальна сума державного та гарантованого державою боргу | B7: =SUM(B8:B19) -> 77.36740816 | C7: 2053.601257 | D7: 0.999999
A8: LIBOR | B8: 8.8304266 | C8: 234.3903667 | D8: 0.114136
A9: Індекс споживчих цін (СРІ) | B9: 5.469247585 | C9: 145.172935 | D9: 0.070692
A10: Ставка МВФ | B10: 13.87162085 | C10: 368.2012709 | D10: 0.179295
A11: Фіксована | B11: 49.19611313 | C11: 1305.836684 | D11: 0.635876

Sheet RATE (hidden)
A2: ="Державний та гарантований державою борг України за станом на " & TEXT(DREPORTDATE,"dd.MM.yyyy") -> Державний та гарантований державою борг України за станом на 31.03.2018
A3: (за видами відсоткових ставок)
D5: =VALVAL -> млрд. одиниць
B6: дол.США | C6: грн. | D6: %
A7: Загальна сума державного та гарантованого державою боргу | B7: =SUM(B8:B18) -> 77.36740816 | C7: 2053.601257 | D7: 0.999999
A8: LIBOR | B8: 8.8304266 | C8: 234.3903667 | D8: 0.114136
A9: Індекс споживчих цін (СРІ) | B9: 5.469247585 | C9: 145.172935 | D9: 0.070692
A10: Ставка МВФ | B10: 13.87162085 | C10: 368.2012709 | D10: 0.179295
A11: Фіксована | B11: 49.19611313 | C11: 1305.836684 | D11: 0.635876
A19: В тому числі:
B20: ="Державний борг України за станом на " & TEXT(DREPORTDATE,"dd.MM.yyyy") -> Державний борг України за станом на 31.03.2018 | D20: =VALVAL -> млрд. одиниць
B21: дол.США | C21: грн. | D21: %
A22: Загальна сума державного та гарантованого державою боргу | B22: =B$23+B$28 -> 77.36740816 | C22: 2053.601257 | D22: 1.000002
A23: Державний борг | B23: =SUM(B$24:B$27) -> 66.79028211 | C23: 1772.847386 | D23: 0.863288
A24: LIBOR | B24: 6.558956606 | C24: 174.0976188 | D24: 0.084777
A25: Індекс споживчих цін (СРІ) | B25: 5.469247585 | C25: 145.172935 | D25: 0.070692
A26: Ставка МВФ | B26: 6.568400026 | C26: 174.3482801 | D26: 0.084899
A27: Фіксована | B27: 48.19367789 | C27: 1279.228552 | D27: 0.62292
A28: Гарантований державою борг | B28: =SUM(B$29:B$31) -> 10.57712605 | C28: 280.7538713 | D28: 0.136714
A29: LIBOR | B29: 2.271469995 | C29: 60.2927479 | D29: 0.02936
A30: Ставка МВФ | B30: 7.303220825 | C30: 193.8529908 | D30: 0.094397
A31: Фіксована | B31: 1.002435231 | C31: 26.60813253 | D31: 0.012957

Sheet RATE_CMP (hidden)
A2: Структура боргу за типом ставки на кінець попереднього року та звітну дату
H4: =VALVAL -> млрд. одиниць
B5: 2017-12-31 | E5: 2018-03-31
B6: дол.США | C6: грн. | D6: % | E6: дол.США | F6: грн. | G6: % | H6: Зміна структури
A7: Загальна сума державного та гарантованого державою боргу | B7: =SUM(B8:B15) -> 76.30575429 | C7: 2141.690622 | D7: 1 | E7: 77.36740816 | F7: 2053.601257 | G7: 0.999999 | H7: 0
A8: LIBOR | B8: 9.168360768 | C8: 257.3304262 | D8: 0.120153 | E8: 8.8304266 | F8: 234.3903667 | G8: 0.114136 | H8: -0.006017
A9: Індекс споживчих цін (СРІ) | B9: 5.172329838 | C9: 145.172935 | D9: 0.067784 | E9: 5.469247585 | F9: 145.172935 | G9: 0.070692 | H9: 0.002908
A10: Ставка МВФ | B10: 14.00143215 | C10: 392.9813186 | D10: 0.183491 | E10: 13.87162085 | F10: 368.2012709 | G10: 0.179295 | H10: -0.004196
A11: Фіксована | B11: 47.96363153 | C11: 1346.205942 | D11: 0.628572 | E11: 49.19611313 | F11: 1305.836684 | G11: 0.635876 | H11: 0.007305
H12: =G12-D12 -> 0
H13: 0
H17: =VALVAL -> млрд. одиниць
B18: 2017-12-31 | E18: 2018-03-31
B19: дол.США | C19: грн. | D19: % | E19: дол.США | F19: грн. | G19: % | H19: Зміна структури
A20: Загальна сума державного та гарантованого державою боргу | B20: =B$21+B$26 -> 76.30575429 | C20: 2141.690622 | D20: 1 | E20: 77.36740816 | F20: 2053.601257 | G20: 1.000002 | H20: 1e-06
A21: Державний борг | B21: =SUM(B$22:B$25) -> 65.33278568 | C21: 1833.709865 | D21: 0.856197 | E21: 66.79028211 | F21: 1772.847386 | G21: 0.863288 | H21: 0.00709
A22: LIBOR | B22: 6.570710386 | C22: 184.4215937 | D22: 0.08611 | E22: 6.558956606 | F22: 174.0976188 | G22: 0.084777 | H22: -0.001334
A23: Індекс споживчих цін (СРІ) | B23: 5.172329838 | C23: 145.172935 | D23: 0.067784 | E23: 5.469247585 | F23: 145.172935 | G23: 0.070692 | H23: 0.002908
A24: Ставка МВФ | B24: 6.663723438 | C24: 187.0322118 | D24: 0.087329 | E24: 6.568400026 | F24: 174.3482801 | G24: 0.084899 | H24: -0.00243
A25: Фіксована | B25: 46.92602201 | C25: 1317.083124 | D25: 0.614974 | E25: 48.19367789 | F25: 1279.228552 | G25: 0.62292 | H25: 0.007946
A26: Гарантований державою борг | B26: =SUM(B$27:B$29) -> 10.97296861 | C26: 307.9807571 | D26: 0.143803 | E26: 10.57712605 | F26: 280.7538713 | G26: 0.136714 | H26: -0.007089
A27: LIBOR | B27: 2.597650382 | C27: 72.90883254 | D27: 0.034043 | E27: 2.271469995 | F27: 60.2927479 | G27: 0.02936 | H27: -0.004683
A28: Ставка МВФ | B28: 7.337708715 | C28: 205.9491068 | D28: 0.096162 | E28: 7.303220825 | F28: 193.8529908 | G28: 0.094397 | H28: -0.001765
A29: Фіксована | B29: 1.037609518 | C29: 29.12281772 | D29: 0.013598 | E29: 1.002435231 | F29: 26.60813253 | G29: 0.012957 | H29: -0.000641

Sheet CUR_M
A2: ="Державний та гарантований державою борг України за станом на " & TEXT(DREPORTDATE,"dd.MM.yyyy") -> Державний та гарантований державою борг України за станом на 31.03.2018
A3: (в розрізі валют погашеня)
D5: =VALVAL -> млрд. одиниць
B6: дол.США | C6: грн. | D6: %
A7: Загальна сума державного та гарантованого державою боргу | B7: =SUM(B8:B26) -> 77.36740816 | C7: 2053.601257 | D7: 1
A8: Долар США | B8: 31.89388695 | C8: 846.5751651 | D8: 0.412239
A9: ЄВРО | B9: 6.168725056 | C9: 163.7395103 | D9: 0.079733
A10: Канадський долар | B10: 0.3100597649 | C10: 8.2300692 | D10: 0.004008
A11: СПЗ | B11: 13.87162085 | C11: 368.2012709 | D11: 0.179295
A12: Українська гривня | B12: 24.53133173 | C12: 651.147232 | D12: 0.317076
A13: Японська єна | B13: 0.5917838101 | C13: 15.70800942 | D13: 0.007649

Sheet CUR (hidden)
A2: ="Державний та гарантований державою борг України за станом на " & TEXT(DREPORTDATE,"dd.MM.yyyy") -> Державний та гарантований державою борг України за станом на 31.03.2018
A3: (в розрізі валют погашеня)
D5: =VALVAL -> млрд. одиниць
B6: дол.США | C6: грн. | D6: %
A7: Загальна сума державного та гарантованого державою боргу | B7: =SUM(B8:B18) -> 77.36740816 | C7: 2053.601257 | D7: 1
A8: Долар США | B8: 31.89388695 | C8: 846.5751651 | D8: 0.412239
A9: ЄВРО | B9: 6.168725056 | C9: 163.7395103 | D9: 0.079733
A10: Канадський долар | B10: 0.3100597649 | C10: 8.2300692 | D10: 0.004008
A11: СПЗ | B11: 13.87162085 | C11: 368.2012709 | D11: 0.179295
A12: Українська гривня | B12: 24.53133173 | C12: 651.147232 | D12: 0.317076
A13: Японська єна | B13: 0.5917838101 | C13: 15.70800942 | D13: 0.007649
A20: В тому числі:
B21: ="Державний борг України за станом на " & TEXT(DREPORTDATE,"dd.MM.yyyy") -> Державний борг України за станом на 31.03.2018 | D21: =VALVAL -> млрд. одиниць
B22: дол.США | C22: грн. | D22: %
A23: Загальна сума державного та гарантованого державою боргу | B23: =B$24+B$31 -> 77.36740816 | C23: 2053.601257 | D23: 1
A24: Державний борг | B24: =SUM(B$25:B$30) -> 66.79028211 | C24: 1772.847386 | D24: 0.863287
A25: Долар США | B25: 29.71294306 | C25: 788.685296 | D25: 0.38405
A26: ЄВРО | B26: 5.591832274 | C26: 148.4267608 | D26: 0.072276
A27: Канадський долар | B27: 0.3100597649 | C27: 8.2300692 | D27: 0.004008
A28: СПЗ | B28: 6.568400026 | C28: 174.3482801 | D28: 0.084899
A29: Українська гривня | B29: 24.01526318 | C29: 637.4489701 | D29: 0.310405
A30: Японська єна | B30: 0.5917838101 | C30: 15.70800942 | D30: 0.007649
A31: Гарантований державою борг | B31: =SUM(B$32:B$35) -> 10.57712605 | C31: 280.7538713 | D31: 0.136713
A32: Долар США | B32: 2.180943895 | C32: 57.88986902 | D32: 0.028189
A33: ЄВРО | B33: 0.5768927814 | C33: 15.3127495 | D33: 0.007457
A34: СПЗ | B34: 7.303220825 | C34: 193.8529908 | D34: 0.094397
A35: Українська гривня | B35: 0.5160685484 | C35: 13.6982619 | D35: 0.00667

Sheet CUR_CMP (hidden)
A2: Валютна структура державного боргу на кінець попереднього року та звітну дату
H5: =VALVAL -> млрд. одиниць
B6: 2017-12-31 | E6: 2018-03-31
B7: дол.США | C7: грн. | D7: % | E7: дол.США | F7: грн. | G7: % | H7: Зміна структури
A8: Загальна сума державного та гарантованого державою боргу | B8: =SUM(B9:B18) -> 76.30575429 | C8: 2141.690622 | D8: 1 | E8: 77.36740816 | F8: 2053.601257 | G8: 1 | H8: 0
A9: Долар США | B9: 32.59257398 | C9: 914.783042 | D9: 0.427131 | E9: 31.89388695 | F9: 846.5751651 | G9: 0.412239 | H9: -0.014892
A10: ЄВРО | B10: 5.90271981 | C10: 165.6729532 | D10: 0.077356 | E10: 6.168725056 | F10: 163.7395103 | G10: 0.079733 | H10: 0.002377
A11: Канадський долар | B11: 0.3172038074 | C11: 8.90303 | D11: 0.004157 | E11: 0.3100597649 | F11: 8.2300692 | G11: 0.004008 | H11: -0.000149
A12: СПЗ | B12: 14.00143215 | C12: 392.9813186 | D12: 0.183491 | E12: 13.87162085 | F12: 368.2012709 | G12: 0.179295 | H12: -0.004196
A13: Українська гривня | B13: 22.93146484 | C13: 643.6225373 | D13: 0.300521 | E13: 24.53133173 | F13: 651.147232 | G13: 0.317076 | H13: 0.016555
A14: Японська єна | B14: 0.5603597046 | C14: 15.72774079 | D14: 0.007344 | E14: 0.5917838101 | F14: 15.70800942 | G14: 0.007649 | H14: 0.000305
H21: =VALVAL -> млрд. одиниць
B22: 2017-12-31 | E22: 2018-03-31
B23: дол.США | C23: грн. | D23: % | E23: дол.США | F23: грн. | G23: % | H23: Зміна структури
A24: Загальна сума державного та гарантованого державою боргу | B24: =B$25+B$32 -> 76.30575429 | C24: 2141.690622 | D24: 1 | E24: 77.36740816 | F24: 2053.601257 | G24: 1 | H24: 1e-06
A25: Державний борг | B25: =SUM(B$26:B$31) -> 65.33278568 | C25: 1833.709865 | D25: 0.856197 | E25: 66.79028211 | F25: 1772.847386 | G25: 0.863287 | H25: 0.00709
A26: Долар США | B26: 30.05374307 | C26: 843.5251088 | D26: 0.393859 | E26: 29.71294306 | F26: 788.685296 | G26: 0.38405 | H26: -0.00981
A27: ЄВРО | B27: 5.27942471 | C27: 148.1787907 | D27: 0.069188 | E27: 5.591832274 | F27: 148.4267608 | G27: 0.072276 | H27: 0.003089
A28: Канадський долар | B28: 0.3172038074 | C28: 8.90303 | D28: 0.004157 | E28: 0.3100597649 | F28: 8.2300692 | G28: 0.004008 | H28: -0.000149
A29: СПЗ | B29: 6.663723438 | C29: 187.0322118 | D29: 0.087329 | E29: 6.568400026 | F29: 174.3482801 | G29: 0.084899 | H29: -0.00243
A30: Українська гривня | B30: 22.45833094 | C30: 630.3429828 | D30: 0.29432 | E30: 24.01526318 | F30: 637.4489701 | G30: 0.310405 | H30: 0.016085
A31: Японська єна | B31: 0.5603597046 | C31: 15.72774079 | D31: 0.007344 | E31: 0.5917838101 | F31: 15.70800942 | G31: 0.007649 | H31: 0.000305
A32: Гарантований державою борг | B32: =SUM(B$33:B$36) -> 10.97296861 | C32: 307.9807571 | D32: 0.143803 | E32: 10.57712605 | F32: 280.7538713 | G32: 0.136713 | H32: -0.007089
A33: Долар США | B33: 2.538830906 | C33: 71.25793319 | D33: 0.033272 | E33: 2.180943895 | F33: 57.88986902 | G33: 0.028189 | H33: -0.005082
A34: ЄВРО | B34: 0.6232951 | C34: 17.49416257 | D34: 0.008168 | E34: 0.5768927814 | F34: 15.3127495 | G34: 0.007457 | H34: -0.000712
A35: СПЗ | B35: 7.337708715 | C35: 205.9491068 | D35: 0.096162 | E35: 7.303220825 | F35: 193.8529908 | G35: 0.094397 | H35: -0.001765
A36: Українська гривня | B36: 0.4731338938 | C36: 13.27955451 | D36: 0.006201 | E36: 0.5160685484 | F36: 13.6982619 | G36: 0.00667 | H36: 0.00047

Sheet CUR_M_EXT (hidden)
A2: Валютна структура боргу на кінець попереднього року та на звітну дату
N4: =VALVAL -> млрд. одиниць
B5: 2017-12-31 | H5: 2018-03-31
B6: оріг. | C6: курс до USD | D6: курс до UAH | E6: дол.США | F6: грн. | G6: % | H6: оріг. | I6: курс до USD | J6: курс до UAH | K6: дол.США | L6: грн. | M6: % | N6: Зміна структури
A7: Загальна сума державного та гарантованого державою боргу | E7: =SUM(E8:E23) -> 76.30575429 | F7: 2141.690622 | G7: 1 | K7: =SUM(K8:K23) -> 77.36740816 | L7: 2053.601257 | M7: 1 | N7: 0
A8: Долар США | B8: 32.59257398 | C8: 1 | D8: 28.067223 | E8: 32.59257398 | F8: 914.783042 | G8: 0.427131 | H8: 31.89388695 | I8: 1 | J8: 26.543493 | K8: 31.89388695 | L8: 846.5751651 | M8: 0.412239 | N8: -0.014892
A9: ЄВРО | B9: 4.946136918 | C9: 1.1934 | D9: 33.495424 | E9: 5.90271981 | F9: 165.6729532 | G9: 0.077356 | H9: 5.006675598 | I9: 1.2321 | J9: 32.704238 | K9: 6.168725056 | L9: 163.7395103 | M9: 0.079733 | N9: 0.002377
A10: Канадський долар | B10: 0.4 | C10: 0.79301 | D10: 22.257575 | E10: 0.3172038074 | F10: 8.90303 | G10: 0.004157 | H10: 0.4 | I10: 0.775149 | J10: 20.575173 | K10: 0.3100597649 | L10: 8.2300692 | M10: 0.004008 | N10: -0.000149
A11: СПЗ | B11: 9.831539657 | C11: 1.424134 | D11: 39.971493 | E11: 14.00143215 | F11: 392.9813186 | G11: 0.183491 | H11: 9.541205907 | I11: 1.453865 | J11: 38.590643 | K11: 13.87162085 | L11: 368.2012709 | M11: 0.179295 | N11: -0.004196
A12: Українська гривня | B12: 643.6225373 | C12: 0.035629 | D12: 1 | E12: 22.93146484 | F12: 643.6225373 | G12: 0.300521 | H12: 651.147232 | I12: 0.037674 | J12: 1 | K12: 24.53133173 | L12: 651.147232 | M12: 0.317076 | N12: 0.016555
A13: Японська єна | B13: 63.26703 | C13: 0.008857 | D13: 0.248593 | E13: 0.5603597046 | F13: 15.72774079 | G13: 0.007344 | H13: 62.9920122 | I13: 0.009395 | J13: 0.249365 | K13: 0.5917838101 | L13: 15.70800942 | M13: 0.007649 | N13: 0.000305

Sheet CUR_CMP_EXT (hidden)
A2: Валютна структура боргу на кінець попереднього року та на звітну дату (розширений)
N4: =VALVAL -> млрд. одиниць
B5: 2017-12-31 | H5: 2018-03-31
B6: оріг. | C6: курс до USD | D6: курс до UAH | E6: дол.США | F6: грн. | G6: % | H6: оріг. | I6: курс до USD | J6: курс до UAH | K6: дол.США | L6: грн. | M6: % | N6: Зміна структури
A7: Загальна сума державного та гарантованого державою боргу | E7: =SUM(E8:E24) -> 76.30575429 | F7: 2141.690622 | G7: 1 | K7: =SUM(K8:K24) -> 77.36740816 | L7: 2053.601257 | M7: 1 | N7: 0
A8: Долар США | B8: 32.59257398 | C8: 1 | D8: 28.067223 | E8: 32.59257398 | F8: 914.783042 | G8: 0.427131 | H8: 31.89388695 | I8: 1 | J8: 26.543493 | K8: 31.89388695 | L8: 846.5751651 | M8: 0.412239 | N8: -0.014892
A9: ЄВРО | B9: 4.946136918 | C9: 1.1934 | D9: 33.495424 | E9: 5.90271981 | F9: 165.6729532 | G9: 0.077356 | H9: 5.006675598 | I9: 1.2321 | J9: 32.704238 | K9: 6.168725056 | L9: 163.7395103 | M9: 0.079733 | N9: 0.002377
A10: Канадський долар | B10: 0.4 | C10: 0.79301 | D10: 22.257575 | E10: 0.3172038074 | F10: 8.90303 | G10: 0.004157 | H10: 0.4 | I10: 0.775149 | J10: 20.575173 | K10: 0.3100597649 | L10: 8.2300692 | M10: 0.004008 | N10: -0.000149
A11: СПЗ | B11: 9.831539657 | C11: 1.424134 | D11: 39.971493 | E11: 14.00143215 | F11: 392.9813186 | G11: 0.183491 | H11: 9.541205907 | I11: 1.453865 | J11: 38.590643 | K11: 13.87162085 | L11: 368.2012709 | M11: 0.179295 | N11: -0.004196
A12: Українська гривня | B12: 643.6225373 | C12: 0.035629 | D12: 1 | E12: 22.93146484 | F12: 643.6225373 | G12: 0.300521 | H12: 651.147232 | I12: 0.037674 | J12: 1 | K12: 24.53133173 | L12: 651.147232 | M12: 0.317076 | N12: 0.016555
A13: Японська єна | B13: 63.26703 | C13: 0.008857 | D13: 0.248593 | E13: 0.5603597046 | F13: 15.72774079 | G13: 0.007344 | H13: 62.9920122 | I13: 0.009395 | J13: 0.249365 | K13: 0.5917838101 | L13: 15.70800942 | M13: 0.007649 | N13: 0.000305
N23: =VALVAL -> млрд. одиниць
B24: 2017-12-31 | H24: 2018-03-31
B25: оріг. | C25: курс до USD | D25: курс до UAH | E25: дол.США | F25: грн. | G25: % | H25: оріг. | I25: курс до USD | J25: курс до UAH | K25: дол.США | L25: грн. | M25: % | N25: Зміна структури
A26: Загальна сума державного та гарантованого державою боргу | B26: =B$27+B$34 -> 754.6598179 | C26: 8.108193 | D26: 227.574448 | E26: 76.30575429 | F26: 2141.690622 | G26: 1 | H26: 760.9810127 | I26: 8.231822 | J26: 218.501286 | K26: 77.36740816 | L26: 2053.601257 | M26: 1 | N26: 1e-06
A27: Державний борг | B27: =SUM(B$28:B$33) -> 733.1667476 | C27: 4.45503 | D27: 125.040308 | E27: 65.33278568 | F27: 1833.709865 | G27: 0.856197 | H27: 739.6102718 | I27: 4.508183 | J27: 119.662912 | K27: 66.79028211 | L27: 1772.847386 | M27: 0.863287 | N27: 0.00709
A28: Долар США | B28: 30.05374307 | C28: 1 | D28: 28.067223 | E28: 30.05374307 | F28: 843.5251088 | G28: 0.393859 | H28: 29.71294306 | I28: 1 | J28: 26.543493 | K28: 29.71294306 | L28: 788.685296 | M28: 0.38405 | N28: -0.00981
A29: ЄВРО | B29: 4.423851767 | C29: 1.1934 | D29: 33.495424 | E29: 5.27942471 | F29: 148.1787907 | G29: 0.069188 | H29: 4.538456479 | I29: 1.2321 | J29: 32.704238 | K29: 5.591832274 | L29: 148.4267608 | M29: 0.072276 | N29: 0.003089
A30: Канадський долар | B30: 0.4 | C30: 0.79301 | D30: 22.257575 | E30: 0.3172038074 | F30: 8.90303 | G30: 0.004157 | H30: 0.4 | I30: 0.775149 | J30: 20.575173 | K30: 0.3100597649 | L30: 8.2300692 | M30: 0.004008 | N30: -0.000149
A31: СПЗ | B31: 4.67914 | C31: 1.424134 | D31: 39.971493 | E31: 6.663723438 | F31: 187.0322118 | G31: 0.087329 | H31: 4.51789 | I31: 1.453865 | J31: 38.590643 | K31: 6.568400026 | L31: 174.3482801 | M31: 0.084899 | N31: -0.00243
A32: Українська гривня | B32: 630.3429828 | C32: 0.035629 | D32: 1 | E32: 22.45833094 | F32: 630.3429828 | G32: 0.29432 | H32: 637.4489701 | I32: 0.037674 | J32: 1 | K32: 24.01526318 | L32: 637.4489701 | M32: 0.310405 | N32: 0.016085
A33: Японська єна | B33: 63.26703 | C33: 0.008857 | D33: 0.248593 | E33: 0.5603597046 | F33: 15.72774079 | G33: 0.007344 | H33: 62.9920122 | I33: 0.009395 | J33: 0.249365 | K33: 0.5917838101 | L33: 15.70800942 | M33: 0.007649 | N33: 0.000305
A34: Гарантований державою борг | B34: =SUM(B$35:B$38) -> 21.49307022 | C34: 3.653163 | D34: 102.53414 | E34: 10.97296861 | F34: 307.9807571 | G34: 0.143803 | H34: 21.37074082 | I34: 3.723639 | J34: 98.838374 | K34: 10.57712605 | L34: 280.7538713 | M34: 0.136713 | N34: -0.007089
A35: Долар США | B35: 2.538830906 | C35: 1 | D35: 28.067223 | E35: 2.538830906 | F35: 71.25793319 | G35: 0.033272 | H35: 2.180943895 | I35: 1 | J35: 26.543493 | K35: 2.180943895 | L35: 57.88986902 | M35: 0.028189 | N35: -0.005082
A36: ЄВРО | B36: 0.5222851505 | C36: 1.1934 | D36: 33.495424 | E36: 0.6232951 | F36: 17.49416257 | G36: 0.008168 | H36: 0.468219119 | I36: 1.2321 | J36: 32.704238 | K36: 0.5768927814 | L36: 15.3127495 | M36: 0.007457 | N36: -0.000712
A37: СПЗ | B37: 5.152399657 | C37: 1.424134 | D37: 39.971493 | E37: 7.337708715 | F37: 205.9491068 | G37: 0.096162 | H37: 5.023315907 | I37: 1.453865 | J37: 38.590643 | K37: 7.303220825 | L37: 193.8529908 | M37: 0.094397 | N37: -0.001765
A38: Українська гривня | B38: 13.27955451 | C38: 0.035629 | D38: 1 | E38: 0.4731338938 | F38: 13.27955451 | G38: 0.006201 | H38: 13.6982619 | I38: 0.037674 | J38: 1 | K38: 0.5160685484 | L38: 13.6982619 | M38: 0.00667 | N38: 0.00047

Sheet DKT1 (hidden)
A2: ="Державний та гарантований державою борг України за станом на " & TEXT(DREPORTDATE,"dd.MM.yyyy") -> Державний та гарантований державою борг України за станом на 31.03.2018
A3: (за типом кредитора)
D5: =VALVAL -> млрд. одиниць
B6: дол.США | C6: грн. | D6: % | E6: FORMAT
A7: Загальна сума державного та гарантованого державою боргу | B7: =B$8+B$18 -> 77.36740816 | C7: 2053.601257 | D7: 0.999999 | E7: 3
A8: Державний борг | B8: =B$9+B$12 -> 66.79028211 | C8: 1772.847386 | D8: 0.863287 | E8: 3
A9: Внутрішній борг | B9: =SUM(B$10:B$11) -> 28.28489193 | C9: 750.779831 | D9: 0.365592 | E9: 2
A10: 1. Заборгованість за випущеними цінними паперами на внутрішньому ринку | B10: 28.19520723 | C10: 748.3992856 | D10: 0.364433 | E10: 1
A11: 2. Заборгованість перед банківськими та іншими фінансовими установами | B11: 0.08968470748 | C11: 2.380545405 | D11: 0.001159
A12: Зовнішній борг | B12: =SUM(B$13:B$17) -> 38.50539018 | C12: 1022.067555 | D12: 0.497695
A13: 1. Заборгованість за позиками, одержаними від міжнародних фінансових організацій | B13: 14.46341432 | C13: 383.9095366 | D13: 0.186945
A14: 2. Заборгованість за позиками, одержаними від органів управління іноземних держав | B14: 1.789294223 | C14: 47.4941187 | D14: 0.023127
A15: 3. Заборгованість за позиками, одержаними від іноземних комерційних банків, інших іноземних фінансових установ | B15: 6.299629e-05 | C15: 0.00167214153 | D15: 1e-06
A16: 4. Заборгованість за випущеними цінними паперами на зовнішньому ринку | B16: 20.467273 | C16: 543.2729176 | D16: 0.264546
A17: 5. Заборгованість, не віднесена до інших категорій | B17: 1.785345644 | C17: 47.3893096 | D17: 0.023076
A18: Гарантований державою борг | B18: =B$19+B$23 -> 10.57712605 | C18: 280.7538713 | D18: 0.136712
A19: Внутрішній борг | B19: =SUM(B$20:B$22) -> 0.5160685483 | C19: 13.6982619 | D19: 0.00667
A20: 1. Заборгованість за випущеними цінними паперами на внутрішньому ринку | B20: 0.3371828869 | C20: 8.9500116 | D20: 0.004358
A21: 2. Заборгованість перед банківськими та іншими фінансовими установами | B21: 0.1788496959 | C21: 4.747295651 | D21: 0.002312
A22: 3. Заборгованість, не віднесена до інших категорій | B22: 3.59655e-05 | C22: 0.00095465 | D22: 0
A23: Зовнішній борг | B23: =SUM(B$24:B$27) -> 10.0610575 | C23: 267.0556094 | D23: 0.130042
A24: 1. Заборгованість за позиками, одержаними від міжнародних фінансових організацій | B24: 7.895579817 | C24: 209.5762676 | D24: 0.102053
A25: 2. Заборгованість за позиками, одержаними від органів управління іноземних держав | B25: 0.07310838994 | C25: 1.940552037 | D25: 0.000945
A26: 3. Заборгованість за позиками, одержаними від іноземних комерційних банків, інших іноземних фінансових установ | B26: 1.973961614 | C26: 52.39583629 | D26: 0.025514
A27: 5. Заборгованість, не віднесена до інших категорій | B27: 0.1184076807 | C27: 3.142953444 | D27: 0.00153

Sheet DKR (hidden)
A2: ="Державний та гарантований державою борг України за станом на " & TEXT(DREPORTDATE,"dd.MM.yyyy") -> Державний та гарантований державою борг України за станом на 31.03.2018
A3: (за типом кредитора)
D5: =VALVAL -> млрд. одиниць
B6: дол.США | C6: грн. | D6: %
A7: Загальна сума державного та гарантованого державою боргу | B7: =SUM(B8:B46) -> 77.36740816 | C7: 2053.601257 | D7: 1
A8: Внутрішній борг за випущеними цінними паперами | B8: 28.53239011 | C8: 757.3492972 | D8: 0.368791
A9: Внутрішній борг перед банківськими та іншими фінансовими установами | B9: 0.2685344034 | C9: 7.127841056 | D9: 0.003471
A10: Внутрішня заборгованість, не віднесена до інших категорій | B10: 3.59655e-05 | C10: 0.00095465 | D10: 0
A11: Зовнішній борг за випущеними цінними паперами | B11: 20.467273 | C11: 543.2729176 | D11: 0.264546
A12: Зовнішній борг за позиками, одержаними від іноземних комерційних банків, інших іноземних фінансових установ | B12: 1.974024611 | C12: 52.39750843 | D12: 0.025515
A13: Зовнішній борг за позиками, одержаними від міжнародних фінансових організацій | B13: 22.35899413 | C13: 593.4858042 | D13: 0.288998
A14: Зовнішній борг за позиками, одержаними від органів управління іноземних держав | B14: 1.862402613 | C14: 49.43467073 | D14: 0.024072
A15: Зовнішній борг, не віднесений до інших категорій | B15: 1.903753325 | C15: 50.53226305 | D15: 0.024607

Sheet DKR2 (hidden)
A1: ="Державний борг України за станом на " & TEXT(DREPORTDATE,"dd.MM.yyyy") -> Державний борг України за станом на 31.03.2018
A2: ="Гарантований державою борг України за станом на " & TEXT(DREPORTDATE,"dd.MM.yyyy") -> Гарантований державою борг України за станом на 31.03.2018
A3: ="Державний та гарантований державою борг України за станом на " & TEXT(DREPORTDATE,"dd.MM.yyyy") -> Державний та гарантований державою борг України за станом на 31.03.2018
A4: (за типом кредитора)
D6: =VALVAL -> млрд. одиниць
B7: дол.США | C7: грн. | D7: %
A8: Загальна сума державного та гарантованого державою боргу | B8: =B$9+B$17 -> 77.36740816 | C8: 2053.601257 | D8: 2.128865
A9: Державний борг | B9: =SUM(B$10:B$16) -> 66.79028211 | C9: 1772.847386 | D9: 1.263287
A10: Внутрішній борг за випущеними цінними паперами | B10: 28.19520723 | C10: 748.3992856 | D10: 0.364433
A11: Внутрішній борг перед банківськими та іншими фінансовими установами | B11: 0.08968470748 | C11: 2.380545405 | D11: 0.001159
A12: Зовнішній борг за випущеними цінними паперами | B12: 20.467273 | C12: 543.2729176 | D12: 0.264546
A13: Зовнішній борг за позиками, одержаними від іноземних комерційних банків, інших іноземних фінансових установ | B13: 6.299629e-05 | C13: 0.00167214153 | D13: 1e-06
A14: Зовнішній борг за позиками, одержаними від міжнародних фінансових організацій | B14: 14.46341432 | C14: 383.9095366 | D14: 0.186945
A15: Зовнішній борг за позиками, одержаними від органів управління іноземних держав | B15: 1.789294223 | C15: 47.4941187 | D15: 0.023127
A16: Зовнішній борг, не віднесений до інших категорій | B16: 1.785345644 | C16: 47.3893096 | D16: 0.023076
A17: Гарантований державою борг | B17: =SUM(B$18:B$24) -> 10.57712605 | C17: 280.7538713 | D17: 0.136712
A18: Внутрішній борг за випущеними цінними паперами | B18: 0.3371828869 | C18: 8.9500116 | D18: 0.004358
A19: Внутрішній борг перед банківськими та іншими фінансовими установами | B19: 0.1788496959 | C19: 4.747295651 | D19: 0.002312
A20: Внутрішня заборгованість, не віднесена до інших категорій | B20: 3.59655e-05 | C20: 0.00095465 | D20: 0
A21: Зовнішній борг за позиками, одержаними від іноземних комерційних банків, інших іноземних фінансових установ | B21: 1.973961614 | C21: 52.39583629 | D21: 0.025514
A22: Зовнішній борг за позиками, одержаними від міжнародних фінансових організацій | B22: 7.895579817 | C22: 209.5762676 | D22: 0.102053
A23: Зовнішній борг за позиками, одержаними від органів управління іноземних держав | B23: 0.07310838994 | C23: 1.940552037 | D23: 0.000945
A24: Зовнішній борг, не віднесений до інших категорій | B24: 0.1184076807 | C24: 3.142953444 | D24: 0.00153

Sheet YT_ALL (hidden)
A2: Державний та гарантований державою борг України за останні 5 років
A4: =$A$2 & " (" &G4 & ")" -> Державний та гарантований державою борг України за останні 5 років (млрд. грн) | G4: =VALUAH -> млрд. грн
B5: 2013-12-31 | C5: 2014-12-31 | D5: 2015-12-31 | E5: 2016-12-31 | F5: 2017-12-31 | G5: 2018-03-31
A6: Загальна сума державного та гарантованого державою боргу | B6: =SUM(B$7+ B$8) -> 584.7865709 | C6: 1100.833217 | D6: 1572.180159 | E6: 1929.808833 | F6: 2141.690622 | G6: 2053.601257
A7: Внутрішній борг | B7: 284.0887255 | C7: 488.8669074 | D7: 529.460578 | E7: 689.7300058 | F7: 766.678941 | G7: 764.4780929
A8: Зовнішній борг | B8: 300.6978455 | C8: 611.9663093 | D8: 1042.719581 | E8: 1240.078827 | F8: 1375.011681 | G8: 1289.123164
A10: =$A$2 & " (" &G10 & ")" -> Державний та гарантований державою борг України за останні 5 років (млрд. дол. США) | G10: =VALUSD -> млрд. дол. США
B11: 2013-12-31 | C11: 2014-12-31 | D11: 2015-12-31 | E11: 2016-12-31 | F11: 2017-12-31 | G11: 2018-03-31
A12: Загальна сума державного та гарантованого державою боргу | B12: =SUM(B$13+ B$14) -> 73.16233841 | C12: 69.81192296 | D12: 65.50568611 | E12: 70.97270829 | F12: 76.30575429 | G12: 77.36740816
A13: Внутрішній борг | B13: 35.5421901 | C13: 31.00264269 | D13: 22.06024433 | E13: 25.36624647 | F13: 27.31581037 | G13: 28.80096048
A14: Зовнішній борг | B14: 37.62014831 | C14: 38.80928028 | D14: 43.44544179 | E14: 45.60646182 | F14: 48.98994393 | G14: 48.56644768
G16: %
B17: 2013-12-31 | C17: 2014-12-31 | D17: 2015-12-31 | E17: 2016-12-31 | F17: 2017-12-31 | G17: 2018-03-31
A18: Загальна сума державного та гарантованого державою боргу | B18: =SUM(B$19+ B$20) -> 1 | C18: 1 | D18: 1 | E18: 1 | F18: 1 | G18: 1
A19: Внутрішній борг | B19: 0.485799 | C19: 0.444088 | D19: 0.336768 | E19: 0.357408 | F19: 0.357978 | G19: 0.372262
A20: Зовнішній борг | B20: 0.514201 | C20: 0.555912 | D20: 0.663232 | E20: 0.642592 | F20: 0.642022 | G20: 0.627738

Sheet YTM_ALL (hidden)
A2: Державний та гарантований державою борг України за останні 5 років
G4: млрд. грн.
B5: =YT_ALL!B5 -> 2013-12-31 | C5: =YT_ALL!C5 -> 2014-12-31 | D5: =YT_ALL!D5 -> 2015-12-31 | E5: =YT_ALL!E5 -> 2016-12-31 | F5: =YT_ALL!F5 -> 2017-12-31 | G5: =YT_ALL!G5 -> 2018-03-31
A6: Загальна сума державного та гарантованого державою боргу | B6: =SUM(B$7+ B$8) -> 584.7865709 | C6: 1100.833217 | D6: 1572.180159 | E6: 1929.808833 | F6: 2141.690622 | G6: 2053.601257
A7: =YT_ALL!A7 -> Внутрішній борг | B7: =YT_ALL!B7/DMLMLR -> 284.0887255 | C7: =YT_ALL!C7/DMLMLR -> 488.8669074 | D7: =YT_ALL!D7/DMLMLR -> 529.460578 | E7: =YT_ALL!E7/DMLMLR -> 689.7300058 | F7: =YT_ALL!F7/DMLMLR -> 766.678941 | G7: =YT_ALL!G7/DMLMLR -> 764.4780929
A8: =YT_ALL!A8 -> Зовнішній борг | B8: =YT_ALL!B8/DMLMLR -> 300.6978455 | C8: =YT_ALL!C8/DMLMLR -> 611.9663093 | D8: =YT_ALL!D8/DMLMLR -> 1042.719581 | E8: =YT_ALL!E8/DMLMLR -> 1240.078827 | F8: =YT_ALL!F8/DMLMLR -> 1375.011681 | G8: =YT_ALL!G8/DMLMLR -> 1289.123164
G10: млрд. дол.США
B11: =YT_ALL!B11 -> 2013-12-31 | C11: =YT_ALL!C11 -> 2014-12-31 | D11: =YT_ALL!D11 -> 2015-12-31 | E11: =YT_ALL!E11 -> 2016-12-31 | F11: =YT_ALL!F11 -> 2017-12-31 | G11: =YT_ALL!G11 -> 2018-03-31
A12: Загальна сума державного та гарантованого державою боргу | B12: =SUM(B$13+ B$14) -> 73.16233841 | C12: 69.81192296 | D12: 65.50568611 | E12: 70.97270829 | F12: 76.30575429 | G12: 77.36740816
A13: =YT_ALL!A13 -> Внутрішній борг | B13: =YT_ALL!B13/DMLMLR -> 35.5421901 | C13: =YT_ALL!C13/DMLMLR -> 31.00264269 | D13: =YT_ALL!D13/DMLMLR -> 22.06024433 | E13: =YT_ALL!E13/DMLMLR -> 25.36624647 | F13: =YT_ALL!F13/DMLMLR -> 27.31581037 | G13: =YT_ALL!G13/DMLMLR -> 28.80096048
A14: =YT_ALL!A14 -> Зовнішній борг | B14: =YT_ALL!B14/DMLMLR -> 37.62014831 | C14: =YT_ALL!C14/DMLMLR -> 38.80928028 | D14: =YT_ALL!D14/DMLMLR -> 43.44544179 | E14: =YT_ALL!E14/DMLMLR -> 45.60646182 | F14: =YT_ALL!F14/DMLMLR -> 48.98994393 | G14: =YT_ALL!G14/DMLMLR -> 48.56644768
G16: %
B17: =YT_ALL!B17 -> 2013-12-31 | C17: =YT_ALL!C17 -> 2014-12-31 | D17: =YT_ALL!D17 -> 2015-12-31 | E17: =YT_ALL!E17 -> 2016-12-31 | F17: =YT_ALL!F17 -> 2017-12-31 | G17: =YT_ALL!G17 -> 2018-03-31
A18: Загальна сума державного та гарантованого державою боргу | B18: =SUM(B$19+ B$20) -> 1 | C18: 1 | D18: 1 | E18: 1 | F18: 1 | G18: 1
A19: =YT_ALL!A19 -> Внутрішній борг | B19: =YT_ALL!B19 -> 0.485799 | C19: =YT_ALL!C19 -> 0.444088 | D19: =YT_ALL!D19 -> 0.336768 | E19: =YT_ALL!E19 -> 0.357408 | F19: =YT_ALL!F19 -> 0.357978 | G19: =YT_ALL!G19 -> 0.372262
A20: =YT_ALL!A20 -> Зовнішній борг | B20: =YT_ALL!B20 -> 0.514201 | C20: =YT_ALL!C20 -> 0.555912 | D20: =YT_ALL!D20 -> 0.663232 | E20: =YT_ALL!E20 -> 0.642592 | F20: =YT_ALL!F20 -> 0.642022 | G20: =YT_ALL!G20 -> 0.627738

Sheet YKM_ALL (hidden)
A2: Державний та гарантований державою борг України за останні 5 років
G4: млрд. грн.
B5: =YT_ALL!B5 -> 2013-12-31 | C5: =YT_ALL!C5 -> 2014-12-31 | D5: =YT_ALL!D5 -> 2015-12-31 | E5: =YT_ALL!E5 -> 2016-12-31 | F5: =YT_ALL!F5 -> 2017-12-31 | G5: =YT_ALL!G5 -> 2018-03-31
A6: Загальна сума державного та гарантованого державою боргу | B6: =SUM(B$7+ B$8) -> 584.7865709 | C6: 1100.833217 | D6: 1572.180159 | E6: 1929.808833 | F6: 2141.690622 | G6: 2053.601257
A7: =YK_ALL!A7 -> Державний борг | B7: =YK_ALL!B7/DMLMLR -> 480.2186294 | C7: =YK_ALL!C7/DMLMLR -> 947.0304691 | D7: =YK_ALL!D7/DMLMLR -> 1334.271601 | E7: =YK_ALL!E7/DMLMLR -> 1650.833285 | F7: =YK_ALL!F7/DMLMLR -> 1833.709865 | G7: =YK_ALL!G7/DMLMLR -> 1772.847386
A8: =YK_ALL!A8 -> Гарантований державою борг | B8: =YK_ALL!B8/DMLMLR -> 104.5679415 | C8: =YK_ALL!C8/DMLMLR -> 153.8027476 | D8: =YK_ALL!D8/DMLMLR -> 237.9085577 | E8: =YK_ALL!E8/DMLMLR -> 278.9755479 | F8: =YK_ALL!F8/DMLMLR -> 307.9807571 | G8: =YK_ALL!G8/DMLMLR -> 280.7538713
G10: млрд. дол.США
B11: =YT_ALL!B11 -> 2013-12-31 | C11: =YT_ALL!C11 -> 2014-12-31 | D11: =YT_ALL!D11 -> 2015-12-31 | E11: =YT_ALL!E11 -> 2016-12-31 | F11: =YT_ALL!F11 -> 2017-12-31 | G11: =YT_ALL!G11 -> 2018-03-31
A12: Загальна сума державного та гарантованого державою боргу | B12: =SUM(B$13+ B$14) -> 73.16233841 | C12: 69.81192296 | D12: 65.50568611 | E12: 70.97270829 | F12: 76.30575429 | G12: 77.36740816
A13: =YK_ALL!A13 -> Державний борг | B13: =YK_ALL!B13/DMLMLR -> 60.07989859 | C13: =YK_ALL!C13/DMLMLR -> 60.05816063 | D13: =YK_ALL!D13/DMLMLR -> 55.59310503 | E13: =YK_ALL!E13/DMLMLR -> 60.71280594 | F13: =YK_ALL!F13/DMLMLR -> 65.33278568 | G13: =YK_ALL!G13/DMLMLR -> 66.79028211
A14: =YK_ALL!A14 -> Гарантований державою борг | B14: =YK_ALL!B14/DMLMLR -> 13.08243982 | C14: =YK_ALL!C14/DMLMLR -> 9.753762333 | D14: =YK_ALL!D14/DMLMLR -> 9.912581084 | E14: =YK_ALL!E14/DMLMLR -> 10.25990235 | F14: =YK_ALL!F14/DMLMLR -> 10.97296861 | G14: =YK_ALL!G14/DMLMLR -> 10.57712605
G16: %
B17: =YT_ALL!B17 -> 2013-12-31 | C17: =YT_ALL!C17 -> 2014-12-31 | D17: =YT_ALL!D17 -> 2015-12-31 | E17: =YT_ALL!E17 -> 2016-12-31 | F17: =YT_ALL!F17 -> 2017-12-31 | G17: =YT_ALL!G17 -> 2018-03-31
A18: Загальна сума державного та гарантованого державою боргу | B18: =SUM(B$19+ B$20) -> 1 | C18: 1 | D18: 1 | E18: 1 | F18: 1 | G18: 1
A19: =YK_ALL!A19 -> Державний борг | B19: =YK_ALL!B19 -> 0.821186 | C19: =YK_ALL!C19 -> 0.860285 | D19: =YK_ALL!D19 -> 0.848676 | E19: =YK_ALL!E19 -> 0.855439 | F19: =YK_ALL!F19 -> 0.856197 | G19: =YK_ALL!G19 -> 0.863287
A20: =YK_ALL!A20 -> Гарантований державою борг | B20: =YK_ALL!B20 -> 0.178814 | C20: =YK_ALL!C20 -> 0.139715 | D20: =YK_ALL!D20 -> 0.151324 | E20: =YK_ALL!E20 -> 0.144561 | F20: =YK_ALL!F20 -> 0.143803 | G20: =YK_ALL!G20 -> 0.136713

Sheet YK_ALL (hidden)
A2: Державний та гарантований державою борг України за останні 5 років
G4: =VALUAH -> млрд. грн
B5: 2013-12-31 | C5: 2014-12-31 | D5: 2015-12-31 | E5: 2016-12-31 | F5: 2017-12-31 | G5: 2018-03-31
A6: Загальна сума державного та гарантованого державою боргу | B6: =SUM(B$7+ B$8) -> 584.7865709 | C6: 1100.833217 | D6: 1572.180159 | E6: 1929.808833 | F6: 2141.690622 | G6: 2053.601257
A7: Державний борг | B7: 480.2186294 | C7: 947.0304691 | D7: 1334.271601 | E7: 1650.833285 | F7: 1833.709865 | G7: 1772.847386
A8: Гарантований державою борг | B8: 104.5679415 | C8: 153.8027476 | D8: 237.9085577 | E8: 278.9755479 | F8: 307.9807571 | G8: 280.7538713
G10: =VALUSD -> млрд. дол. США
B11: 2013-12-31 | C11: 2014-12-31 | D11: 2015-12-31 | E11: 2016-12-31 | F11: 2017-12-31 | G11: 2018-03-31
A12: Загальна сума державного та гарантованого державою боргу | B12: =SUM(B$13+ B$14) -> 73.16233841 | C12: 69.81192296 | D12: 65.50568611 | E12: 70.97270829 | F12: 76.30575429 | G12: 77.36740816
A13: Державний борг | B13: 60.07989859 | C13: 60.05816063 | D13: 55.59310503 | E13: 60.71280594 | F13: 65.33278568 | G13: 66.79028211
A14: Гарантований державою борг | B14: 13.08243982 | C14: 9.753762333 | D14: 9.912581084 | E14: 10.25990235 | F14: 10.97296861 | G14: 10.57712605
G16: %
B17: 2013-12-31 | C17: 2014-12-31 | D17: 2015-12-31 | E17: 2016-12-31 | F17: 2017-12-31 | G17: 2018-03-31
A18: Загальна сума державного та гарантованого державою боргу | B18: =SUM(B$19+ B$20) -> 1 | C18: 1 | D18: 1 | E18: 1 | F18: 1 | G18: 1
A19: Державний борг | B19: 0.821186 | C19: 0.860285 | D19: 0.848676 | E19: 0.855439 | F19: 0.856197 | G19: 0.863287
A20: Гарантований державою борг | B20: 0.178814 | C20: 0.139715 | D20: 0.151324 | E20: 0.144561 | F20: 0.143803 | G20: 0.136713

Sheet YKT2_UAH
A2: Державний та гарантований державою борг України за останні 5 років
G4: =VALUAH -> млрд. грн
B5: 2013-12-31 | C5: 2014-12-31 | D5: 2015-12-31 | E5: 2016-12-31 | F5: 2017-12-31 | G5: 2018-03-31
A6: Загальна сума державного та гарантованого державою боргу | B6: =B$7+B$78 -> 584.7865709 | C6: 1100.833217 | D6: 1572.180159 | E6: 1929.808833 | F6: 2141.690622 | G6: 2053.601257
A7: Державний борг | B7: =B$8+B$48 -> 480.2186294 | C7: 947.0304691 | D7: 1334.271601 | E7: 1650.833285 | F7: 1833.709865 | G7: 1772.847386
A8: Внутрішній борг | B8: =B$9+B$46 -> 256.9595757 | C8: 461.0036228 | D8: 508.0011231 | E8: 670.6455305 | F8: 753.3993865 | G8: 750.779831
A9: 1. Заборгованість за випущеними цінними паперами на внутрішньому ринку | B9: =SUM(B$10:B$45) -> 254.0500202 | C9: 458.2263198 | D9: 505.3560727 | E9: 668.1327326 | F9: 751.0188411 | G9: 748.3992856
A10: Казначейські зобов'язання | B10: 1.5986 | C10: 0.088426 | D10: 0.098638 | E10: 0 | F10: 0 | G10: 0
A11: ОВДП (1 - місячні) | B11: 2.360977795 | C11: 0 | D11: 0 | E11: 0 | F11: 0 | G11: 0
A12: ОВДП (10 - річні) | B12: 15.742189 | C12: 50.254465 | D12: 60.558463 | E12: 74.832983 | F12: 62.650439 | G12: 62.650439
A13: ОВДП (11 - річні) | B13: 3.849981 | C13: 3.849981 | D13: 17.382981 | E13: 17.382981 | F13: 19.033 | G13: 19.033
A14: ОВДП (12 - місячні) | B14: 2.9587168 | C14: 7.33788948 | D14: 8.283710212 | E14: 3.47757 | F14: 6.90279 | G14: 9.171410155
A15: ОВДП (12 - річні) | B15: 1.5 | C15: 1.5 | D15: 12.5 | E15: 28.5 | F15: 36.5 | G15: 36.5
A16: ОВДП (13 - річні) | B16: 0 | C16: 2.61763 | D16: 13.11763 | E16: 37.11763 | F16: 28.700001 | G16: 28.700001
A17: ОВДП (14 - річні) | B17: 0 | C17: 3.25 | D17: 3.25 | E17: 51.25 | F17: 46.9 | G17: 46.9
A18: ОВДП (15 - річні) | B18: 0 | C18: 15.84884 | D18: 15.84884 | E18: 42.789838 | F18: 93.438657 | G18: 93.438657
A19: ОВДП (16 - річні) | B19: 0 | C19: 0 | D19: 0 | E19: 0 | F19: 12.097744 | G19: 12.097744
A20: ОВДП (17 - річні) | B20: 0 | C20: 0 | D20: 0 | E20: 0 | F20: 12.097744 | G20: 12.097744
A21: ОВДП (18 - місячні) | B21: 2.803424855 | C21: 0.76931632 | D21: 1.04892516 | E21: 29.25796141 | F21: 30.28291246 | G21: 28.77613418
A22: ОВДП (18 - річні) | B22: 0 | C22: 0 | D22: 0 | E22: 0 | F22: 12.097744 | G22: 12.097744
A23: ОВДП (19 - річні) | B23: 0 | C23: 0 | D23: 0 | E23: 0 | F23: 12.097744 | G23: 12.097744
A24: ОВДП (2 - річні) | B24: 20.37080624 | C24: 40.90737357 | D24: 21.91034234 | E24: 64.35343953 | F24: 71.60522481 | G24: 53.88783618
A25: ОВДП (20 - річні) | B25: 0 | C25: 0 | D25: 0 | E25: 0 | F25: 12.097744 | G25: 12.097744
A26: ОВДП (21-річні) | B26: 0 | C26: 0 | D26: 0 | E26: 0 | F26: 12.097744 | G26: 12.097744
A27: ОВДП (22-річні) | B27: 0 | C27: 0 | D27: 0 | E27: 0 | F27: 12.097744 | G27: 12.097744
A28: ОВДП (23-річні) | B28: 0 | C28: 0 | D28: 0 | E28: 0 | F28: 12.097744 | G28: 12.097744
A29: ОВДП (24-річні) | B29: 0 | C29: 0 | D29: 0 | E29: 0 | F29: 12.097744 | G29: 12.097744
A30: ОВДП (25-річні) | B30: 0 | C30: 0 | D30: 0 | E30: 0 | F30: 12.097744 | G30: 12.097744
A31: ОВДП (26-річні) | B31: 0 | C31: 0 | D31: 0 | E31: 0 | F31: 12.097744 | G31: 12.097744
A32: ОВДП (27-річні) | B32: 0 | C32: 0 | D32: 0 | E32: 0 | F32: 12.097744 | G32: 12.097744
A33: ОВДП (28-річні) | B33: 0 | C33: 0 | D33: 0 | E33: 0 | F33: 12.097744 | G33: 12.097744
A34: ОВДП (29-річні) | B34: 0 | C34: 0 | D34: 0 | E34: 0 | F34: 12.097744 | G34: 12.097744
A35: ОВДП (3 - місячні) | B35: 0 | C35: 0 | D35: 0 | E35: 0.01 | F35: 0.545 | G35: 7.986049
A36: ОВДП (3 - річні) | B36: 34.65649649 | C36: 46.58505481 | D36: 43.37723613 | E36: 18.462385 | F36: 46.63242848 | G36: 50.49309401
A37: ОВДП (30-річні) | B37: 0 | C37: 0 | D37: 0 | E37: 0 | F37: 12.097751 | G37: 12.097751
A38: ОВДП (4 - річні) | B38: 6.5181647 | C38: 2.92218286 | D38: 15.04510672 | E38: 15.58553728 | F38: 0.03 | G38: 0.03
A39: ОВДП (5 - річні) | B39: 75.31738528 | C39: 131.3797728 | D39: 149.0338121 | E39: 151.5696514 | F39: 49.6280334 | G39: 48.6501377
A40: ОВДП (6 - місячні) | B40: 0.55379 | C40: 0.17 | D40: 0 | E40: 0.215801 | F40: 10.8756279 | G40: 16.50702639
A41: ОВДП (6 - річні) | B41: 9.5 | C41: 27.1 | D41: 27.1 | E41: 24.1 | F41: 7.8001 | G41: 5.8001
A42: ОВДП (7 - річні) | B42: 47.143891 | C42: 54.624791 | D42: 48.624791 | E42: 44.739791 | F42: 19.72846 | G42: 17.755965
A43: ОВДП (8 - річні) | B43: 14.301198 | C43: 31.301198 | D43: 31.301198 | E43: 27.416198 | F43: 18.9 | G43: 17.5
A44: ОВДП (9 - місячні) | B44: 0 | C44: 0.845 | D44: 0 | E44: 0.196567 | F44: 0 | G44: 3.753269
A45: ОВДП (9 - річні) | B45: 14.874399 | C45: 36.874399 | D45: 36.874399 | E45: 36.874399 | F45: 19.4 | G45: 19.4
A46: 2. Заборгованість перед банківськими та іншими фінансовими установами | B46: =SUM(B$47:B$47) -> 2.909555495 | C46: 2.777302973 | D46: 2.64505045 | E46: 2.512797928 | F46: 2.380545405 | G46: 2.380545405
A47: Національний банк України | B47: 2.909555495 | C47: 2.777302973 | D47: 2.64505045 | E47: 2.512797928 | F47: 2.380545405 | G47: 2.380545405
A48: Зовнішній борг | B48: =B$49+B$56+B$62+B$64+B$76 -> 223.2590538 | C48: 486.0268463 | D48: 826.2704782 | E48: 980.1877545 | F48: 1080.310478 | G48: 1022.067555
A49: 1. Заборгованість за позиками, одержаними від міжнародних фінансових організацій | B49: =SUM(B$50:B$55) -> 61.90365009 | C49: 169.0899033 | D49: 337.4492911 | E49: 371.8465755 | F49: 407.4680194 | G49: 383.9095366
A50: Європейське Співтовариство | B50: 0 | C50: 26.15675488 | D50: 57.95311509 | E50: 62.81395484 | F50: 94.12214144 | G50: 91.89890878
A51: Європейський банк реконструкції та розвитку | B51: 4.766645754 | C51: 9.368981111 | D51: 13.99069907 | E51: 16.0723087 | F51: 18.00200891 | G51: 17.59454839
A52: Європейський Інвестиційний Банк | B52: 4.283134554 | C52: 7.652991944 | D52: 12.53014512 | E52: 14.52237776 | F52: 19.35682669 | G52: 18.64750935
A53: Міжнародний банк реконструкції та розвитку | B53: 24.53954845 | C53: 68.31898228 | D53: 124.7471258 | E53: 137.4605065 | F53: 137.8725235 | G53: 128.6367826
A54: Міжнародний Валютний Фонд | B54: 28.31432133 | C54: 57.58509724 | D54: 128.2076972 | E54: 140.9098527 | F54: 137.9472184 | G54: 126.9589705
A55: Фонд чистих технологій (МБРР) | B55: 0 | C55: 0.0070958502 | D55: 0.02050886997 | E55: 0.06757499901 | F55: 0.1673005701 | G55: 0.1728169789
A56: 2. Заборгованість за позиками, одержаними від органів управління іноземних держав | B56: =SUM(B$57:B$61) -> 7.278928575 | C56: 16.37226171 | D56: 32.70852715 | E56: 45.64750416 | F56: 49.29623741 | G56: 47.4941187
A57: Канада | B57: 0 | C57: 2.7121072 | D57: 6.9140144 | E57: 8.0323876 | F57: 8.90303 | G57: 8.2300692
A58: Німеччина | B58: 0.1064888486 | C58: 0.134630356 | D58: 5.428187703 | E58: 5.983279353 | F58: 7.487539054 | G58: 7.310677997
A59: Росія | B59: 5.623921639 | C59: 9.553472056 | D59: 14.54094475 | E59: 16.47374066 | F59: 17.00469153 | G59: 16.08153078
A60: США | B60: 0.09489139132 | C60: 0.1647326001 | D60: 0.216533956 | E60: 0.2065714027 | F60: 0.1732360397 | G60: 0.1638312992
A61: Японія | B61: 1.453626696 | C61: 3.807319496 | D61: 5.608846349 | E61: 14.95152515 | F61: 15.72774079 | G61: 15.70800942
A62: 3. Заборгованість за позиками, одержаними від іноземних комерційних банків, інших іноземних фінансових установ | B62: =SUM(B$63:B$63) -> 0.0005645446 | C62: 0.0009833632 | D62: 0.00134076761 | E62: 0.001453225 | F62: 0.00171259423 | G62: 0.00167214153
A63: Chase Manhattan Bank Luxembourg S.A. | B63: 0.0005645446 | C63: 0.0009833632 | D63: 0.00134076761 | E63: 0.001453225 | F63: 0.00171259423 | G63: 0.00167214153
A64: 4. Заборгованість за випущеними цінними паперами на зовнішньому ринку | B64: =SUM(B$65:B$75) -> 138.909068 | C64: 272.5093466 | D64: 415.2699327 | E64: 517.8044819 | F64: 574.4595155 | G64: 543.2729176
A65: ОЗДП 2005 року | B65: 6.624918 | C65: 11.5397448 | D65: 0 | E65: 0 | F65: 0 | G65: 0
A66: ОЗДП 2006 року | B66: 7.993 | C66: 15.768556 | D66: 0 | E66: 0 | F66: 0 | G66: 0
A67: ОЗДП 2007 року | B67: 5.5951 | C67: 11.0379892 | D67: 0 | E67: 0 | F67: 0 | G67: 0
A68: ОЗДП 2010 року | B68: 15.986 | C68: 31.537112 | D68: 0 | E68: 0 | F68: 0 | G68: 0
A69: ОЗДП 2011 року | B69: 21.98075 | C69: 43.363529 | D69: 0 | E69: 0 | F69: 0 | G69: 0
A70: ОЗДП 2012 року | B70: 46.75905 | C70: 76.4774966 | D70: 0 | E70: 0 | F70: 0 | G70: 0
A71: ОЗДП 2013 року | B71: 33.97025 | C71: 67.016363 | D71: 72.002001 | E71: 81.572574 | F71: 84.201669 | G71: 79.630479
A72: ОЗДП 2014 року | B72: 0 | C72: 15.768556 | D72: 24.000667 | E72: 27.190858 | F72: 28.067223 | G72: 26.543493
A73: ОЗДП 2015 року | B73: 0 | C73: 0 | D73: 319.2672647 | E73: 381.8501919 | F73: 349.9217315 | G73: 330.9249736
A74: ОЗДП 2016 року | B74: 0 | C74: 0 | D74: 0 | E74: 27.190858 | F74: 28.067223 | G74: 26.543493
A75: ОЗДП 2017 року | B75: 0 | C75: 0 | D75: 0 | E75: 0 | F75: 84.201669 | G75: 79.630479
A76: 5. Заборгованість, не віднесена до інших категорій | B76: =SUM(B$77:B$77) -> 15.16684257 | C76: 28.05435136 | D76: 40.84138642 | E76: 44.88773975 | F76: 49.0849934 | G76: 47.3893096
A77: Міжнародний Валютний Фонд | B77: 15.16684257 | C77: 28.05435136 | D77: 40.84138642 | E77: 44.88773975 | F77: 49.0849934 | G77: 47.3893096
A78: Гарантований державою борг | B78: =B$79+B$99 -> 104.5679415 | C78: 153.8027476 | D78: 237.9085577 | E78: 278.9755479 | F78: 307.9807571 | G78: 280.7538713
A79: Внутрішній борг | B79: =B$80+B$93+B$97 -> 27.12914981 | C79: 27.86328456 | D79: 21.45945491 | E79: 19.08447525 | F79: 13.27955451 | G79: 13.6982619
A80: 1. Заборгованість за випущеними цінними паперами на внутрішньому ринку | B80: =SUM(B$81:B$92) -> 21.13576798 | C80: 21.5670116 | D80: 16.4000116 | E80: 15.9500116 | F80: 8.9500116 | G80: 8.9500116
A81: Векселі Укравтодору | B81: 0.9998503833 | C81: 0 | D81: 0 | E81: 0 | F81: 0 | G81: 0
A82: Державні цінні папери | B82: 1.16e-05 | C82: 1.16e-05 | D82: 1.16e-05 | E82: 1.16e-05 | F82: 1.16e-05 | G82: 1.16e-05
A83: Облігації ДІУ (10 - річні) | B83: 0 | C83: 1 | D83: 1 | E83: 1 | F83: 1 | G83: 1
A84: Облігації ДІУ (5 - річні) | B84: 1.8 | C84: 3 | D84: 3 | E84: 3 | F84: 2 | G84: 2
A85: Облігації ДІУ (7 - річні) | B85: 1.4 | C85: 3.2 | D85: 3.2 | E85: 3 | F85: 3 | G85: 3
A86: Облігації ДП КАЗ "Авіант" (5 - річні) | B86: 0.578906 | C86: 0 | D86: 0 | E86: 0 | F86: 0 | G86: 0
A87: Облігації НАК "Нафтогаз України" (3 - річні) | B87: 4.8 | C87: 4.8 | D87: 4.8 | E87: 4.8 | F87: 0 | G87: 0
A88: Облігації Укравтодору (12 - місячні) | B88: 1.55 | C88: 0 | D88: 0 | E88: 0 | F88: 0 | G88: 0
A89: Облігації Укравтодору (3 - річні) | B89: 4.25 | C89: 4.25 | D89: 0.25 | E89: 0 | F89: 0 | G89: 0
A90: Облігації Укравтодору (5 - річні) | B90: 4.15 | C90: 4.15 | D90: 4.15 | E90: 4.15 | F90: 2.95 | G90: 2.95
A91: Облігації ХДАВП (5 - річні) | B91: 0.88 | C91: 0.44 | D91: 0 | E91: 0 | F91: 0 | G91: 0
A92: Облігації ХДАВП (6 - річні) | B92: 0.727 | C92: 0.727 | D92: 0 | E92: 0 | F92: 0 | G92: 0
A93: 2. Заборгованість перед банківськими та іншими фінансовими установами | B93: =SUM(B$94:B$96) -> 5.992427177 | C93: 6.295318313 | D93: 5.058488655 | E93: 3.133508998 | F93: 4.328588255 | G93: 4.747295651
A94: ВАТ "Державний експортно-імпортний банк України" | B94: 2.1 | C94: 2.1 | D94: 1.05 | E94: 0 | F94: 0.3414693782 | G94: 0.7283137977
A95: ВАТ "Державний ощадний банк України" | B95: 3.892427177 | C95: 4.009862318 | D95: 3.859862318 | E95: 3.021712318 | F95: 3.897676447 | G95: 3.933372688
A96: ПАТ АБ "Укргазбанк" | B96: 0 | C96: 0.1854559944 | D96: 0.1486263373 | E96: 0.1117966802 | F96: 0.08944243001 | G96: 0.08560916483
A97: 3. Заборгованість, не віднесена до інших категорій | B97: =SUM(B$98:B$98) -> 0.00095465 | C97: 0.00095465 | D97: 0.00095465 | E97: 0.00095465 | F97: 0.00095465 | G97: 0.00095465
A98: Інші кредитори | B98: 0.00095465 | C98: 0.00095465 | D98: 0.00095465 | E98: 0.00095465 | F98: 0.00095465 | G98: 0.00095465
A99: Зовнішній борг | B99: =B$100+B$106+B$108+B$123+B$127 -> 77.4387917 | C99: 125.939463 | D99: 216.4491028 | E99: 259.8910726 | F99: 294.7012026 | G99: 267.0556094
A100: 1. Заборгованість за позиками, одержаними від міжнародних фінансових організацій | B100: =SUM(B$101:B$105) -> 16.22562155 | C100: 40.11055668 | D100: 140.8338031 | E100: 190.9827477 | F100: 229.7137248 | G100: 209.5762676
A101: Європейське співтоватиство з атомної енергії | B101: 0.3183781317 | C101: 0.4514504503 | D101: 0.4566383727 | E101: 0.2958517627 | F101: 1.772586034 | G101: 1.665946345
A102: Європейський банк реконструкції та розвитку | B102: 0.7821906616 | C102: 1.392507257 | D102: 3.050143293 | E102: 10.56222922 | F102: 11.45411849 | G102: 3.661963692
A103: Європейський Інвестиційний Банк | B103: 0 | C103: 0 | D103: 0 | E103: 0.99479114 | F103: 1.17233984 | G103: 1.602507662
A104: Міжнародний банк реконструкції та розвитку | B104: 1.948240733 | C104: 5.807737291 | D104: 9.418982998 | E104: 12.37301899 | F104: 12.62098817 | G104: 11.9358125
A105: Міжнародний Валютний Фонд | B105: 13.17681203 | C105: 32.45886168 | D105: 127.9080385 | E105: 166.7568566 | F105: 202.6936923 | G105: 190.7100374
A106: 2. Заборгованість за позиками, одержаними від органів управління іноземних держав | B106: =SUM(B$107:B$107) -> 1.980933645 | C106: 3.842712472 | D106: 4.679066995 | E106: 3.975759701 | F106: 2.735932646 | G106: 1.940552037
A107: Канада | B107: 1.980933645 | C107: 3.842712472 | D107: 4.679066995 | E107: 3.975759701 | F107: 2.735932646 | G107: 1.940552037
A108: 3. Заборгованість за позиками, одержаними від іноземних комерційних банків, інших іноземних фінансових установ | B108: =SUM(B$109:B$122) -> 31.0260264 | C108: 51.61602411 | D108: 68.22755055 | E108: 61.95552088 | F108: 58.99613058 | G108: 52.39583629
A109: Aquasafety Invest plc | B109: 0.1840254926 | C109: 0 | D109: 0 | E109: 0 | F109: 0 | G109: 0
A110: CENTRAL STORAGE SAFETY PROJECT TRUST | B110: 0 | C110: 0 | D110: 0 | E110: 0 | F110: 0 | G110: 1.504766371
A111: Citibank, N.A., Deutsche Bank AG | B111: 0 | C111: 0 | D111: 0 | E111: 0 | F111: 10.58962563 | G111: 7.542216049
A112: Citibank, N.A. London | B112: 1.236150671 | C112: 1.435475707 | D112: 0.9786004447 | E112: 0 | F112: 0 | G112: 0
A113: Credit Suisse First Boston International | B113: 1.19895 | C113: 0 | D113: 0 | E113: 0 | F113: 0 | G113: 0
A114: Credit Suisse International | B114: 1.6113888 | C114: 2.384205667 | D114: 2.419267234 | E114: 0 | F114: 0 | G114: 0
A115: Deutsche Bank AG London | B115: 0.22837144 | C115: 0.2252651127 | D115: 0 | E115: 0.3881279224 | F115: 1.041412313 | G115: 1.004593491
A116: UniCredit Bank Austria AG | B116: 0.6569710314 | C116: 0.9808783024 | D116: 1.114482976 | E116: 0.96636853 | F116: 0.8541333063 | G116: 0.6949650526
A117: VTB Capital PLC | B117: 2.348876277 | C117: 2.316926537 | D117: 0 | E117: 0 | F117: 0 | G117: 0
A118: ВАТ "Газпромбанк" | B118: 3.9965 | C118: 7.884278 | D118: 12.0003335 | E118: 13.595429 | F118: 0 | G118: 0
A119: Державний банк розвитку КНР | B119: 0.679405 | C119: 1.34032726 | D119: 1.729968077 | E119: 1.608611159 | F119: 1.297828392 | G119: 1.227371116
A120: Експортно-імпортний банк Китаю | B120: 12.40612629 | C120: 24.47475256 | D120: 37.25200875 | E120: 41.84925707 | F120: 42.46657775 | G120: 37.82447752
A121: Експортно-імпортний банк Кореї | B121: 1.825051681 | C121: 3.086103516 | D121: 3.914358784 | E121: 3.547727198 | F121: 2.746553191 | G121: 2.597446687
A122: Сбербанк Росії | B122: 4.654209714 | C122: 7.487811449 | D122: 8.818530789 | E122: 0 | F122: 0 | G122: 0
A123: 4. Заборгованість за випущеними цінними паперами на зовнішньому ринку | B123: =SUM(B$124:B$126) -> 27.20031488 | C123: 28.50954925 | D123: 0 | E123: 0 | F123: 0 | G123: 0
A124: Облігації ДП "ФІНІНПРО" (5 - річні) | B124: 4.39615 | C124: 8.6727058 | D124: 0 | E124: 0 | F124: 0 | G124: 0
A125: Облігації ДП "ФІНІНПРО" (7 - річні) | B125: 10.055194 | C125: 19.83684345 | D125: 0 | E125: 0 | F125: 0 | G125: 0
A126: Облігації НАК "Нафтогаз" (5 - річні) | B126: 12.74897088 | C126: 0 | D126: 0 | E126: 0 | F126: 0 | G126: 0
A127: 5. Заборгованість, не віднесена до інших категорій | B127: =SUM(B$128:B$128) -> 1.005895222 | C127: 1.860620486 | D127: 2.708682131 | E127: 2.977044347 | F127: 3.255414573 | G127: 3.142953444
A128: Міжнародний Валютний Фонд | B128: 1.005895222 | C128: 1.860620486 | D128: 2.708682131 | E128: 2.977044347 | F128: 3.255414573 | G128: 3.142953444

Sheet YKT2_USD
A2: Державний та гарантований державою борг України за останні 5 років
G4: =VALUSD -> млрд. дол. США
B5: 2013-12-31 | C5: 2014-12-31 | D5: 2015-12-31 | E5: 2016-12-31 | F5: 2017-12-31 | G5: 2018-03-31
A6: Загальна сума державного та гарантованого державою боргу | B6: =B$7+B$78 -> 73.16233841 | C6: 69.81192296 | D6: 65.50568611 | E6: 70.97270829 | F6: 76.30575429 | G6: 77.36740816
A7: Державний борг | B7: =B$8+B$48 -> 60.07989859 | C7: 60.05816063 | D7: 55.59310503 | E7: 60.71280594 | F7: 65.33278568 | G7: 66.79028211
A8: Внутрішній борг | B8: =B$9+B$46 -> 32.14807652 | C8: 29.23562708 | D8: 21.16612522 | E8: 24.66437545 | F8: 26.84267647 | G8: 28.28489193
A9: 1. Заборгованість за випущеними цінними паперами на внутрішньому ринку | B9: =SUM(B$10:B$45) -> 31.78406358 | C9: 29.05949789 | D9: 21.05591785 | E9: 24.57196211 | F9: 26.75786062 | G9: 28.19520723
A10: Казначейські зобов'язання | B10: 0.2 | C10: 0.0056077424 | D10: 0.00410980245 | E10: 0 | F10: 0 | G10: 0
A11: ОВДП (1 - місячні) | B11: 0.2953806825 | C11: 0 | D11: 0 | E11: 0 | F11: 0 | G11: 0
A12: ОВДП (10 - річні) | B12: 1.969496935 | C12: 3.187004885 | D12: 2.523199168 | E12: 2.752137612 | F12: 2.232156669 | G12: 2.360293689
A13: ОВДП (11 - річні) | B13: 0.4816690854 | C13: 0.2441555841 | D13: 0.7242707463 | E13: 0.6392950528 | F13: 0.6781219503 | G13: 0.7170495609
A14: ОВДП (12 - місячні) | B14: 0.3701634931 | C14: 0.4653494892 | D14: 0.345145 | E14: 0.1278948241 | F14: 0.2459377617 | G14: 0.3455238599
A15: ОВДП (12 - річні) | B15: 0.1876642062 | C15: 0.09512602169 | D15: 0.5208188589 | E15: 1.048146403 | F15: 1.300449282 | G15: 1.375101612
A16: ОВДП (13 - річні) | B16: 0 | C16: 0.1660031521 | D16: 0.5465527271 | E16: 1.365077557 | F16: 1.022545088 | G16: 1.081244319
A17: ОВДП (14 - річні) | B17: 0 | C17: 0.2061063803 | D17: 0.1354129033 | E17: 1.884824672 | F17: 1.670988256 | G17: 1.766911386
A18: ОВДП (15 - річні) | B18: 0 | C18: 1.005091398 | D18: 0.6603499811 | E18: 1.573684729 | F18: 3.329102313 | G18: 3.520209529
A19: ОВДП (16 - річні) | B19: 0 | C19: 0 | D19: 0 | E19: 0 | F19: 0.4310274657 | G19: 0.4557706101
A20: ОВДП (17 - річні) | B20: 0 | C20: 0 | D20: 0 | E20: 0 | F20: 0.4310274657 | G20: 0.4557706101
A21: ОВДП (18 - місячні) | B21: 0.350735 | C21: 0.04878800063 | D21: 0.04370400039 | E21: 1.076022 | F21: 1.07894224 | G21: 1.084112561
A22: ОВДП (18 - річні) | B22: 0 | C22: 0 | D22: 0 | E22: 0 | F22: 0.4310274657 | G22: 0.4557706101
A23: ОВДП (19 - річні) | B23: 0 | C23: 0 | D23: 0 | E23: 0 | F23: 0.4310274657 | G23: 0.4557706101
A24: ОВДП (2 - річні) | B24: 2.548580788 | C24: 2.594237137 | D24: 0.9129055595 | E24: 2.366730742 | F24: 2.551204471 | G24: 2.030171243
A25: ОВДП (20 - річні) | B25: 0 | C25: 0 | D25: 0 | E25: 0 | F25: 0.4310274657 | G25: 0.4557706101
A26: ОВДП (21-річні) | B26: 0 | C26: 0 | D26: 0 | E26: 0 | F26: 0.4310274657 | G26: 0.4557706101
A27: ОВДП (22-річні) | B27: 0 | C27: 0 | D27: 0 | E27: 0 | F27: 0.4310274657 | G27: 0.4557706101
A28: ОВДП (23-річні) | B28: 0 | C28: 0 | D28: 0 | E28: 0 | F28: 0.4310274657 | G28: 0.4557706101
A29: ОВДП (24-річні) | B29: 0 | C29: 0 | D29: 0 | E29: 0 | F29: 0.4310274657 | G29: 0.4557706101
A30: ОВДП (25-річні) | B30: 0 | C30: 0 | D30: 0 | E30: 0 | F30: 0.4310274657 | G30: 0.4557706101
A31: ОВДП (26-річні) | B31: 0 | C31: 0 | D31: 0 | E31: 0 | F31: 0.4310274657 | G31: 0.4557706101
A32: ОВДП (27-річні) | B32: 0 | C32: 0 | D32: 0 | E32: 0 | F32: 0.4310274657 | G32: 0.4557706101
A33: ОВДП (28-річні) | B33: 0 | C33: 0 | D33: 0 | E33: 0 | F33: 0.4310274657 | G33: 0.4557706101
A34: ОВДП (29-річні) | B34: 0 | C34: 0 | D34: 0 | E34: 0 | F34: 0.4310274657 | G34: 0.4557706101
A35: ОВДП (3 - місячні) | B35: 0 | C35: 0 | D35: 0 | E35: 0.00036777067 | F35: 0.01941766737 | G35: 0.3008665438
A36: ОВДП (3 - річні) | B36: 4.335855935 | C36: 2.954300622 | D36: 1.80733461 | E36: 0.6789923657 | F36: 1.661455018 | G36: 1.90227767
A37: ОВДП (30-річні) | B37: 0 | C37: 0 | D37: 0 | E37: 0 | F37: 0.4310277151 | G37: 0.4557708739
A38: ОВДП (4 - річні) | B38: 0.8154841361 | C38: 0.1853170867 | D38: 0.6268620251 | E38: 0.5731903451 | F38: 0.00106886242 | G38: 0.0011302205
A39: ОВДП (5 - річні) | B39: 9.422918214 | C39: 8.331756744 | D39: 6.209569597 | E39: 5.574287189 | F39: 1.768184669 | G39: 1.832846103
A40: ОВДП (6 - місячні) | B40: 0.06928437383 | C40: 0.01078094912 | D40: 0 | E40: 0.00793652779 | F40: 0.387485 | G40: 0.6218859886
A41: ОВДП (6 - річні) | B41: 1.188539972 | C41: 1.718610125 | D41: 1.129135286 | E41: 0.886327309 | F41: 0.277907793 | G41: 0.2185130646
A42: ОВДП (7 - річні) | B42: 5.898147254 | C42: 3.464159369 | D42: 2.025976653 | E42: 1.645398281 | F42: 0.702900319 | G42: 0.6689385229
A43: ОВДП (8 - річні) | B43: 1.789215313 | C43: 1.98503896 | D43: 1.304180338 | E43: 1.008287344 | F43: 0.6733833269 | G43: 0.6592952932
A44: ОВДП (9 - місячні) | B44: 0 | C44: 0.05358765889 | D44: 0 | E44: 0.00722915769 | F44: 0 | G44: 0.1414007192
A45: ОВДП (9 - річні) | B45: 1.860928187 | C45: 2.338476586 | D45: 1.536390593 | E45: 1.356132234 | F45: 0.6911977006 | G45: 0.7308759251
A46: 2. Заборгованість перед банківськими та іншими фінансовими установами | B46: =SUM(B$47:B$47) -> 0.3640129482 | C46: 0.1761291885 | D46: 0.1102073726 | E46: 0.09241333715 | F46: 0.08481585104 | G46: 0.08968470748
A47: Національний банк України | B47: 0.3640129482 | C47: 0.1761291885 | D47: 0.1102073726 | E47: 0.09241333715 | F47: 0.08481585104 | G47: 0.08968470748
A48: Зовнішній борг | B48: =B$49+B$56+B$62+B$64+B$76 -> 27.93182207 | C48: 30.82253355 | D48: 34.42697981 | E48: 36.04843049 | F48: 38.4901092 | G48: 38.50539018
A49: 1. Заборгованість за позиками, одержаними від міжнародних фінансових організацій | B49: =SUM(B$50:B$55) -> 7.744732902 | C49: 10.72323321 | D49: 14.05999638 | E49: 13.67542633 | F49: 14.51757516 | G49: 14.46341432
A50: Європейське Співтовариство | B50: 0 | C50: 1.658792021 | D50: 2.414646022 | E50: 2.310113011 | F50: 3.353454007 | G50: 3.462201029
A51: Європейський банк реконструкції та розвитку | B51: 0.5963525277 | C51: 0.5941559335 | D51: 0.582929594 | E51: 0.59109237 | F51: 0.6413890292 | G51: 0.6628573107
A52: Європейський Інвестиційний Банк | B52: 0.5358606974 | C52: 0.4853324518 | D52: 0.5220748706 | E52: 0.5340904563 | F52: 0.6896594896 | G52: 0.7025265799
A53: Міжнародний банк реконструкції та розвитку | B53: 3.070129919 | C53: 4.33260866 | D53: 5.197652457 | E53: 5.055394225 | F53: 4.912225319 | G53: 4.846264304
A54: Міжнародний Валютний Фонд | B54: 3.542389758 | C54: 3.651894139 | D54: 5.341838923 | E54: 5.18225106 | F54: 4.914886605 | G54: 4.783054382
A55: Фонд чистих технологій (МБРР) | B55: 0 | C55: 0.00045 | D55: 0.0008545125 | E55: 0.00248521025 | F55: 0.00596070976 | G55: 0.00651070976
A56: 2. Заборгованість за позиками, одержаними від органів управління іноземних держав | B56: =SUM(B$57:B$61) -> 0.9106629019 | C56: 1.038285415 | D56: 1.362817423 | E56: 1.678781308 | F56: 1.756363193 | G56: 1.789294223
A57: Канада | B57: 0 | C57: 0.1719946455 | D57: 0.2880759272 | E57: 0.295407655 | F57: 0.3172038074 | G57: 0.3100597649
A58: Німеччина | B58: 0.01332276348 | C58: 0.00853790011 | D58: 0.226168202 | E58: 0.2200474642 | F58: 0.266771638 | G58: 0.2754226054
A59: Росія | B59: 0.70360586 | C59: 0.60585586 | D59: 0.60585586 | E59: 0.60585586 | F59: 0.60585586 | G59: 0.60585586
A60: США | B60: 0.01187181175 | C60: 0.01044690459 | D60: 0.00902199743 | E60: 0.00759709027 | F60: 0.00617218311 | G60: 0.00617218311
A61: Японія | B61: 0.1818624667 | C61: 0.2414501046 | D61: 0.2336954364 | E61: 0.5498732387 | F61: 0.5603597046 | G61: 0.5917838101
A62: 3. Заборгованість за позиками, одержаними від іноземних комерційних банків, інших іноземних фінансових установ | B62: =SUM(B$63:B$63) -> 7.062988e-05 | C62: 6.236229e-05 | D62: 5.586376e-05 | E62: 5.344535e-05 | F62: 6.101759e-05 | G62: 6.299629e-05
A63: Chase Manhattan Bank Luxembourg S.A. | B63: 7.062988e-05 | C63: 6.236229e-05 | D63: 5.586376e-05 | E63: 5.344535e-05 | F63: 6.101759e-05 | G63: 6.299629e-05
A64: 4. Заборгованість за випущеними цінними паперами на зовнішньому ринку | B64: =SUM(B$65:B$75) -> 17.37883998 | C64: 17.28182001 | D64: 17.302433 | E64: 19.04333 | F64: 20.467273 | G64: 20.467273
A65: ОЗДП 2005 року | B65: 0.828839985 | C65: 0.7318200094 | D65: 0 | E65: 0 | F65: 0 | G65: 0
A66: ОЗДП 2006 року | B66: 1 | C66: 1 | D66: 0 | E66: 0 | F66: 0 | G66: 0
A67: ОЗДП 2007 року | B67: 0.7 | C67: 0.7 | D67: 0 | E67: 0 | F67: 0 | G67: 0
A68: ОЗДП 2010 року | B68: 2 | C68: 2 | D68: 0 | E68: 0 | F68: 0 | G68: 0
A69: ОЗДП 2011 року | B69: 2.75 | C69: 2.75 | D69: 0 | E69: 0 | F69: 0 | G69: 0
A70: ОЗДП 2012 року | B70: 5.85 | C70: 4.85 | D70: 0 | E70: 0 | F70: 0 | G70: 0
A71: ОЗДП 2013 року | B71: 4.25 | C71: 4.25 | D71: 3 | E71: 3 | F71: 3 | G71: 3
A72: ОЗДП 2014 року | B72: 0 | C72: 1 | D72: 1 | E72: 1 | F72: 1 | G72: 1
A73: ОЗДП 2015 року | B73: 0 | C73: 0 | D73: 13.302433 | E73: 14.04333 | F73: 12.467273 | G73: 12.467273
A74: ОЗДП 2016 року | B74: 0 | C74: 0 | D74: 0 | E74: 1 | F74: 1 | G74: 1
A75: ОЗДП 2017 року | B75: 0 | C75: 0 | D75: 0 | E75: 0 | F75: 3 | G75: 3
A76: 5. Заборгованість, не віднесена до інших категорій | B76: =SUM(B$77:B$77) -> 1.897515648 | C76: 1.779132557 | D76: 1.701677142 | E76: 1.650839402 | F76: 1.748836834 | G76: 1.785345644
A77: Міжнародний Валютний Фонд | B77: 1.897515648 | C77: 1.779132557 | D77: 1.701677142 | E77: 1.650839402 | F77: 1.748836834 | G77: 1.785345644
A78: Гарантований державою борг | B78: =B$79+B$99 -> 13.08243982 | C78: 9.753762333 | D78: 9.912581084 | E78: 10.25990235 | F78: 10.97296861 | G78: 10.57712605
A79: Внутрішній борг | B79: =B$80+B$93+B$97 -> 3.394113576 | C79: 1.767015608 | D79: 0.8941191053 | E79: 0.7018710203 | F79: 0.4731338938 | G79: 0.5160685483
A80: 1. Заборгованість за випущеними цінними паперами на внутрішньому ринку | B80: =SUM(B$81:B$92) -> 2.644284747 | C80: 1.367722675 | D80: 0.6833148262 | E80: 0.5865946415 | F80: 0.318877703 | G80: 0.3371828869
A81: Векселі Укравтодору | B81: 0.1250907523 | C81: 0 | D81: 0 | E81: 0 | F81: 0 | G81: 0
A82: Державні цінні папери | B82: 1.45127e-06 | C82: 7.3564e-07 | D82: 4.8332e-07 | E82: 4.2661e-07 | F82: 4.1329e-07 | G82: 4.3702e-07
A83: Облігації ДІУ (10 - річні) | B83: 0 | C83: 0.06341734779 | D83: 0.04166550871 | E83: 0.03677706676 | F83: 0.03562874745 | G83: 0.03767401675
A84: Облігації ДІУ (5 - річні) | B84: 0.2251970476 | C84: 0.1902520434 | D84: 0.1249965261 | E84: 0.1103312003 | F84: 0.0712574949 | G84: 0.0753480335
A85: Облігації ДІУ (7 - річні) | B85: 0.1751532591 | C85: 0.202935513 | D85: 0.1333296278 | E85: 0.1103312003 | F85: 0.1068862423 | G85: 0.1130220503
A86: Облігації ДП КАЗ "Авіант" (5 - річні) | B86: 0.0724266233 | C86: 0 | D86: 0 | E86: 0 | F86: 0 | G86: 0
A87: Облігації НАК "Нафтогаз України" (3 - річні) | B87: 0.6005254598 | C87: 0.3044032694 | D87: 0.1999944418 | E87: 0.1765299205 | F87: 0 | G87: 0
A88: Облігації Укравтодору (12 - місячні) | B88: 0.1939196797 | C88: 0 | D88: 0 | E88: 0 | F88: 0 | G88: 0
A89: Облігації Укравтодору (3 - річні) | B89: 0.5317152508 | C89: 0.2695237281 | D89: 0.01041637718 | E89: 0 | F89: 0 | G89: 0
A90: Облігації Укравтодору (5 - річні) | B90: 0.5192043038 | C90: 0.2631819933 | D90: 0.1729118612 | E90: 0.1526248271 | F90: 0.105104805 | G90: 0.1111383494
A91: Облігації ХДАВП (5 - річні) | B91: 0.1100963343 | C91: 0.02790363302 | D91: 0 | E91: 0 | F91: 0 | G91: 0
A92: Облігації ХДАВП (6 - річні) | B92: 0.09095458526 | C92: 0.04610441184 | D92: 0 | E92: 0 | F92: 0 | G92: 0
A93: 2. Заборгованість перед банківськими та іншими фінансовими установами | B93: =SUM(B$94:B$96) -> 0.7497093929 | C93: 0.3992323909 | D93: 0.2107645031 | E93: 0.1152412696 | F93: 0.1542221778 | G93: 0.1788496959
A94: ВАТ "Державний експортно-імпортний банк України" | B94: 0.2627298887 | C94: 0.1331764304 | D94: 0.04374878415 | E94: 0 | F94: 0.01216612625 | G94: 0.02743850623
A95: ВАТ "Державний ощадний банк України" | B95: 0.4869795042 | C95: 0.2542948332 | D95: 0.160823127 | E95: 0.1111297157 | F95: 0.1388693298 | G95: 0.1481859486
A96: ПАТ АБ "Укргазбанк" | B96: 0 | C96: 0.0117611273 | D96: 0.00619259195 | E96: 0.00411155398 | F96: 0.00318672175 | G96: 0.00322524111
A97: 3. Заборгованість, не віднесена до інших категорій | B97: =SUM(B$98:B$98) -> 0.00011943576 | C97: 6.054137e-05 | D97: 3.977598e-05 | E97: 3.510923e-05 | F97: 3.401298e-05 | G97: 3.59655e-05
A98: Інші кредитори | B98: 0.00011943576 | C98: 6.054137e-05 | D98: 3.977598e-05 | E98: 3.510923e-05 | F98: 3.401298e-05 | G98: 3.59655e-05
A99: Зовнішній борг | B99: =B$100+B$106+B$108+B$123+B$127 -> 9.688326248 | C99: 7.986746725 | D99: 9.018461978 | E99: 9.558031329 | F99: 10.49983472 | G99: 10.0610575
A100: 1. Заборгованість за позиками, одержаними від міжнародних фінансових організацій | B100: =SUM(B$101:B$105) -> 2.029978926 | C100: 2.543705123 | D100: 5.867912051 | E100: 7.023785262 | F100: 8.184412287 | G100: 7.895579817
A101: Європейське співтоватиство з атомної енергії | B101: 0.03983211956 | C101: 0.02862979021 | D101: 0.0190260701 | E101: 0.01088056003 | F101: 0.06315502013 | G101: 0.06276289052
A102: Європейський банк реконструкції та розвитку | B102: 0.09785945972 | C102: 0.08830911699 | D102: 0.127085772 | E102: 0.3884478092 | F102: 0.4080958951 | G102: 0.1379608815
A103: Європейський Інвестиційний Банк | B103: 0 | C103: 0 | D103: 0 | E103: 0.03658550017 | F103: 0.04176900009 | G103: 0.06037290051
A104: Міжнародний банк реконструкції та розвитку | B104: 0.2437433671 | C104: 0.3683112957 | D104: 0.3924467181 | E104: 0.4550433454 | F104: 0.44967 | G104: 0.44967
A105: Міжнародний Валютний Фонд | B105: 1.648543979 | C105: 2.05845492 | D105: 5.329353491 | E105: 6.132828047 | F105: 7.221722372 | G105: 7.184813144
A106: 2. Заборгованість за позиками, одержаними від органів управління іноземних держав | B106: =SUM(B$107:B$107) -> 0.24783356 | C106: 0.2436946333 | D106: 0.1949557066 | E106: 0.14621678 | F106: 0.09747785328 | G106: 0.07310838994
A107: Канада | B107: 0.24783356 | C107: 0.2436946333 | D107: 0.1949557066 | E107: 0.14621678 | F107: 0.09747785328 | G107: 0.07310838994
A108: 3. Заборгованість за позиками, одержаними від іноземних комерційних банків, інших іноземних фінансових установ | B108: =SUM(B$109:B$122) -> 3.881649744 | C108: 3.273351352 | D108: 2.842735602 | E108: 2.278542328 | F108: 2.101958237 | G108: 1.973961614
A109: Aquasafety Invest plc | B109: 0.023023332 | C109: 0 | D109: 0 | E109: 0 | F109: 0 | G109: 0
A110: CENTRAL STORAGE SAFETY PROJECT TRUST | B110: 0 | C110: 0 | D110: 0 | E110: 0 | F110: 0 | G110: 0.05669059346
A111: Citibank, N.A., Deutsche Bank AG | B111: 0 | C111: 0 | D111: 0 | E111: 0 | F111: 0.3772950971 | G111: 0.2841455738
A112: Citibank, N.A. London | B112: 0.1546541562 | C112: 0.09103406216 | D112: 0.04077388535 | E112: 0 | F112: 0 | G112: 0
A113: Credit Suisse First Boston International | B113: 0.15 | C113: 0 | D113: 0 | E113: 0 | F113: 0 | G113: 0
A114: Credit Suisse International | B114: 0.2016 | C114: 0.1512 | D114: 0.1008 | E114: 0 | F114: 0 | G114: 0
A115: Deutsche Bank AG London | B115: 0.02857143 | C115: 0.014285716 | D115: 0 | E115: 0.01427420651 | F115: 0.0371042163 | G115: 0.03784707201
A116: UniCredit Bank Austria AG | B116: 0.08219329806 | C116: 0.06220470044 | D116: 0.04643550014 | E116: 0.03554019995 | F116: 0.03043169986 | G116: 0.02618212504
A117: VTB Capital PLC | B117: 0.293866668 | C117: 0.146933336 | D117: 0 | E117: 0 | F117: 0 | G117: 0
A118: ВАТ "Газпромбанк" | B118: 0.5 | C118: 0.5 | D118: 0.5 | E118: 0.5 | F118: 0 | G118: 0
A119: Державний банк розвитку КНР | B119: 0.085 | C119: 0.085 | D119: 0.07208 | E119: 0.05916 | F119: 0.04624 | G119: 0.04624
A120: Експортно-імпортний банк Китаю | B120: 1.552123895 | C120: 1.552123895 | D120: 1.552123895 | E120: 1.539092921 | F120: 1.513030974 | G120: 1.425
A121: Експортно-імпортний банк Кореї | B121: 0.22833125 | C121: 0.1957125 | D121: 0.16309375 | E121: 0.130475 | F121: 0.09785625 | G121: 0.09785625
A122: Сбербанк Росії | B122: 0.5822857143 | C122: 0.4748571429 | D122: 0.3674285714 | E122: 0 | F122: 0 | G122: 0
A123: 4. Заборгованість за випущеними цінними паперами на зовнішньому ринку | B123: =SUM(B$124:B$126) -> 3.403017 | C123: 1.808 | D123: 0 | E123: 0 | F123: 0 | G123: 0
A124: Облігації ДП "ФІНІНПРО" (5 - річні) | B124: 0.55 | C124: 0.55 | D124: 0 | E124: 0 | F124: 0 | G124: 0
A125: Облігації ДП "ФІНІНПРО" (7 - річні) | B125: 1.258 | C125: 1.258 | D125: 0 | E125: 0 | F125: 0 | G125: 0
A126: Облігації НАК "Нафтогаз" (5 - річні) | B126: 1.595017 | C126: 0 | D126: 0 | E126: 0 | F126: 0 | G126: 0
A127: 5. Заборгованість, не віднесена до інших категорій | B127: =SUM(B$128:B$128) -> 0.1258470189 | C127: 0.1179956164 | D127: 0.1128586189 | E127: 0.1094869587 | F127: 0.1159863437 | G127: 0.1184076807
A128: Міжнародний Валютний Фонд | B128: 0.1258470189 | C128: 0.1179956164 | D128: 0.1128586189 | E128: 0.1094869587 | F128: 0.1159863437 | G128: 0.1184076807

Sheet KIND_CMP (hidden)
B1: ="Державний та гарантований державою борг України за станом на " & TEXT(DREPORTDATE,"dd.MM.yyyy") -> Державний та гарантований державою борг України за станом на 31.03.2018
A2: Структура боргу за ознакою умовності на кінець попереднього року та на звітну дату
H4: тис.одиниць | I4: =VALVAL -> млрд. одиниць
B5: 2017-12-31 | E5: 2018-03-31
B6: дол.США | C6: грн. | D6: % | E6: дол.США | F6: грн. | G6: % | H6: % | I6: Зміна структури
A7: Загальна сума державного та гарантованого державою боргу | B7: =SUM(B$8+ B$9) -> 76.30575429 | C7: 2141.690622 | D7: 1 | E7: 77.36740816 | F7: 2053.601257 | G7: 1 | I7: =SUM(I$8+ I$9) -> 0
A8: Державний борг | B8: 65.33278568 | C8: 1833.709865 | D8: 0.856197 | E8: 66.79028211 | F8: 1772.847386 | G8: 0.863287 | H8: 0.00709 | I8: -21.4
A9: Гарантований державою борг | B9: 10.97296861 | C9: 307.9807571 | D9: 0.143803 | E9: 10.57712605 | F9: 280.7538713 | G9: 0.136713 | H9: -0.00709 | I9: 21.4

Sheet DTR (hidden)
A2: Структура державного та гарантованого державою боргу в розрізі термінів погашення
D4: =VALVAL -> млрд. одиниць
B5: дол.США | C5: грн. | D5: % | E5: FORMAT
A6: Загальна сума державного та гарантованого державою боргу | B6: =SUM(B$7+ B$8+ B$9) -> 77.36740816 | C6: 2053.601257 | D6: 0.999999 | E6: 3
A7: 2018.03.31-2018.12.31 | B7: 3.74359037 | C7: 99.36796478 | D7: 0.048387 | E7: 1
A8: 2019-2023 | B8: 21.85887442 | C8: 580.2108801 | D8: 0.282533 | E8: 1
A9: 2023-31.12.2060 | B9: 51.76494337 | C9: 1374.022412 | D9: 0.669079 | E9: 1

Sheet DEBT_TERM (hidden)
A3: Державний та гарантований державою борг України
A4: =" за станом на " & TEXT(DREPORTDATE,"dd.MM.yyyy") -> за станом на 31.03.2018
A5: (в розрізі середнього терміну обігу та середньої ставки)
B8: Середня ставка, % | C8: Середній термін обігу, років | D8: Середній термін до погашення, років | E8: ="Сума боргу " & VALVAL -> Сума боргу млрд. одиниць | F8: IS_CHART_DATA | G8: IS_OVDP | H8: FORMAT
A9: Державний та гарантований державою борг України | B9: 387.167 | C9: 13 | D9: 9.98 | E9: 2053601257 | F9: 0 | G9: 0 | H9: 3 | I9: =IF(A9="","",A9 & "; " &B9 & "%; "&C9 &"р.") -> Державний та гарантований державою борг України; 387,167%; 13р. | J9: =E9 -> 2053601257
A10: Державний борг | B10: 440.156 | C10: 12.9 | D10: 10.01 | E10: 1772847386 | F10: 0 | G10: 0 | H10: 2 | I10: Державний борг; 440,156%; 12,9р. | J10: 1772847386
A11: Державний внутрішній борг | B11: 248.222 | C11: 11.8 | D11: 10.43 | E11: 750779831 | F11: 1 | G11: 0 | H11: 0 | I11: Державний внутрішній борг; 248,222%; 11,8р. | J11: 750779831
A12: в т.ч. ОВДП | B12: 248.996 | C12: 11.72 | D12: 10.4 | E12: 748399285.6 | F12: 0 | G12: 0 | H12: 0 | I12: в т.ч. ОВДП; 248,996%; 11,72р. | J12: 748399285.6
A13: ОВДП (1 - місячні) | B13: 0 | C13: 0 | D13: 0 | E13: 0 | F13: 0 | G13: 1 | H13: 0 | I13: ОВДП (1 - місячні); 0%; 0р. | J13: 0
A14: ОВДП (10 - річні) | B14: 120.58 | C14: 9.99 | D14: 7.99 | E14: 61320439 | F14: 0 | G14: 1 | H14: 0 | I14: ОВДП (10 - річні); 120,58%; 9,99р. | J14: 61320439
A15: ОВДП (11 - річні) | B15: 29.461 | C15: 11 | D15: 8.35 | E15: 19033000 | F15: 0 | G15: 1 | H15: 0 | I15: ОВДП (11 - річні); 29,461%; 11р. | J15: 19033000
A16: ОВДП (12 - місячні) | B16: 220.88 | C16: 0.88 | D16: 0.75 | E16: 9171410.16 | F16: 0 | G16: 1 | H16: 0 | I16: ОВДП (12 - місячні); 220,88%; 0,88р. | J16: 9171410.16
A17: ОВДП (12 - річні) | B17: 218.882 | C17: 12.08 | D17: 10.36 | E17: 36500000 | F17: 0 | G17: 1 | H17: 0 | I17: ОВДП (12 - річні); 218,882%; 12,08р. | J17: 36500000
A18: ОВДП (13 - річні) | B18: 7.597 | C18: 13.19 | D18: 11.97 | E18: 28700001 | F18: 0 | G18: 1 | H18: 0 | I18: ОВДП (13 - річні); 7,597%; 13,19р. | J18: 28700001
A19: ОВДП (14 - річні) | B19: 45.771 | C19: 14.05 | D19: 12.84 | E19: 46900000 | F19: 0 | G19: 1 | H19: 0 | I19: ОВДП (14 - річні); 45,771%; 14,05р. | J19: 46900000
A20: ОВДП (15 - річні) | B20: 195.76 | C20: 14.29 | D20: 12.99 | E20: 93438657 | F20: 0 | G20: 1 | H20: 0 | I20: ОВДП (15 - річні); 195,76%; 14,29р. | J20: 93438657
A21: ОВДП (16 - річні) | B21: 857.5 | C21: 15.85 | D21: 15.37 | E21: 12097744 | F21: 0 | G21: 1 | H21: 0 | I21: ОВДП (16 - річні); 857,5%; 15,85р. | J21: 12097744
A22: ОВДП (17 - річні) | B22: 836.5 | C22: 16.85 | D22: 16.37 | E22: 12097744 | F22: 0 | G22: 1 | H22: 0 | I22: ОВДП (17 - річні); 836,5%; 16,85р. | J22: 12097744
A23: ОВДП (18 - місячні) | B23: 344.679 | C23: 1.45 | D23: 0.83 | E23: 28776134.18 | F23: 0 | G23: 1 | H23: 0 | I23: ОВДП (18 - місячні); 344,679%; 1,45р. | J23: 28776134.18
A24: ОВДП (18 - річні) | B24: 817 | C24: 17.85 | D24: 17.37 | E24: 12097744 | F24: 0 | G24: 1 | H24: 0 | I24: ОВДП (18 - річні); 817%; 17,85р. | J24: 12097744
A25: ОВДП (19 - річні) | B25: 16.4 | C25: 18.86 | D25: 18.38 | E25: 12097744 | F25: 0 | G25: 1 | H25: 0 | I25: ОВДП (19 - річні); 16,4%; 18,86р. | J25: 12097744
A26: ОВДП (2 - річні) | B26: 346.695 | C26: 1.63 | D26: 0.56 | E26: 53887836.18 | F26: 0 | G26: 1 | H26: 0 | I26: ОВДП (2 - річні); 346,695%; 1,63р. | J26: 53887836.18
A27: ОВДП (20 - річні) | B27: 16.4 | C27: 19.86 | D27: 19.38 | E27: 12097744 | F27: 0 | G27: 1 | H27: 0 | I27: ОВДП (20 - річні); 16,4%; 19,86р. | J27: 12097744
A28: ОВДП (21-річні) | B28: 16.4 | C28: 20.86 | D28: 20.38 | E28: 12097744 | F28: 0 | G28: 1 | H28: 0 | I28: ОВДП (21-річні); 16,4%; 20,86р. | J28: 12097744
A29: ОВДП (22-річні) | B29: 16.4 | C29: 21.86 | D29: 21.38 | E29: 12097744 | F29: 0 | G29: 1 | H29: 0 | I29: ОВДП (22-річні); 16,4%; 21,86р. | J29: 12097744
A30: ОВДП (23-річні) | B30: 16.4 | C30: 22.86 | D30: 22.38 | E30: 12097744 | F30: 0 | G30: 1 | H30: 0 | I30: ОВДП (23-річні); 16,4%; 22,86р. | J30: 12097744
A31: ОВДП (24-річні) | B31: 16.4 | C31: 23.86 | D31: 23.38 | E31: 12097744 | F31: 0 | G31: 1 | H31: 0 | I31: ОВДП (24-річні); 16,4%; 23,86р. | J31: 12097744
A32: ОВДП (25-річні) | B32: 16.4 | C32: 24.86 | D32: 24.38 | E32: 12097744 | F32: 0 | G32: 1 | H32: 0 | I32: ОВДП (25-річні); 16,4%; 24,86р. | J32: 12097744
A33: ОВДП (26-річні) | B33: 16.4 | C33: 25.86 | D33: 25.38 | E33: 12097744 | F33: 0 | G33: 1 | H33: 0 | I33: ОВДП (26-річні); 16,4%; 25,86р. | J33: 12097744
A34: ОВДП (27-річні) | B34: 16.4 | C34: 26.86 | D34: 26.38 | E34: 12097744 | F34: 0 | G34: 1 | H34: 0 | I34: ОВДП (27-річні); 16,4%; 26,86р. | J34: 12097744
A35: ОВДП (28-річні) | B35: 16.4 | C35: 27.86 | D35: 27.38 | E35: 12097744 | F35: 0 | G35: 1 | H35: 0 | I35: ОВДП (28-річні); 16,4%; 27,86р. | J35: 12097744
A36: ОВДП (29-річні) | B36: 16.4 | C36: 28.86 | D36: 28.38 | E36: 12097744 | F36: 0 | G36: 1 | H36: 0 | I36: ОВДП (29-річні); 16,4%; 28,86р. | J36: 12097744
A37: ОВДП (3 - місячні) | B37: 1275 | C37: 0.23 | D37: 0.11 | E37: 7986049 | F37: 0 | G37: 1 | H37: 0 | I37: ОВДП (3 - місячні); 1275%; 0,23р. | J37: 7986049
A38: ОВДП (3 - річні) | B38: 691.163 | C38: 2.55 | D38: 1.71 | E38: 50493094.01 | F38: 0 | G38: 1 | H38: 0 | I38: ОВДП (3 - річні); 691,163%; 2,55р. | J38: 50493094.01
A39: ОВДП (30-річні) | B39: 16.4 | C39: 29.86 | D39: 29.38 | E39: 12097751 | F39: 0 | G39: 1 | H39: 0 | I39: ОВДП (30-річні); 16,4%; 29,86р. | J39: 12097751
A40: ОВДП (4 - річні) | B40: 16 | C40: 4.95 | D40: 3.37 | E40: 30000 | F40: 0 | G40: 1 | H40: 0 | I40: ОВДП (4 - річні); 16%; 4,95р. | J40: 30000
A41: ОВДП (5 - річні) | B41: 94.25 | C41: 4.38 | D41: 1.89 | E41: 42095922.7 | F41: 0 | G41: 1 | H41: 0 | I41: ОВДП (5 - річні); 94,25%; 4,38р. | J41: 42095922.7
A42: ОВДП (6 - місячні) | B42: 1380.301 | C42: 0.48 | D42: 0.26 | E42: 16507026.39 | F42: 0 | G42: 1 | H42: 0 | I42: ОВДП (6 - місячні); 1380,301%; 0,48р. | J42: 16507026.39
A43: ОВДП (6 - річні) | B43: 14.3 | C43: 6.64 | D43: 3.01 | E43: 5800100 | F43: 0 | G43: 1 | H43: 0 | I43: ОВДП (6 - річні); 14,3%; 6,64р. | J43: 5800100
A44: ОВДП (7 - річні) | B44: 29.308 | C44: 6.76 | D44: 4.43 | E44: 14472955 | F44: 0 | G44: 1 | H44: 0 | I44: ОВДП (7 - річні); 29,308%; 6,76р. | J44: 14472955
A45: ОВДП (8 - річні) | B45: 173.029 | C45: 8.17 | D45: 5.01 | E45: 17500000 | F45: 0 | G45: 1 | H45: 0 | I45: ОВДП (8 - річні); 173,029%; 8,17р. | J45: 17500000
A46: ОВДП (9 - місячні) | B46: 1275 | C46: 0.69 | D46: 0.66 | E46: 3753269 | F46: 0 | G46: 1 | H46: 0 | I46: ОВДП (9 - місячні); 1275%; 0,69р. | J46: 3753269
A47: ОВДП (9 - річні) | B47: 308.611 | C47: 9.29 | D47: 6.24 | E47: 19400000 | F47: 0 | G47: 1 | H47: 0 | I47: ОВДП (9 - річні); 308,611%; 9,29р. | J47: 19400000
A48: Казначейські зобов'язання | B48: 0 | C48: 0 | D48: 0 | E48: 0 | F48: 0 | G48: 1 | H48: 0 | I48: Казначейські зобов'язання; 0%; 0р. | J48: 0
A49: ОВДП (1 - місячні) | B49: 0 | C49: 0 | D49: 0 | E49: 0 | F49: 0 | G49: 1 | H49: 0 | I49: ОВДП (1 - місячні); 0%; 0р. | J49: 0
A50: ОВДП (10 - річні) | B50: 9.436 | C50: 9.83 | D50: 3.84 | E50: 1330000 | F50: 0 | G50: 1 | H50: 0 | I50: ОВДП (10 - річні); 9,436%; 9,83р. | J50: 1330000
A51: ОВДП (12 - місячні) | B51: 0 | C51: 0 | D51: 0 | E51: 0 | F51: 0 | G51: 1 | H51: 0 | I51: ОВДП (12 - місячні); 0%; 0р. | J51: 0
A52: ОВДП (18 - місячні) | B52: 0 | C52: 0 | D52: 0 | E52: 0 | F52: 0 | G52: 1 | H52: 0 | I52: ОВДП (18 - місячні); 0%; 0р. | J52: 0
A53: ОВДП (2 - річні) | B53: 0 | C53: 0 | D53: 0 | E53: 0 | F53: 0 | G53: 1 | H53: 0 | I53: ОВДП (2 - річні); 0%; 0р. | J53: 0
A54: ОВДП (3 - місячні) | B54: 0 | C54: 0 | D54: 0 | E54: 0 | F54: 0 | G54: 1 | H54: 0 | J54: 0
A55: ОВДП (3 - річні) | B55: 0 | C55: 0 | D55: 0 | E55: 0 | F55: 0 | G55: 1 | H55: 0 | J55: 0
A56: ОВДП (4 - річні) | B56: 0 | C56: 0 | D56: 0 | E56: 0 | F56: 0 | G56: 1 | H56: 0 | J56: 0
A57: ОВДП (5 - річні) | B57: 24.583 | C57: 4.94 | D57: 0.3 | E57: 6554215 | F57: 0 | G57: 1 | H57: 0 | J57: 6554215
A58: ОВДП (6 - місячні) | B58: 0 | C58: 0 | D58: 0 | E58: 0 | F58: 0 | G58: 1 | H58: 0 | J58: 0
A59: ОВДП (6 - річні) | B59: 0 | C59: 0 | D59: 0 | E59: 0 | F59: 0 | G59: 1 | H59: 0 | J59: 0
A60: ОВДП (7 - річні) | B60: 14.5 | C60: 6.9 | D60: 2.22 | E60: 3283010 | F60: 0 | G60: 1 | H60: 0 | J60: 3283010
A61: ОВДП (8 - річні) | B61: 0 | C61: 0 | D61: 0 | E61: 0 | F61: 0 | G61: 1 | H61: 0 | J61: 0
A62: ОВДП (9 - місячні) | B62: 0 | C62: 0 | D62: 0 | E62: 0 | F62: 0 | G62: 1 | H62: 0
A63: ОВДП (9 - річні) | B63: 0 | C63: 0 | D63: 0 | E63: 0 | F63: 0 | G63: 1 | H63: 0
A64: Державний зовнішній борг | B64: 581.145 | C64: 13.7 | D64: 9.71 | E64: 1022067555 | F64: 1 | G64: 0 | H64: 0
A65: в т.ч. ОЗДП | B65: 1086.321 | C65: 8.59 | D65: 6.15 | E65: 543272917.6 | F65: 0 | G65: 0 | H65: 0
A66: Гарантований борг | B66: 52.566 | C66: 13.62 | D66: 9.73 | E66: 280753871.3 | F66: 0 | G66: 0 | H66: 2
A67: Гарантований внутрішній борг | B67: 168.182 | C67: 7.02 | D67: 2.25 | E67: 13698261.9 | F67: 1 | G67: 0 | H67: 0
A68: Гарантований зовнішній борг | B68: 46.635 | C68: 13.96 | D68: 10.11 | E68: 267055609.4 | F68: 1 | G68: 0 | H68: 0
A69: в т.ч. ОЗДП

Sheet K_ALL (hidden)
A2: Державний та гарантований державою борг України за станом на ReportDate (за ознакою умовності)

Sheet T_ALL (hidden)
A2: Державний та гарантований державою борг України за станом на ReportDate (за типом боргу)

Sheet YKT2_PRC (hidden)
A2: Державний та гарантований державою борг України за останні 5 років
G4: %

Sheet TBL1 (hidden)

Sheet DTK2
A2: ="Державний та гарантований державою борг України за станом на " & TEXT(DREPORTDATE,"dd.MM.yyyy") -> Державний та гарантований державою борг України за станом на 31.03.2018
A3: (за типом кредитора)
D5: =VALVAL -> млрд. одиниць
B6: дол.США | C6: грн. | D6: %
A7: Загальна сума державного та гарантованого державою боргу | B7: =B$60+B$8 -> 77.36740816 | C7: 2053.601257 | D7: 1.000003
A8: Внутрішній борг | B8: =B$9+B$47 -> 28.80096048 | C8: 764.4780929 | D8: 0.372265
A9: Державний борг | B9: =B$10+B$45 -> 28.28489193 | C9: 750.779831 | D9: 0.365594
A10: 1. Заборгованість за випущеними цінними паперами на внутрішньому ринку | B10: =SUM(B$11:B$44) -> 28.19520723 | C10: 748.3992856 | D10: 0.364435
A11: ОВДП (10 - річні) | B11: 2.360293689 | C11: 62.650439 | D11: 0.030508
A12: ОВДП (11 - річні) | B12: 0.7170495609 | C12: 19.033 | D12: 0.009268
A13: ОВДП (12 - місячні) | B13: 0.3455238599 | C13: 9.171410155 | D13: 0.004466
A14: ОВДП (12 - річні) | B14: 1.375101612 | C14: 36.5 | D14: 0.017774
A15: ОВДП (13 - річні) | B15: 1.081244319 | C15: 28.700001 | D15: 0.013975
A16: ОВДП (14 - річні) | B16: 1.766911386 | C16: 46.9 | D16: 0.022838
A17: ОВДП (15 - річні) | B17: 3.520209529 | C17: 93.438657 | D17: 0.0455
A18: ОВДП (16 - річні) | B18: 0.4557706101 | C18: 12.097744 | D18: 0.005891
A19: ОВДП (17 - річні) | B19: 0.4557706101 | C19: 12.097744 | D19: 0.005891
A20: ОВДП (18 - місячні) | B20: 1.084112561 | C20: 28.77613418 | D20: 0.014013
A21: ОВДП (18 - річні) | B21: 0.4557706101 | C21: 12.097744 | D21: 0.005891
A22: ОВДП (19 - річні) | B22: 0.4557706101 | C22: 12.097744 | D22: 0.005891
A23: ОВДП (2 - річні) | B23: 2.030171243 | C23: 53.88783618 | D23: 0.026241
A24: ОВДП (20 - річні) | B24: 0.4557706101 | C24: 12.097744 | D24: 0.005891
A25: ОВДП (21-річні) | B25: 0.4557706101 | C25: 12.097744 | D25: 0.005891
A26: ОВДП (22-річні) | B26: 0.4557706101 | C26: 12.097744 | D26: 0.005891
A27: ОВДП (23-річні) | B27: 0.4557706101 | C27: 12.097744 | D27: 0.005891
A28: ОВДП (24-річні) | B28: 0.4557706101 | C28: 12.097744 | D28: 0.005891
A29: ОВДП (25-річні) | B29: 0.4557706101 | C29: 12.097744 | D29: 0.005891
A30: ОВДП (26-річні) | B30: 0.4557706101 | C30: 12.097744 | D30: 0.005891
A31: ОВДП (27-річні) | B31: 0.4557706101 | C31: 12.097744 | D31: 0.005891
A32: ОВДП (28-річні) | B32: 0.4557706101 | C32: 12.097744 | D32: 0.005891
A33: ОВДП (29-річні) | B33: 0.4557706101 | C33: 12.097744 | D33: 0.005891
A34: ОВДП (3 - місячні) | B34: 0.3008665438 | C34: 7.986049 | D34: 0.003889
A35: ОВДП (3 - річні) | B35: 1.90227767 | C35: 50.49309401 | D35: 0.024588
A36: ОВДП (30-річні) | B36: 0.4557708739 | C36: 12.097751 | D36: 0.005891
A37: ОВДП (4 - річні) | B37: 0.0011302205 | C37: 0.03 | D37: 1.5e-05
A38: ОВДП (5 - річні) | B38: 1.832846103 | C38: 48.6501377 | D38: 0.02369
A39: ОВДП (6 - місячні) | B39: 0.6218859886 | C39: 16.50702639 | D39: 0.008038
A40: ОВДП (6 - річні) | B40: 0.2185130646 | C40: 5.8001 | D40: 0.002824
A41: ОВДП (7 - річні) | B41: 0.6689385229 | C41: 17.755965 | D41: 0.008646
A42: ОВДП (8 - річні) | B42: 0.6592952932 | C42: 17.5 | D42: 0.008522
A43: ОВДП (9 - місячні) | B43: 0.1414007192 | C43: 3.753269 | D43: 0.001828
A44: ОВДП (9 - річні) | B44: 0.7308759251 | C44: 19.4 | D44: 0.009447
A45: 2. Заборгованість перед банківськими та іншими фінансовими установами | B45: =SUM(B$46:B$46) -> 0.08968470748 | C45: 2.380545405 | D45: 0.001159
A46: Національний банк України | B46: 0.08968470748 | C46: 2.380545405 | D46: 0.001159
A47: Гарантований державою борг | B47: =B$48+B$54+B$58 -> 0.5160685483 | C47: 13.6982619 | D47: 0.006671
A48: 1. Заборгованість за випущеними цінними паперами на внутрішньому ринку | B48: =SUM(B$49:B$53) -> 0.3371828869 | C48: 8.9500116 | D48: 0.004359
A49: Державні цінні папери | B49: 4.3702e-07 | C49: 1.16e-05 | D49: 0
A50: Облігації ДІУ (10 - річні) | B50: 0.03767401675 | C50: 1 | D50: 0.000487
A51: Облігації ДІУ (5 - річні) | B51: 0.0753480335 | C51: 2 | D51: 0.000974
A52: Облігації ДІУ (7 - річні) | B52: 0.1130220503 | C52: 3 | D52: 0.001461
A53: Облігації Укравтодору (5 - річні) | B53: 0.1111383494 | C53: 2.95 | D53: 0.001437
A54: 2. Заборгованість перед банківськими та іншими фінансовими установами | B54: =SUM(B$55:B$57) -> 0.1788496959 | C54: 4.747295651 | D54: 0.002312
A55: ВАТ "Державний експортно-імпортний банк України" | B55: 0.02743850623 | C55: 0.7283137977 | D55: 0.000355
A56: ВАТ "Державний ощадний банк України" | B56: 0.1481859486 | C56: 3.933372688 | D56: 0.001915
A57: ПАТ АБ "Укргазбанк" | B57: 0.00322524111 | C57: 0.08560916483 | D57: 4.2e-05
A58: 3. Заборгованість, не віднесена до інших категорій | B58: =SUM(B$59:B$59) -> 3.59655e-05 | C58: 0.00095465 | D58: 0
A59: Інші кредитори | B59: 3.59655e-05 | C59: 0.00095465 | D59: 0
A60: Зовнішній борг | B60: =B$61+B$85 -> 48.56644768 | C60: 1289.123164 | D60: 0.627738
A61: Державний борг | B61: =B$62+B$69+B$75+B$77+B$83 -> 38.50539018 | C61: 1022.067555 | D61: 0.497696
A62: 1. Заборгованість за позиками, одержаними від міжнародних фінансових організацій | B62: =SUM(B$63:B$68) -> 14.46341432 | C62: 383.9095366 | D62: 0.186945
A63: Європейське Співтовариство | B63: 3.462201029 | C63: 91.89890878 | D63: 0.04475
A64: Європейський банк реконструкції та розвитку | B64: 0.6628573107 | C64: 17.59454839 | D64: 0.008568
A65: Європейський Інвестиційний Банк | B65: 0.7025265799 | C65: 18.64750935 | D65: 0.00908
A66: Міжнародний банк реконструкції та розвитку | B66: 4.846264304 | C66: 128.6367826 | D66: 0.06264
A67: Міжнародний Валютний Фонд | B67: 4.783054382 | C67: 126.9589705 | D67: 0.061823
A68: Фонд чистих технологій (МБРР) | B68: 0.00651070976 | C68: 0.1728169789 | D68: 8.4e-05
A69: 2. Заборгованість за позиками, одержаними від органів управління іноземних держав | B69: =SUM(B$70:B$74) -> 1.789294223 | C69: 47.4941187 | D69: 0.023128
A70: Канада | B70: 0.3100597649 | C70: 8.2300692 | D70: 0.004008
A71: Німеччина | B71: 0.2754226054 | C71: 7.310677997 | D71: 0.00356
A72: Росія | B72: 0.60585586 | C72: 16.08153078 | D72: 0.007831
A73: США | B73: 0.00617218311 | C73: 0.1638312992 | D73: 8e-05
A74: Японія | B74: 0.5917838101 | C74: 15.70800942 | D74: 0.007649
A75: 3. Заборгованість за позиками, одержаними від іноземних комерційних банків, інших іноземних фінансових установ | B75: =SUM(B$76:B$76) -> 6.299629e-05 | C75: 0.00167214153 | D75: 1e-06
A76: Chase Manhattan Bank Luxembourg S.A. | B76: 6.299629e-05 | C76: 0.00167214153 | D76: 1e-06
A77: 4. Заборгованість за випущеними цінними паперами на зовнішньому ринку | B77: =SUM(B$78:B$82) -> 20.467273 | C77: 543.2729176 | D77: 0.264546
A78: ОЗДП 2013 року | B78: 3 | C78: 79.630479 | D78: 0.038776
A79: ОЗДП 2014 року | B79: 1 | C79: 26.543493 | D79: 0.012925
A80: ОЗДП 2015 року | B80: 12.467273 | C80: 330.9249736 | D80: 0.161144
A81: ОЗДП 2016 року | B81: 1 | C81: 26.543493 | D81: 0.012925
A82: ОЗДП 2017 року | B82: 3 | C82: 79.630479 | D82: 0.038776
A83: 5. Заборгованість, не віднесена до інших категорій | B83: =SUM(B$84:B$84) -> 1.785345644 | C83: 47.3893096 | D83: 0.023076
A84: Міжнародний Валютний Фонд | B84: 1.785345644 | C84: 47.3893096 | D84: 0.023076
A85: Гарантований державою борг | B85: =B$86+B$92+B$94+B$102+B$103 -> 10.0610575 | C85: 267.0556094 | D85: 0.130042
A86: 1. Заборгованість за позиками, одержаними від міжнародних фінансових організацій | B86: =SUM(B$87:B$91) -> 7.895579817 | C86: 209.5762676 | D86: 0.102052
A87: Європейське співтоватиство з атомної енергії | B87: 0.06276289052 | C87: 1.665946345 | D87: 0.000811
A88: Європейський банк реконструкції та розвитку | B88: 0.1379608815 | C88: 3.661963692 | D88: 0.001783
A89: Європейський Інвестиційний Банк | B89: 0.06037290051 | C89: 1.602507662 | D89: 0.00078
A90: Міжнародний банк реконструкції та розвитку | B90: 0.44967 | C90: 11.9358125 | D90: 0.005812
A91: Міжнародний Валютний Фонд | B91: 7.184813144 | C91: 190.7100374 | D91: 0.092866
A92: 2. Заборгованість за позиками, одержаними від органів управління іноземних держав | B92: =SUM(B$93:B$93) -> 0.07310838994 | C92: 1.940552037 | D92: 0.000945
A93: Канада | B93: 0.07310838994 | C93: 1.940552037 | D93: 0.000945
A94: 3. Заборгованість за позиками, одержаними від іноземних комерційних банків, інших іноземних фінансових установ | B94: =SUM(B$95:B$101) -> 1.973961614 | C94: 52.39583629 | D94: 0.025515
A95: CENTRAL STORAGE SAFETY PROJECT TRUST | B95: 0.05669059346 | C95: 1.504766371 | D95: 0.000733
A96: Citibank, N.A., Deutsche Bank AG | B96: 0.2841455738 | C96: 7.542216049 | D96: 0.003673
A97: Deutsche Bank AG London | B97: 0.03784707201 | C97: 1.004593491 | D97: 0.000489
A98: UniCredit Bank Austria AG | B98: 0.02618212504 | C98: 0.6949650526 | D98: 0.000338
A99: Державний банк розвитку КНР | B99: 0.04624 | C99: 1.227371116 | D99: 0.000598
A100: Експортно-імпортний банк Китаю | B100: 1.425 | C100: 37.82447752 | D100: 0.018419
A101: Експортно-імпортний банк Кореї | B101: 0.09785625 | C101: 2.597446687 | D101: 0.001265
A102: 4. Заборгованість за випущеними цінними паперами на зовнішньому ринку
A103: 5. Заборгованість, не віднесена до інших категорій | B103: =SUM(B$104:B$104) -> 0.1184076807 | C103: 3.142953444 | D103: 0.00153
A104: Міжнародний Валютний Фонд | B104: 0.1184076807 | C104: 3.142953444 | D104: 0.00153

Sheet DATA
A1: STOP
A3: Дата отчета | B3: 2018-03-31 | C3: =DREPORTDATE -> 2018-03-31
A4: Единицы измерения | B4: 1000000000 | C4: =IF($B$4=1,"дол. США",IF($B$4=1000,"тис. дол. США",IF($B$4=1000000,"млн. дол. США",IF($B$4=1000000000,"млрд. дол. США")))) -> млрд. дол. США | D4: =IF($B$4=1,"грн",IF($B$4=1000,"тис. грн",IF($B$4=1000000,"млн. грн",IF($B$4=1000000000,"млрд. грн")))) -> млрд. грн | E4: =IF($B$4=1,"одиниць",IF($B$4=1000,"тис. одиниць",IF($B$4=1000000,"млн. одиниць",IF($B$4=1000000000,"млрд. одиниць")))) -> млрд. одиниць | F4: =1000000000/DDELIMER -> 1 | G4: =IF($B$4=1,1000000000,IF($B$4=1000,1000000,IF($B$4=1000000,1000,IF($B$4=1000000000,1)))) -> 1
A5: Сессия | B5: bf9f4cc6-c465-4743-ac7c-a45d7ed339d6
A8: SHORT
A12: 1000000000

Sheet AVGRATE_DETAIL (hidden)
